Workbook

Sheet Reporte general
C11: El Consejo Superior de la Universidad Distrital aprobó a través del Acuerdo 009 de 2018 el Plan Estratégico de Desarrollo 2018-2030 como la hoja de ruta de la Universidad Distrital Francisco José de Caldas para construir su proyecto de Universidad. Así mismo, y dando cumplimiento a lo establecido en el Sistema de Planeación Institucional (título IV, capítulo I, Acuerdo 009 de 1997 del CSU), el Rector Ricardo García Duarte estableció a través de la Resolución 444 de 2018 el Plan Indicativo correspondiente a su periodo rectoral denominado 'Una Universidad, como reino del conocimiento crítico'.
C15: La estructura general del Plan Estratégico de Desarrolla se establece a partir de cinco Lineamientos Estratégicos, a los cuales se le asocian una serie de Estrategias y Metas, estas últimas permiten medir el avance de los lineamientos y el plan en el horizonte de 12 años establecido para el plan.
C18: Lineamientos Estratégicos | F18: Estrategias asociadas | G18: Metas asociadas
C19: 1 | D19: Formar ciudadanos, profesionales, investigadores, creadores e innovadores, íntegros con pensamiento crítico y cultura democrática, en contextos diferenciados inter y multiculturales para la transformación de la sociedad. | F19: 20 | G19: 14
C20: 2 | D20: Establecer un diseño curricular dinámico y flexible que promueva el pluralismo y consolide una comunidad universitaria crítica-transformadora y en armonía ambiental. | F20: 11 | G20: 5
C21: 3 | D21: Integrar las funciones universitarias por medio de la investigación, creación, innovación para la ampliación del conocimiento como bien público y para la solución de problemas de la ciudad - región y de la sociedad en general. | F21: 17 | G21: 7
C22: 4 | D22: Garantizar, gestionar y proveer las condiciones institucionales para el cumplimiento de las funciones universitarias y el bienestar de su comunidad. | F22: 15 | G22: 6
C23: 5 | D23: Consolidar y fortalecer la democracia participativa, la gobernanza y la gobernabilidad para la cohesión de la comunidad universitaria. | F23: 13 | G23: 10
C31: Información del indicador | H31: Reporte de los indicadores
C32: N° | D32: Meta | E32: Indicador | F32: Unidad de medida | G32: Linea base (2017) | H32: 2018 | I32: 2019 | J32: 2020 | K32: 2021 | L32: Tendencia
C33: 1 | D33: Mantener y elevar la acreditación institucional de alta calidad y alcanzar el reconocimiento internacional. | E33: Documento de Resolución MEN Acreditación Institucional | F33: Documento de Resolución MEN Acreditación Institucional | G33: Universidad Acreditada | H33: Universidad Acreditada | I33: Universidad Acreditada | J33: Universidad Acreditada | L33: -
C34: 2 | D34: Aumentar el 34% en el número de estudiantes de pregrado matriculados. | E34: (M1semPre + M2semPre)/2 | F34: Número de estudiantes matriculados en pregrado | G34: 23862 | H34: ='Base L1'!G7 -> 24006 | I34: ='Base L1'!H7 -> 24624 | J34: ='Base L1'!I7 -> 25992.5
C35: 3 | D35: Aumentar el 65% de estudiantes matriculados en posgrado. | E35: (M1semPos + M2semPos)/2 | F35: Numero de estudiantes matriculados en posgrado | G35: 2972 | H35: ='Base L1'!G8 -> 3055 | I35: ='Base L1'!H8 -> 3222 | J35: ='Base L1'!I8 -> 3274
C36: 4 | D36: Aumentar en 28% el número de programas en todos los niveles y modalidades. | E36: Σ Programas con registro calificado | F36: Total de programas con registro calificado vigente | G36: 81 | H36: ='Base L1'!G9 -> 81 | I36: ='Base L1'!H9 -> 86 | J36: ='Base L1'!I9 -> 88
C37: 5 | D37: Lograr homologación y transferencia del 100% de la oferta académica de la Universidad entre sus diferentes niveles de formación. | E37: (Phom/TP)*100 | F37: Porcentaje de programas que posean algún grado de homologación con otros programas internos o de otras Universidades nacionales o del exterior | G37: 0 | H37: ='Base L1'!G10 -> 0.950617284 | I37: ='Base L1'!H10 -> 0.950617284 | J37: ='Base L1'!I10 -> 0.9534883721
C38: 6 | D38: Lograr que los proyectos de extensión respondan a la interacción entre las problemáticas del entorno y los procesos de investigación, y que sus resultados vinculen e impacten comunidades de la ciudad y la región. | E38: (PePs/Pe)∗100 | F38: Porcentaje de Proyectos de Extensión que responden a problemáticas de las comunidades | G38: 0.33 | H38: ='Base L1'!G11 -> 0.3623188406 | I38: ='Base L1'!H11 -> 0.2424242424 | J38: ='Base L1'!I11 -> 0.3272727273
C39: 7 | D39: Aumentar la oferta en 10 programas de formación para el trabajo y desarrollo del talento humano en correspondencia con las necesidades de los sectores productivos y de servicios de la ciudad región. | E39: ∑ Programas de formación | F39: Total de programas de formación para el trabajo y desarrollo del talento humano creados | G39: 0 | H39: ='Base L1'!G12 -> 0 | I39: ='Base L1'!H12 -> 0 | J39: ='Base L1'!I12 -> 0
C40: 8 | D40: Lograr que 20% de la oferta académica de pregrado y posgrado permita la doble titulación o cotitulación. | E40: [(Pdt/c)/(TP)]∗100 | F40: Porcentaje de proyectos curriculares con acuerdos de cotitulación y/o doble titulación. | G40: 0.013 | H40: ='Base L1'!G13 -> 0.01234567901 | I40: ='Base L1'!H13 -> 0.01162790698 | J40: ='Base L1'!I13 -> 0.02325581395
C41: 9 | D41: Aumentar el índice de movilidad internacional anual mínimo al 1,3% de la población estudiantil. | E41: (EstM/T.EST)∗100 | F41: Porcentaje de estudiantes en procesos de movilidad Internacional | G41: 0.0024 | H41: ='Base L1'!G14 -> 0.005456969091 | I41: ='Base L1'!H14 -> 0.007066276803 | J41: ='Base L1'!I14 -> 0.004308852383
C42: 10 | D42: Aumentar el índice de movilidad internacional anual mínimo al 5 % de la planta docente. | E42: (DocM/T.DOC)∗100 | F42: Porcentaje de docentes en procesos de movilidad Internacional | G42: 0.005 | H42: ='Base L1'!G15 -> 0.007751937984 | I42: ='Base L1'!H15 -> 0.01107594937 | J42: ='Base L1'!I15 -> 0.007668711656
C43: 11 | D43: Lograr que el 60% de estudiantes tengan un dominio de una segunda lengua en un nivel equivalente a B2. | E43: (Est.B2/T.EST)∗100 | F43: Porcentaje de estudiantes que tienen un dominio intermedio de una segunda lengua según el MCRE | G43: 0.3628 | H43: ='Base L1'!G16 -> 0.111 | I43: ='Base L1'!H16 -> 0.0909 | J43: ='Base L1'!I16 -> 0.1142
C44: 12 | D44: Apoyar a estudiantes de los colegios distritales ubicados en el área de influencia de las sedes de la Universidad, con programas de fortalecimiento de competencias básicas en: matemáticas, ciencias naturales, lectura crítica e inglés. | E44: ∑ Estudiantes apoyados en CB | F44: Número acumulado de estudiantes de IED apoyados por la Universidad | G44: 0 | H44: ='Base L1'!G17 -> 9364 | I44: ='Base L1'!H17 -> 0 | J44: ='Base L1'!I17 -> 1806
C45: 13 | D45: Disminuir la tasa de deserción anual al 9% | E45: (EAE/EA)∗100 | F45: Porcentaje de estudiantes que no se han matriculado por dos periodos consecutivos (desertor anual) Fuente: SPADIES | G45: 0.095 | H45: ='Base L1'!G18 -> 0.0751478797 | I45: ='Base L1'!H18 -> 0.1103395062 | J45: ='Base L1'!I18 -> 0.1115706454
C46: 14 | D46: Modernizar la organización académica y administrativa de la institución. | E46: Reforma Organizacional Aprobada por Consejo Superior | F46: Reforma Organizacional Aprobada por Consejo Superior | G46: N/A | H46: N/A | I46: N/A | J46: N/A | L46: -
C51: Información del indicador | H51: Reporte de los indicadores
C52: N° | D52: Meta | E52: Indicador | F52: Unidad de medida | G52: Linea base (2017) | H52: 2018 | I52: 2019 | J52: 2020 | K52: 2021 | L52: Tendencia
C53: 15 | D53: Evaluar, revisar y reformular la oferta curricular de pregrado y posgrado de cada facultad, en el marco de los procesos de autoevaluación continua y los proyectos educativos de las facultades. | E53: ∑ Programas evaluados curricularmente | F53: Número de proyectos curriculares evaluados y actualizados | G53: ='Base L2'!F6 -> 81 | H53: ='Base L2'!G6 -> 81 | I53: ='Base L2'!H6 -> 81 | J53: ='Base L2'!I6 -> 81
C54: 16 | D54: Aumentar la tasa de graduación en pregrados al 70% | E54: (ETE/EC)∗100 | F54: Porcentaje de estudiantes que se han graduado en máximo dos periodos adicionales a los establecidos en el plan de estudios (Tasa de eficiencia en la titulación) | G54: ='Base L2'!F7 -> 0.4 | H54: ='Base L2'!G7 -> 0 | I54: ='Base L2'!H7 -> 0 | J54: ='Base L2'!I7 -> 0.8752904725
C55: 17 | D55: Alcanzar una cobertura en el 70 % de los docentes en el manejo de tecnologías de la información y comunicación. | E55: (D.TI/T.DOC)∗100 | F55: Porcentaje de docentes con manejo de las TI | G55: ='Base L2'!F8 -> Sin medición | H55: ='Base L2'!G8 -> 0 | I55: ='Base L2'!H8 -> 0 | J55: ='Base L2'!I8 -> 0.6507614213
C56: 18 | D56: Lograr que el 40 % de los docentes de planta manejen lenguajes que permitan garantizar la atención de comunidades en el marco de la política de inclusión. | E56: (D.LI/T.DOC)∗100 | F56: Porcentaje de docentes con manejo de lenguajes Inclusivos | G56: ='Base L2'!F9 -> Sin medición | H56: ='Base L2'!G9 -> 0 | I56: ='Base L2'!H9 -> 0 | J56: ='Base L2'!I9 -> 0
C57: 19 | D57: Lograr el 90% de satisfacción entre los miembros de la comunidad universitaria frente a las expectativas del bienestar estudiantil y los programas que desde allí se ofrezcan. | E57: (∑ Calificaciones)/(T.EST) | F57: Promedio de satisfacción de los estudiantes a los servicios ofrecidos | G57: ='Base L2'!F10 -> Sin medición | H57: ='Base L2'!G10 -> 0 | I57: ='Base L2'!H10 -> 0 | J57: ='Base L2'!I10 -> 0.859
C62: Información del indicador | H62: Reporte de los indicadores
C63: N° | D63: Meta | E63: Indicador | F63: Unidad de medida | G63: Linea base (2017) | H63: 2018 | I63: 2019 | J63: 2020 | K63: 2021 | L63: Tendencia
C64: 20 | D64: Clasificarse entre las 5 mejores IES colombianas según indicadores en investigación. | E64: Puesto según Rankings: US= Usapiens WM= Webometrics ScN= Scimago Nacional ScW= Scimago Internacional | F64: Puesto según Rankings: US= Usapiens WM= Webometrics ScN= Scimago Nacional ScW= Scimago Internacional | G64: US= 16 WM= 18 ScN= 15 ScW= 758 | H64: US= 14 WM= - ScN= 21 ScW= 746 | I64: US= 18 WM= - ScN= 25 ScW= 770 | J64: US= 17 WM= 11 ScN= 30 ScW= 815
C65: 21 | D65: Aumentar el porcentaje de revistas científicas indexadas al 100%. | E65: (TR.i/TR)∗100 | F65: Porcentaje de revistas institucionales con algún nivel de indexación con COLCIENCIAS-PUBLINDEX | G65: 0.33 | H65: ='Base L3'!G7 -> 0.42 | I65: ='Base L3'!H7 -> 0.42 | J65: ='Base L3'!I7 -> 0.3157894737
C66: 22 | D66: Aumentar la producción científica anual publicada en revistas indexadas. | E66: ∑ Artículos indexados en SCOPUS | F66: Número de artículos científicos indexados en SCOPUS | G66: 208 | H66: ='Base L3'!G8 -> 244 | I66: ='Base L3'!H8 -> 221 | J66: ='Base L3'!I8 -> 222
C67: 23 | D67: Crear al menos 3 empresas spin-off, 15 empresas incubadas e institutos de investigación e innovación. | E67: ∑ de Spinoffs y Start Ups Operativos | F67: Número de Spin Offs y Start ups operativos | G67: 0 | H67: ='Base L3'!G9 -> 0 | I67: ='Base L3'!H9 -> 0 | J67: ='Base L3'!I9 -> 0
C68: 24 | D68: Incrementar los proyectos de cofinanciación externa en 45%, cuyos recursos provengan de organismos internacionales, los sistemas de ciencia tecnología e innovación; sistema nacional de regalías y, de aquellos en los que tengan interés las entidades estatales con capacidad de financiación. | E68: ∑ Proyectos de cofinanciación | F68: Número de proyectos cofinanciados entre la Universidad y otras entidades | G68: 17 | H68: ='Base L3'!G10 -> 5 | I68: ='Base L3'!H10 -> 8 | J68: ='Base L3'!I10 -> 17
C69: 25 | D69: Lograr el pleno apoyo a la investigación, la creación, la formación, la innovación y el incremento de la productividad y competitividad de las empresas de la ciudad región, por medio de convenios de cooperación con los diferentes sectores. | E69: ∑ Convenios de la Universidad | F69: Número de convenios entre la Universidad y otras entidades | G69: 0 | H69: ='Base L3'!G11 -> 5 | I69: ='Base L3'!H11 -> 6 | J69: ='Base L3'!I11 -> 2
C70: 26 | D70: Aumentar al 50% el número de docentes con Doctorado. | E70: (DDOC/T.DOC)∗100 | F70: Porcentaje de docentes con doctorado | G70: 0.18 | H70: ='Base L3'!G12 -> 0.3131782946 | I70: ='Base L3'!H12 -> 0.3306962025 | J70: ='Base L3'!I12 -> 0.3604294479
C75: Información del indicador | H75: Reporte de los indicadores
C76: N° | D76: Meta | E76: Indicador | F76: Unidad de medida | G76: Linea base (2017) | H76: 2018 | I76: 2019 | J76: 2020 | K76: 2021 | L76: Tendencia
C77: 27 | D77: Ampliar, mejorar y modernizar física, tecnológica y ambientalmente la infraestructura, esto de acuerdo con la proyección de la cobertura y las políticas de inclusión. | E77: ∑ Metros cuadrados (m2) construidos | F77: Total de metros cuadrados (m2) construidos | G77: 104609 | H77: ='Base L4'!G6 -> 104609 | I77: ='Base L4'!H6 -> 104609 | J77: ='Base L4'!I6 -> 104609
C78: 28 | D78: Consolidar cuatro centros de recursos para el aprendizaje y la investigación -CRAI-. | E78: ∑ CRAI Consolidados | F78: Número de CRAI consolidados | G78: 0 | H78: ='Base L4'!G7 -> 1 | I78: ='Base L4'!H7 -> 1 | J78: ='Base L4'!I7 -> 1
C79: 29 | D79: Fortalecer las competencias de los servidores públicos al servicio de la institución, en beneficio del cumplimiento de las funciones institucionales. | E79: Evaluación del desempeño laboral implementada | F79: Evaluación del desempeño laboral implementada | G79: Sin medición | H79: Sin medición | I79: Sin medición | J79: Sin medición
C80: 30 | D80: Aumentar al 100% la vinculación de empleados administrativos conforme al sistema de carrera administrativa. | E80: (E.Carr/T. Emp)* 100 | F80: Porcentaje de empleados que están nombrados dentro de la carrera administrativa | G80: 0.26 | H80: ='Base L4'!G9 -> 0.275 | I80: ='Base L4'!H9 -> 0.275 | J80: ='Base L4'!I9 -> 0.3160621762
C81: 31 | D81: Aumentar el número de docentes de planta en un 45% y disminuir la vinculación especial en un 10%. | E81: ∑ Docentes nombrados de planta | F81: Número de docentes de planta nombrados | G81: 670 | H81: ='Base L4'!G10 -> 645 | I81: ='Base L4'!H10 -> 632 | J81: ='Base L4'!I10 -> 652
C82: 32 | D82: Generar una cultura institucional que respete las diferencias y garantice el bienestar de las personas en situación de discapacidad. | E82: [(D/A.LenAcc)/ (T.DOC/Adm)]∗100 | F82: Porcentaje de docentes y administrativos (de planta) capacitados en lenguajes accesibles | G82: 0 | H82: ='Base L4'!G11 -> 0 | I82: ='Base L4'!H11 -> 0 | J82: ='Base L4'!I11 -> 0
C87: Información del indicador | H87: Reporte de los indicadores
C88: N° | D88: Meta | E88: Indicador | F88: Unidad de medida | G88: Linea base (2017) | H88: 2018 | I88: 2019 | J88: 2020 | K88: 2021 | L88: Tendencia
C89: 33 | D89: Implementar los dominios identificados en el marco de referencia IT 4+ establecidos por MinTIC | E89: ∑ Dominios implementados según Marco de referencia IT4+ | F89: Dominios implementados según Marco de referencia IT4+ | G89: 0 | H89: ='Base L5'!G6 -> 0 | I89: ='Base L5'!H6 -> 0 | J89: ='Base L5'!I6 -> 0
C90: 34 | D90: Alcanzar la implementación del cuarto componente de Gobierno en Línea (Seguridad y privacidad de la información). | E90: [(A.GEL Imp)/(Total de A.GEL)]∗100 | F90: Porcentaje de implementación del componente de Gobierno en Línea. | G90: 0.06 | H90: ='Base L5'!G7 -> 0 | I90: ='Base L5'!H7 -> 0 | J90: ='Base L5'!I7 -> 0
C91: 35 | D91: Lograr la calidad y disponibilidad del 100% de la información institucional, que no tenga restricción constitucional ni legal. | E91: [(Información disponible en la web)/(Total de información de la Universidad)]∗100 | F91: Porcentaje de información disponible en la página web | G91: 1 | H91: ='Base L5'!G8 -> 0.93 | I91: ='Base L5'!H8 -> 0.95 | J91: ='Base L5'!I8 -> 0.921
C92: 36 | D92: Implementar mecanismos de participación, de los diferentes estamentos, de la comunidad universitaria, en las instancias de planeación, gestión, seguimiento y evaluación de la Universidad. | E92: [(Instancias participando efectivamente)/(Total de instancias de la Universidad)]∗100 | F92: Porcentaje de instancias de planeación, seguimiento , evaluación y gestión con participación efectiva de los estamentos de la Comunidad Universitaria | G92: Sin medición | H92: ='Base L5'!G9 -> 1 | I92: ='Base L5'!H9 -> 1 | J92: ='Base L5'!I9 -> 0.8829787234
C93: 37 | D93: Lograr un nivel de satisfacción mínimo del 80% por parte de las personas que utilizan los servicios de la Universidad. | E93: [(Usuario≥4 y 5)/(T.Usuarios)]∗100 | F93: Porcentaje de usuarios que califican con 4 o 5 los servicios ofrecidos por la Universidad | G93: Sin medición | H93: ='Base L5'!G10 -> 0 | I93: ='Base L5'!H10 -> 0 | J93: ='Base L5'!I10 -> 0.9315
C94: 38 | D94: Actualizar, compilar, depurar y difundir el 100% de las normas expedidas por las autoridades institucionales. | E94: [(Normatividad verificada)/(Total de normatividad expedida por la UD)]∗100 | F94: Porcentaje de verificación de la vigencia de la normatividad interna | G94: Sin medición | H94: ='Base L5'!G11 -> 1 | I94: ='Base L5'!H11 -> 1 | J94: ='Base L5'!I11 -> 1
C95: 39 | D95: Actualizar, simplificar y flexibilizar anualmente la operación de los procesos institucionales en el cumplimiento de las funciones universitarias. | E95: [(Procesos Actualizados)/(Total de procesos)]∗100 | F95: Porcentaje de actualización de Procesos SIGUD | G95: 1 | H95: ='Base L5'!G12 -> 1 | I95: ='Base L5'!H12 -> 0.8636363636 | J95: ='Base L5'!I12 -> 0.5909090909
C96: 40 | D96: Establecer la adecuada asignación de funciones, competencias, seguridad jurídica y equilibrio institucional en la organización, gobierno y gestión de la Universidad. | E96: [(Normas actualizadas)/(Total de normas estatutarias)]∗100 | F96: Porcentaje de normas estatutarias actualizadas. | G96: 0 | H96: ='Base L5'!G13 -> 0 | I96: ='Base L5'!H13 -> 0 | J96: ='Base L5'!I13 -> 0
C97: 41 | D97: Conseguir la publicación oportuna y completa de toda la información relacionada con el principio de transparencia y derecho de acceso a información pública, de acuerdo con la Ley 1712 de 2014. | E97: [(Información publicada)/(Información publicable según ley)]∗100 | F97: Porcentaje de información publicada según la ley 1712 de 2014 | G97: Sin medición | H97: ='Base L5'!G14 -> 0.93 | I97: ='Base L5'!H14 -> 0.95 | J97: ='Base L5'!I14 -> 0.921
C98: 42A | D98: Lograr indicadores de cero corrupción en la gestión institucional. | E98: PAAC de cada Vigencia | F98: PAAC de cada Vigencia | G98: PAAC | H98: PAAC 2018 | I98: PAAC 2019 | J98: PAAC 2020
C99: 42B | E99: ∑ Número de canales de atención en las localidades de Bogotá | F99: Número de canales de atención en las localidades de Bogotá | G99: 6 | H99: ='Base L5'!G16 -> 6 | I99: ='Base L5'!H16 -> 6 | J99: ='Base L5'!I16 -> 6
C100: 42C | E100: ∑ Número de rendiciones de cuentas realizadas a la comunidad anualmente | F100: Número de rendiciones de cuentas realizadas a la comunidad anualmente | G100: 1 | H100: ='Base L5'!G17 -> 1 | I100: ='Base L5'!H17 -> 1 | J100: ='Base L5'!I17 -> 1

Sheet Avance Metas
J9: =C11 -> 2. Aumentar el 34% en el número de estudiantes de pregrado matriculados.
D10: =VLOOKUP(C11,Consolidado!D4:V47,19,FALSE) -> Número | I10: =C11 -> 2. Aumentar el 34% en el número de estudiantes de pregrado matriculados. | J10: =IF(C11="13. Disminuir la tasa de deserción anual al 9% ","Decrecientes","Creciente") -> Creciente
B11: ="META" -> META | C11: 2. Aumentar el 34% en el número de estudiantes de pregrado matriculados.
F13: GRÁFICO DEL
B15: Fórmula del Indicador | C15: =IF(C11="","-",VLOOKUP(C11,Consolidado!D4:E47,2,FALSE)) -> (M1semPre + M2semPre)/2 | O15: Año | P15: Valor reportado | Q15: Meta Plan Indicativo | R15: % Cumplimiento | S15: % de Incumplimiento
B16: Nombre del indicador | C16: =IF(C11="","-",VLOOKUP(C11,'Base F. Indicador'!A4:G48,7,FALSE)) -> Número de estudiantes matriculados en pregrado | O16: 2017 | P16: =C17 -> 23862 | Q16: =P16 -> 23862
B17: Línea Base (2017) | C17: =IF(C11="","-",VLOOKUP(C11,Consolidado!D4:U47,18,FALSE)) -> 23862 | O17: 2018 | P17: =VLOOKUP(C11,Consolidado!D4:G47,4,FALSE) -> 24006 | Q17: =VLOOKUP(C11,Consolidado!D4:G47,3,FALSE) -> 23886 | R17: =IF(AND($J$10="Decrecientes",P17<Q17),1+((Q17-P17)/Q17),IF(AND($J$10="DecrecienteS",Q17<P17),1-((-Q17+P17)/Q17),IF(Q17=0,100%,P17/Q17))) -> 1.005023863 | S17: =1-R17 -> -0.005023863351
B18: Meta 2030 | C18: =IF(C11="","-",VLOOKUP(C11,Consolidado!D3:R47,15,FALSE)) -> 32000 | O18: 2019 | P18: =VLOOKUP(C11,Consolidado!D4:J47,7,FALSE) -> 24624 | Q18: =VLOOKUP(C11,Consolidado!D4:J47,6,FALSE) -> 25465 | R18: =IF(AND($J$10="Decrecientes",P18<Q18),1+((Q18-P18)/Q18),IF(AND($J$10="DecrecienteS",Q18<P18),1-((-Q18+P18)/Q18),IF(Q18=0,100%,P18/Q18))) -> 0.9669742784 | S18: =1-R18 -> 0.03302572158 | U18: =IF(AND($J$10="Decreciente",Q17<P17),1+((Q17-P17)/Q17),IF(AND($J$10="Decreciente",Q17<P17),1-((-Q17+P17)/Q17),IF(Q17=0,100%,P17/Q17))) -> 1.005023863
B19: Unidades que reportan | C19: =IF(C11="","-",VLOOKUP(C11,Consolidado!D5:W48,20,FALSE)) -> Decanaturas de Facultad | O19: 2020 | P19: =VLOOKUP(C11,Consolidado!D3:N47,10,FALSE) -> 25992.5 | Q19: =VLOOKUP(C11,Consolidado!D3:N47,9,FALSE) -> 27108 | R19: 0.958849786 | S19: =1-R19 -> 0.04115021396
O20: 2021 | P20: 0 | Q20: =VLOOKUP(C11,Consolidado!D3:Q47,12,FALSE) -> 29007 | R20: =IF(AND($J$10="Decreciente",Q20>P20),1+((Q20-P20)/Q20),IF(AND($J$10="Decreciente",Q20<P20),1-((-Q20+P20)/Q20),IF(Q20=0,100%,P20/Q20))) -> 0 | S20: =1-R20 -> 1
O21: 2030 | Q21: =C18 -> 32000 | R21: 0 | S21: =1-R21 -> 1
C24: Vigencia: | D24: 2020
O26: Avance PED e Indicativo
O27: Año | P27: Reporte | Q27: PED (2030) | R27: Plan Indicativo (2021)
O28: =D24 -> 2020 | P28: =VLOOKUP(O28,O16:S21,2,FALSE) -> 25992.5 | Q28: =C18 -> 32000 | R28: =Q20 -> 29007
Q29: =IF(J10="Decrecientes",1-((P28-Q28)/(Q28)),$P$28/Q28) -> 0.812265625 | R29: =IF(J10="Decrecientes",1-((P28-R28)/(R28)),$P$28/R28) -> 0.896076809
Q30: Plan Indicativo 2018-2021 | R30: Plan Estratégico de Desarrollo 2018-2030
P31: Avance cumplimiento | Q31: =P28 -> 25992.5 | R31: =P28 -> 25992.5
P32: Brecha meta | Q32: =IF(J10="Decrecientes",-P28+R28,IF(R28-P28<0,0,R28-P28)) -> 3014.5 | R32: =IF(J10="Decrecientes",-P28+Q28,IF(Q28-R31<0,0,Q28-R31)) -> 6007.5

Sheet Para informe. Avance PED-PI (hidden)
B5: Información de la Meta Estraté | H5: Reporte 2020 | I5: Plan Indicativo 2018-2030 | M5: Plan Estratégico de Desarrollo 2018-2030
B6: L | C6: N° | D6: Meta | E6: Indicador | F6: Unidad de medida | G6: Linea base (2017) | I6: Meta 2021 | J6: Avance a corte 2020 | L6: Faltante | M6: Meta 2030 | N6: Avance a corte 2020 | P6: Faltante
B7: Lineamiento Estratégico 1 | C7: 1 | D7: Mantener y elevar la acreditación institucional de alta calidad y alcanzar el reconocimiento internacional. | E7: Documento de Resolución MEN Acreditación Institucional | F7: Documento de Resolución MEN Acreditación Institucional | G7: Universidad Acreditada | H7: ='Para informe'!H7 -> Universidad Acreditada | I7: Acreditación Institucional Vigente | J7: =3/4 -> 0.75 | K7: 1 | L7: Acreditación Institucional vigente 2021 | M7: Acreditación Institucional Vigente | N7: =4/12 -> 0.3333333333 | O7: =IF(N7>100%,100%,N7) -> 0.3333333333 | P7: Acreditación Institucional vigente 2021
C8: 2 | D8: Aumentar el 34% en el número de estudiantes de pregrado matriculados. | E8: (M1semPre + M2semPre)/2 | F8: Número de estudiantes matriculados en pregrado | G8: 23862 | H8: ='Para informe'!H8 -> 25992.5 | I8: 29007 | J8: =H8/I8 -> 0.896076809 | K8: =H8/I8 -> 0.896076809 | L8: =I8-H8 -> 3014.5 | M8: 32000 | N8: =H8/M8 -> 0.812265625 | O8: =H8/M8 -> 0.812265625 | P8: =M8-H8 -> 6007.5
C9: 3 | D9: Aumentar el 65% de estudiantes matriculados en posgrado. | E9: (M1semPos + M2semPos )/2 | F9: Numero de estudiantes matriculados en posgrado | G9: 2972 | H9: ='Para informe'!H9 -> 3274 | I9: 3667 | J9: =H9/I9 -> 0.8928279247 | K9: 0.8928279247 | L9: =I9-H9 -> 393 | M9: 4904 | N9: =H9/M9 -> 0.6676182708 | O9: 0.6676182708 | P9: =M9-H9 -> 1630
C10: 4 | D10: Aumentar en 28% el número de programas en todos los niveles y modalidades. | E10: Σ Programas con registro calificado | F10: Total de programas con registro calificado vigente | G10: 81 | H10: ='Para informe'!H10 -> 88 | I10: 101 | J10: 0.8712871287 | K10: 0.8712871287 | L10: 13 | M10: 104 | N10: 0.8461538462 | O10: 0.8461538462 | P10: 16
C11: 5 | D11: Lograr homologación y transferencia del 100% de la oferta académica de la Universidad entre sus diferentes niveles de formación. | E11: (Phom/TP)*100 | F11: Porcentaje de programas que posean algún grado de homologación con otros programas internos o de otras Universidades nacionales o del exterior | G11: 0 | H11: ='Para informe'!H11 -> 0.9534883721 | I11: 0.25 | J11: =H11/I11 -> 3.813953488 | K11: 1 | L11: -0.7034883721 | M11: 1 | N11: 0.9534883721 | O11: 0.9534883721 | P11: 0.04651162791
C12: 6 | D12: Lograr que los proyectos de extensión respondan a la interacción entre las problemáticas del entorno y los procesos de investigación, y que sus resultados vinculen e impacten comunidades de la ciudad y la región. | E12: PePs/Pe∗100 | F12: Porcentaje de Proyectos de Extensión que responden a problemáticas de las comunidades | G12: 0.33 | H12: ='Para informe'!H12 -> 0.3272727273 | I12: 0.39 | J12: 0.8391608392 | K12: 0.8391608392 | L12: 0.06272727273 | M12: 0.5 | N12: 0.6545454545 | O12: 0.6545454545 | P12: 0.1727272727
C13: 7 | D13: Aumentar la oferta en 10 programas de formación para el trabajo y desarrollo del talento humano en correspondencia con las necesidades de los sectores productivos y de servicios de la ciudad región. | E13: ∑ Programas de formación | F13: Total de programas de formación para el trabajo y desarrollo del talento humano creados | G13: 0 | H13: ='Para informe'!H13 -> 0 | I13: 3 | J13: N.A. Requiere Ajuste | K13: N.A. Requiere Ajuste | L13: 3 | M13: 10 | N13: N.A. Requiere Ajuste | O13: N.A. Requiere Ajuste | P13: 10
C14: 8 | D14: Lograr que 20% de la oferta académica de pregrado y posgrado permita la doble titulación o cotitulación. | E14: (Pdt/c)/TP∗100 | F14: Porcentaje de proyectos curriculares con acuerdos de cotitulación y/o doble titulación. | G14: 0.013 | H14: ='Para informe'!H14 -> 0.02325581395 | I14: 0.06930693069 | J14: 0.3355481728 | K14: 0.3355481728 | L14: 0.04605111674 | M14: 0.2 | N14: 0.1162790698 | O14: 0.1162790698 | P14: 0.176744186
C15: 9 | D15: Aumentar el índice de movilidad internacional anual mínimo al 1,3% de la población estudiantil. | E15: EstM/(T.EST)∗100 | F15: Porcentaje de estudiantes en procesos de movilidad Internacional | G15: 0.0024 | H15: ='Para informe'!H15 -> 0.004308852383 | I15: 0.0035 | J15: 1.231100681 | K15: 1 | L15: -0.0008088523833 | M15: 0.013 | N15: =H15/M15 -> 0.3314501833 | O15: =H15/M15 -> 0.3314501833 | P15: =M15-H15 -> 0.008691147617
C16: 10 | D16: Aumentar el índice de movilidad internacional anual mínimo al 5 % de la planta docente. | E16: DocM/(T.DOC)∗100 | F16: Porcentaje de docentes en procesos de movilidad Internacional | G16: 0.005 | H16: ='Para informe'!H16 -> 0.007668711656 | I16: 0.019 | J16: 0.403616403 | K16: =H16/I16 -> 0.403616403 | L16: 0.01133128834 | M16: 0.05 | N16: =H16/M16 -> 0.1533742331 | O16: =H16/M16 -> 0.1533742331 | P16: 0.04233128834
C17: 11 | D17: Lograr que el 60% de estudiantes tengan un dominio de una segunda lengua en un nivel equivalente a B2. | E17: (Est.B2)/(T.EST)∗100 | F17: Porcentaje de estudiantes que tienen un dominio intermedio de una segunda lengua según el MCRE | G17: 0.3628 | H17: ='Para informe'!H17 -> 0.1142 | I17: 0.42 | J17: =H17/I17 -> 0.2719047619 | K17: 0.2719047619 | L17: 0.3058 | M17: 0.6 | N17: 0.1903333333 | O17: 0.1903333333 | P17: 0.4858
C18: 12 | D18: Apoyar a estudiantes de los colegios distritales ubicados en el área de influencia de las sedes de la Universidad, con programas de fortalecimiento de competencias básicas en: matemáticas, ciencias naturales, lectura crítica e inglés. | E18: ∑ Estudiantes apoyados en CB | F18: Número acumulado de estudiantes de IED apoyados por la Universidad | G18: 0 | H18: 11170 | I18: 6000 | J18: 1.861666667 | K18: 1 | L18: -5170 | M18: 20000 | N18: 0.5585 | O18: 0.5585 | P18: =M18-H18 -> 8830
C19: 13 | D19: Disminuir la tasa de deserción anual al 9% | E19: EAE/EA∗100 | F19: Porcentaje de estudiantes que no se han matriculado por dos periodos consecutivos (desertor anual) | G19: 0.095 | H19: ='Para informe'!H19 -> 0.1115706454 | I19: 0.0935 | J19: =(100%-((H19-I19)/H19)) -> 0.8380340517 | K19: 0.838 | L19: =H19-I19 -> 0.01807064538 | M19: 0.09 | N19: =(100%-((H19-M19)/H19)) -> 0.8066637931 | O19: 0.807 | P19: =H19-M19 -> 0.02157064538
C20: 14 | D20: Modernizar la organización académica y administrativa de la institución. | E20: Reforma Organizacional Aprobada por Consejo Superior | F20: Reforma Organizacional Aprobada por Consejo Superior | G20: - | H20: Reforme Orgánica sin implementar | I20: Reforme Orgánica implementada | J20: 0 | K20: 0 | L20: Reforme Orgánica implementada | M20: Reforme Orgánica implementada | N20: 0 | O20: 0
B21: Lineamiento Estratégico 2 | C21: 15 | D21: Evaluar, revisar y reformular la oferta curricular de pregrado y posgrado de cada facultad, en el marco de los procesos de autoevaluación continua y los proyectos educativos de las facultades. | E21: ∑ Programas evaluados curricularmente | F21: Número de proyectos curriculares evaluados y actualizados | G21: 81 | H21: ='Para informe'!H27 -> 81 | I21: 101 | J21: 0.801980198 | K21: =H21/I21 -> 0.801980198 | L21: 20 | M21: 104 | N21: 0.7788461538 | O21: =H21/M21 -> 0.7788461538 | P21: 23
C22: 16 | D22: Aumentar la tasa de graduación en pregrados al 70% | E22: ETE/EC∗100 | F22: Porcentaje de estudiantes que se han graduado en máximo dos periodos adicionales a los establecidos en el plan de estudios (Tasa de eficiencia en la titulación) | G22: 0.4 | H22: ='Para informe'!H28 -> 0.8752904725 | I22: 0.48 | J22: 1.823521818 | K22: 1 | L22: -0.3952904725 | M22: 0.7 | N22: 1.250414961 | O22: 1 | P22: 0
C23: 17 | D23: Alcanzar una cobertura en el 70 % de los docentes en el manejo de tecnologías de la información y comunicación. | E23: (D.TI)/(T.DOC)∗100 | F23: Porcentaje de docentes con manejo de las TI | G23: Sin medición | H23: ='Para informe'!H29 -> 0.6507614213 | I23: 0.15 | J23: =H23/I23 -> 4.338409475 | K23: 1 | L23: -0.5007614213 | M23: 0.7 | N23: 0.93 | O23: =H23/M23 -> 0.9296591733 | P23: 0.04923857868
C24: 18 | D24: Lograr que el 40 % de los docentes de planta manejen lenguajes que permitan garantizar la atención de comunidades en el marco de la política de inclusión. | E24: (D.LI)/(T.DOC)∗100 | F24: Porcentaje de docentes con manejo de lenguajes Inclusivos | G24: Sin medición | H24: ='Para informe'!H30 -> 0 | I24: 0.1 | J24: N.A. Requiere Ajuste | K24: N.A. Requiere Ajuste | L24: - | M24: 0.4 | N24: N.A. Requiere Ajuste | O24: N.A. Requiere Ajuste | P24: -
C25: 19 | D25: Lograr el 90% de satisfacción entre los miembros de la comunidad universitaria frente a las expectativas del bienestar estudiantil y los programas que desde allí se ofrezcan. | E25: (∑ Calificaciones) / (T.EST) | F25: Promedio de satisfacción de los estudiantes a los servicios ofrecidos | G25: Sin medición | H25: ='Para informe'!H31 -> 0.859 | I25: 0.45 | J25: 0 | K25: 1 | L25: -0.409 | M25: 0.9 | N25: 0 | O25: =H25/M25 -> 0.9544444444 | P25: 0.041
B26: Lineamiento Estratégico 3 | C26: 20 | D26: Clasificarse entre las 5 mejores IES colombianas según indicadores en investigación. | E26: Puesto según Rankings: US= Usapiens WM= Webometrics ScN= Scimago Nacional ScW= Scimago Internacional | F26: Puesto según Rankings: US= Usapiens WM= Webometrics ScN= Scimago Nacional ScW= Scimago Internacional | G26: US= 16 WM= 18 ScN= 15 ScW= 758 | H26: ='Para informe'!H39 -> US=14 WM=15 SCN=21 SCW=746 | I26: US= 12 WM= 12 ScN= 15 ScW= 700 | J26: US= 85,7% WM= 80% ScN= 71,4% ScW= 93,8% Promedio= 82,7% | K26: 0.827 | L26: US= -2 WM= -3 ScN= -6 ScW= -46 | M26: US= 5 WM= 5 ScN= 5 ScW= 600 | N26: US= 35,7% WM= 33,3% ScN= 23,8% ScW= 80,4% Promedio= 43,3% | O26: 0.433 | P26: US= -7 WM= -10 ScN= -16 ScW= -146
C27: 21 | D27: Aumentar el porcentaje de revistas científicas indexadas al 100%. | E27: (TR.i)/TR∗100 | F27: Porcentaje de revistas institucionales con algún nivel de indexación con COLCIENCIAS-PUBLINDEX | G27: 0.33 | H27: ='Para informe'!H40 -> 0.3157894737 | I27: 0.54 | J27: 0.5847953216 | K27: =H27/I27 -> 0.5847953216 | L27: 0.2242105263 | M27: 1 | N27: 0.3157894737 | O27: =H27/M27 -> 0.3157894737 | P27: 0.6842105263
C28: 22 | D28: Aumentar la producción científica anual publicada en revistas indexadas. | E28: ∑ Artículos indexados en SCOPUS | F28: Número de artículos científicos indexados en SCOPUS | G28: 208 | H28: ='Para informe'!H41 -> 222 | I28: 315 | J28: 0.7047619048 | K28: =H28/I28 -> 0.7047619048 | L28: 93 | M28: 550 | N28: 0.4036363636 | O28: 0.4036363636 | P28: 328
C29: 23 | D29: Crear al menos 3 empresas spin-off, 15 empresas incubadas e institutos de investigación e innovación. | E29: ∑ de Spinoffs y Start Ups Operativos | F29: Número de Spin Offs y Start ups operativos | G29: 0 | H29: ='Para informe'!H42 -> 0 | I29: 4 | J29: 0 | K29: 0 | L29: 4 | M29: 20 | N29: 0 | O29: 0 | P29: 20
C30: 24 | D30: Incrementar los proyectos de cofinanciación externa en 45%, cuyos recursos provengan de organismos internacionales, los sistemas de ciencia tecnología e innovación; sistema nacional de regalías y, de aquellos en los que tengan interés las entidades estatales con capacidad de financiación. | E30: ∑ Proyectos de cofinanciación | F30: Número de proyectos cofinanciados entre la Universidad y otras entidades | G30: 17 | H30: ='Para informe'!H43 -> 17 | I30: 22 | J30: 0.7727272727 | K30: 0.7727272727 | L30: 5 | M30: 25 | N30: 0.68 | O30: 0.68 | P30: 8
C31: 25 | D31: Lograr el pleno apoyo a la investigación, la creación, la formación, la innovación y el incremento de la productividad y competitividad de las empresas de la ciudad región, por medio de convenios de cooperación con los diferentes sectores. | E31: ∑ Convenios de la Universidad | F31: Número de convenios entre la Universidad y otras entidades | G31: 0 | H31: ='Para informe'!H44 -> 2 | I31: 2 | J31: 1 | K31: 1 | L31: 0 | M31: 5 | N31: 0.4 | O31: 0.4 | P31: 3
C32: 26 | D32: Aumentar al 50 % el número de docentes con Doctorado. | E32: DDOC/(T.DOC)∗100 | F32: Porcentaje de docentes con doctorado | G32: 0.18 | H32: ='Para informe'!H45 -> 0.3604294479 | I32: 0.3 | J32: 1.201431493 | K32: 1 | L32: -0.06042944785 | M32: 0.5 | N32: 0.7208588957 | O32: 0.7208588957 | P32: 0.1395705521
B33: Lineamiento Estratégico 4 | C33: 27 | D33: Ampliar, mejorar y modernizar física, tecnológica y ambientalmente la infraestructura, esto de acuerdo con la proyección de la cobertura y las políticas de inclusión. | E33: ∑ Metros cuadrados (m2) construidos | F33: Total de metros cuadrados (m2) construidos | G33: ='Base L4'!O6 -> 104609 | H33: ='Para informe'!H52 -> 104609 | I33: 116509 | J33: 0.8978619677 | K33: 0.8978619677 | L33: 11900 | M33: 183609 | N33: 0.5697378669 | O33: 0.5697378669 | P33: 79000
C34: 28 | D34: Consolidar cuatro centros de recursos para el aprendizaje y la investigación -CRAI-. | E34: ∑ CRAI Consolidados | F34: Número de CRAI consolidados | G34: ='Base L4'!O7 -> 0 | H34: ='Para informe'!H53 -> 1 | I34: 2 | J34: 0.5 | K34: 0.5 | L34: 1 | M34: 4 | N34: 0.25 | O34: 0.25 | P34: 3
C35: 29 | D35: Fortalecer las competencias de los servidores públicos al servicio de la institución, en beneficio del cumplimiento de las funciones institucionales. | E35: Evaluación del desempeño laboral implementada | F35: Evaluación del desempeño laboral implementada | G35: - | H35: Evaluación del desempeño sin implementar | I35: Evaluación del desempeño laboral implementada | J35: 0 | K35: 0 | M35: Evaluación del desempeño laboral implementada | N35: 0 | O35: 0
C36: 30 | D36: Aumentar al 100 % la vinculación de empleados administrativos conforme al sistema de carrera administrativa. | E36: (E.Carr) / (T. Emp) * 100 | F36: Porcentaje de empleados que están nombrados dentro de la carrera administrativa | G36: ='Base L4'!O9 -> 0.26 | H36: ='Para informe'!H55 -> 0.3160621762 | I36: 1 | J36: 0.3160621762 | K36: =H36/I36 -> 0.3160621762 | L36: 0.6839378238 | M36: 1 | N36: 0.3160621762 | O36: =H36/M36 -> 0.3160621762 | P36: 0.6839378238
C37: 31 | D37: Aumentar el número de docentes de planta en un 45% y disminuir la vinculación especial en un 10%. | E37: ∑ Docentes nombrados de planta | F37: Número de docentes de planta nombrados | G37: ='Base L4'!O10 -> 645 | H37: ='Para informe'!H56 -> 652 | I37: 750 | J37: 0.8693333333 | K37: 0.8693333333 | L37: 98 | M37: 980 | N37: 0.6653061224 | O37: 0.6653061224 | P37: 328
C38: 32 | D38: Generar una cultura institucional que respete las diferencias y garantice el bienestar de las personas en situación de discapacidad. | E38: (D/A.LenAcc) / (T.DOC/Adm)∗100 | F38: Porcentaje de docentes y administrativos (de planta) capacitados en lenguajes accesibles | G38: ='Base L4'!O11 -> 0 | H38: ='Para informe'!H57 -> 0 | I38: 0.05 | J38: N.A. Requiere Ajuste | K38: N.A. Requiere Ajuste | L38: - | M38: 0.3 | N38: N.A. Requiere Ajuste | O38: N.A. Requiere Ajuste | P38: -
B39: Lineamiento Estratégico 5 | C39: 33 | D39: Implementar los dominios identificados en el marco de referencia IT 4+ establecidos por MinTIC | E39: ∑ Dominios implementados según Marco de referencia IT4+ | F39: Dominios implementados según Marco de referencia IT4+ | G39: 0 | H39: ='Para informe'!H64 -> 0 | I39: 6 | J39: N.A. Requiere Ajuste | K39: N.A. Requiere Ajuste | L39: - | M39: 6 | N39: N.A. Requiere Ajuste | O39: N.A. Requiere Ajuste | P39: -
C40: 34 | D40: Alcanzar la implementación del cuarto componente de Gobierno en Línea (Seguridad y privacidad de la información). | E40: (A.GEL Imp)/(Total de A.GEL)∗100 | F40: Porcentaje de implementación del componente de Gobierno en Línea. | G40: 0.06 | H40: ='Para informe'!H65 -> 0 | I40: 1 | J40: N.A. Requiere Ajuste | K40: N.A. Requiere Ajuste | L40: - | M40: 1 | N40: N.A. Requiere Ajuste | O40: N.A. Requiere Ajuste | P40: -
C41: 35 | D41: Lograr la calidad y disponibilidad del 100% de la información institucional, que no tenga restricción constitucional ni legal. | E41: (Información disponible en la web)/(Total de información de la Universidad)∗100 | F41: Porcentaje de información disponible en la página web | G41: 1 | H41: ='Para informe'!H66 -> 0.921 | I41: 1 | J41: 0.921 | K41: 0.921 | L41: 0.079 | M41: 1 | N41: 0.921 | O41: 0.921 | P41: 0.079
C42: 36 | D42: Implementar mecanismos de participación, de los diferentes estamentos, de la comunidad universitaria, en las instancias de planeación, gestión, seguimiento y evaluación de la Universidad. | E42: (Instancias participando efectivamente)/(Total de instancias de la Universidad)∗100 | F42: Porcentaje de instancias de planeación, seguimiento , evaluación y gestión con participación efectiva de los estamentos de la Comunidad Universitaria | G42: Sin medición | H42: ='Para informe'!H67 -> 0.8829787234 | I42: 1 | J42: 0.8829787234 | K42: 0.8829787234 | L42: 0.1170212766 | M42: 1 | N42: 0.8829787234 | O42: 0.8829787234 | P42: 0.1170212766
C43: 37 | D43: Lograr un nivel de satisfacción mínimo del 80% por parte de las personas que utilizan los servicios de la Universidad. | E43: (Usuario≥4 y 5)/(T.Usuarios)∗100 | F43: Porcentaje de usuarios que califican con 4 o 5 los servicios ofrecidos por la Universidad | G43: Sin medición | H43: ='Para informe'!H68 -> 0.9315 | I43: 0.6 | J43: =H43/I43 -> 1.5525 | K43: 1 | L43: -0.3315 | M43: 0.8 | N43: =H43/M43 -> 1.164375 | O43: 1 | P43: 0
C44: 38 | D44: Actualizar, compilar, depurar y difundir el 100% de las normas expedidas por las autoridades institucionales. | E44: (Normatividad verificada)/(Total de normatividad expedida por la UD)∗100 | F44: Porcentaje de verificación de la vigencia de la normatividad interna | G44: Sin medición | H44: ='Para informe'!H69 -> 1 | I44: 0.4 | J44: 2.5 | K44: 1 | L44: -0.6 | M44: 1 | N44: 1 | O44: 1 | P44: 0
C45: 39 | D45: Actualizar, simplificar y flexibilizar anualmente la operación de los procesos institucionales en el cumplimiento de las funciones universitarias. | E45: (Procesos Actualizados)/(Total de procesos)∗100 | F45: Porcentaje de actualización de Procesos SIGUD | G45: 1 | H45: ='Para informe'!H70 -> 0.5909090909 | I45: 1 | J45: 0.5909090909 | K45: 0.5909090909 | L45: 0.4090909091 | M45: 1 | N45: 0.5909090909 | O45: 0.5909090909 | P45: 0.4090909091
C46: 40 | D46: Establecer la adecuada asignación de funciones, competencias, seguridad jurídica y equilibrio institucional en la organización, gobierno y gestión de la Universidad. | E46: (Normas actualizadas)/(Total de normas estatutarias)∗100 | F46: Porcentaje de normas estatutarias actualizadas. | G46: 0 | H46: ='Para informe'!H71 -> 0 | I46: 1 | J46: 0 | K46: 0 | L46: 1 | M46: 1 | N46: 0 | O46: 0 | P46: 1
C47: 41 | D47: Conseguir la publicación oportuna y completa de toda la información relacionada con el principio de transparencia y derecho de acceso a información pública, de acuerdo con la Ley 1712 de 2014. | E47: (Información publicada)/(Información publicable según ley)∗100 | F47: Porcentaje de información publicada según la ley 1712 de 2014 | G47: Sin medición | H47: ='Para informe'!H72 -> 0.921 | I47: 0.55 | J47: 1.674545455 | K47: 1 | L47: -0.371 | M47: 1 | N47: 0.921 | O47: 0.921 | P47: 0.079
C48: 42A | D48: Lograr indicadores de cero corrupción en la gestión institucional. | E48: PAAC de cada Vigencia | F48: PAAC de cada Vigencia | G48: PAAC | H48: ='Para informe'!H73 -> PAAC | I48: PAAC de cada vigencia | J48: =3/4 -> 0.75 | K48: =(75%+160%)/3 -> 0.7833333333 | L48: 1 PAAC | M48: PAAC de cada Vigencia | N48: =3/12 -> 0.25 | O48: =(25%+140%)/3 -> 0.55 | P48: =9 -> 9
C49: 42B | E49: ∑ Número de canales de atención en las localidades de Bogotá | F49: Número de canales de atención en las localidades de Bogotá | G49: 6 | H49: ='Para informe'!H74 -> 6 | I49: 10 | J49: 0.6 | K49: =H49/I49 -> 0.6 | L49: 4 | M49: 15 | N49: 0.4 | O49: =H49/M49 -> 0.4 | P49: 9
C50: 42C | E50: ∑ Número de rendiciones de cuentas realizadas a la comunidad anualmente | F50: Número de rendiciones de cuentas realizadas a la comunidad anualmente | G50: 1 | H50: ='Para informe'!H75 -> 1 | I50: 1 | J50: 1 | K50: =H50/I50 -> 1 | L50: 0 | M50: 1 | N50: 1 | O50: =H50/M50 -> 1 | P50: 0
K51: =AVERAGE(K7:K48) -> 0.7243558206 | O51: =AVERAGE(O7:O48) -> 0.5596640596
H57: Avance Plan Indicativo 2018-2021 | I57: Avance Plan Estratégico de Desarrollo 2018-2030
G58: Lineamiento Estratégico 1 | H58: =AVERAGE(K7:K20) -> 0.7191093876 | I58: =AVERAGE(O7:O20) -> 0.4941801324
G59: Lineamiento Estratégico 2 | H59: =AVERAGE(K21:K25) -> 0.9504950495 | I59: =AVERAGE(O21:O25) -> 0.9157374429
G60: Lineamiento Estratégico 3 | H60: =AVERAGE(K26:K32) -> 0.6984692142 | I60: =AVERAGE(O26:O32) -> 0.421897819
G61: Lineamiento Estratégico 4 | H61: =AVERAGE(K33:K38) -> 0.5166514954 | I61: =AVERAGE(O33:O38) -> 0.3602212331
G62: Lineamiento Estratégico 5 | H62: =AVERAGE(K39:K48) -> 0.7722776435 | I62: =AVERAGE(O39:O48) -> 0.7332359768
H63: =AVERAGE(H58:H62) -> 0.731400558 | I63: =AVERAGE(I58:I62) -> 0.5850545208
H64: =100%-H63 -> 0.268599442 | I64: =100%-I63 -> 0.4149454792
E84: Reporte | F84: Meta
E85: US= 14 | F85: US= 12 | G85: US | H85: =1-((14-12)/(14)) -> 0.8571428571
E86: WM= 15 | F86: WM= 12 | G86: WM | H86: =1-((15-12)/(15)) -> 0.8 | K86: =(1-((11.16%-9.4%)/(11.16%))) -> 0.8422939068
E87: SCN= 21 | F87: SCN= 15 | G87: SCN | H87: =1-((21-15)/(21)) -> 0.7142857143
E88: SCW= 746 | F88: SCW= 700 | G88: SCW | H88: =1-((746-700)/(746)) -> 0.9383378016
H89: =AVERAGE(H85:H88) -> 0.8274415933
E90: US= 14 | F90: US= 5 | G90: US | H90: =1-((14-5)/(14)) -> 0.3571428571
E91: WM= 15 | F91: WM= 5 | G91: WM | H91: =1-((15-5)/(15)) -> 0.3333333333
E92: SCN= 21 | F92: SCN= 5 | G92: SCN | H92: =1-((21-5)/(21)) -> 0.2380952381
E93: SCW= 746 | F93: SCW= 600 | G93: SCW | H93: =1-((746-600)/(746)) -> 0.8042895442
H94: =AVERAGE(H90:H93) -> 0.4332152432

Sheet Para informe (hidden)
B3: Lineamiento Estratégico 1
B5: Información del indicador | G5: Información del indicador | L5: Información del indicador | T5: Cumplimiento
B6: N° | C6: Meta | D6: Indicador | E6: Unidad de medida | F6: Linea base (2017) | G6: Metas 2020 | H6: Reportado 2020 | I6: % cumplimiento 2020 | L6: Metas 2020 | M6: Reportado 2020 | N6: % cumplimiento 2020 | P6: N° | Q6: Meta | T6: % cumplimiento 2020
B7: 1 | C7: Mantener y elevar la acreditación institucional de alta calidad y alcanzar el reconocimiento internacional. | D7: Documento de Resolución MEN Acreditación Institucional | E7: Documento de Resolución MEN Acreditación Institucional | F7: Universidad Acreditada | G7: Universidad Acreditada | H7: Universidad Acreditada | I7: 1 | L7: =G7 -> Universidad Acreditada | M7: =H7 -> Universidad Acreditada | N7: =IF(I7>100%,100%,I7) -> 1 | P7: 1 | Q7: Mantener y elevar la acreditación institucional de alta calidad y alcanzar el reconocimiento internacional. | R7: =P7&". "&Q7 -> 1. Mantener y elevar la acreditación institucional de alta calidad y alcanzar el reconocimiento internacional. | S7: ="Meta "&P7 -> Meta 1 | T7: =N7 -> 1
B8: 2 | C8: Aumentar el 34% en el número de estudiantes de pregrado matriculados. | D8: (M1semPre + M2semPre)/2 | E8: Número de estudiantes matriculados en pregrado | F8: 23862 | G8: 27108 | H8: ='Base L1'!V7 -> 25992.5 | I8: ='Base L1'!W7 -> 0.958849786 | L8: 27108 | M8: 25992.5 | N8: =IF(I8>100%,100%,I8) -> 0.958849786 | P8: 2 | Q8: Aumentar el 34% en el número de estudiantes de pregrado matriculados. | R8: =P8&". "&Q8 -> 2. Aumentar el 34% en el número de estudiantes de pregrado matriculados. | S8: ="Meta "&P8 -> Meta 2 | T8: 0.958849786
B9: 3 | C9: Aumentar el 65% de estudiantes matriculados en posgrado. | D9: (M1semPos + M2semPos )/2 | E9: Numero de estudiantes matriculados en posgrado | F9: 2972 | G9: 3417 | H9: ='Base L1'!V8 -> 3274 | I9: ='Base L1'!W8 -> 0.9581504243 | L9: 3417 | M9: 3274 | N9: 0.9581504243 | P9: 3 | Q9: Aumentar el 65% de estudiantes matriculados en posgrado. | R9: 3. Aumentar el 65% de estudiantes matriculados en posgrado. | S9: Meta 3 | T9: 0.9581504243
B10: 4 | C10: Aumentar en 28% el número de programas en todos los niveles y modalidades. | D10: Σ Programas con registro calificado | E10: Total de programas con registro calificado vigente | F10: 81 | G10: 94 | H10: ='Base L1'!V9 -> 88 | I10: ='Base L1'!W9 -> 0.9361702128 | L10: 94 | M10: 88 | N10: 0.9361702128 | P10: 4 | Q10: Aumentar en 28% el número de programas en todos los niveles y modalidades. | R10: 4. Aumentar en 28% el número de programas en todos los niveles y modalidades. | S10: Meta 4 | T10: 0.9361702128
B11: 5 | C11: Lograr homologación y transferencia del 100% de la oferta académica de la Universidad entre sus diferentes niveles de formación. | D11: (Phom/TP)*100 | E11: Porcentaje de programas que posean algún grado de homologación con otros programas internos o de otras Universidades nacionales o del exterior | F11: 0 | G11: 0.15 | H11: ='Base L1'!V10 -> 0.9534883721 | I11: ='Base L1'!W10 -> 6.356589147 | L11: 0.15 | M11: 0.9534883721 | N11: 1 | P11: 5 | Q11: Lograr homologación y transferencia del 100% de la oferta académica de la Universidad entre sus diferentes niveles de formación. | R11: 5. Lograr homologación y transferencia del 100% de la oferta académica de la Universidad entre sus diferentes niveles de formación. | S11: Meta 5 | T11: 1
B12: 6 | C12: Lograr que los proyectos de extensión respondan a la interacción entre las problemáticas del entorno y los procesos de investigación, y que sus resultados vinculen e impacten comunidades de la ciudad y la región. | D12: PePs/Pe∗100 | E12: Porcentaje de Proyectos de Extensión que responden a problemáticas de las comunidades | F12: 0.33 | G12: 0.39 | H12: ='Base L1'!V11 -> 0.3272727273 | I12: ='Base L1'!W11 -> 0.8391608392 | L12: 0.39 | M12: 0.3272727273 | N12: 0.8391608392 | P12: 6 | Q12: Lograr que los proyectos de extensión respondan a la interacción entre las problemáticas del entorno y los procesos de investigación, y que sus resultados vinculen e impacten comunidades de la ciudad y la región. | R12: 6. Lograr que los proyectos de extensión respondan a la interacción entre las problemáticas del entorno y los procesos de investigación, y que sus resultados vinculen e impacten comunidades de la ciudad y la región. | S12: Meta 6 | T12: 0.8391608392
B13: 7 | C13: Aumentar la oferta en 10 programas de formación para el trabajo y desarrollo del talento humano en correspondencia con las necesidades de los sectores productivos y de servicios de la ciudad región. | D13: ∑ Programas de formación | E13: Total de programas de formación para el trabajo y desarrollo del talento humano creados | F13: 0 | G13: 2 | H13: ='Base L1'!V12 -> 0 | I13: ='Base L1'!W12 -> 0 | L13: 2 | M13: 0 | N13: No Aplica Requiere ajuste | P13: 7 | Q13: Aumentar la oferta en 10 programas de formación para el trabajo y desarrollo del talento humano en correspondencia con las necesidades de los sectores productivos y de servicios de la ciudad región. | R13: 7. Aumentar la oferta en 10 programas de formación para el trabajo y desarrollo del talento humano en correspondencia con las necesidades de los sectores productivos y de servicios de la ciudad región. | S13: Meta 7 | T13: No Aplica Requiere ajuste
B14: 8 | C14: Lograr que 20% de la oferta académica de pregrado y posgrado permita la doble titulación o cotitulación. | D14: (Pdt/c)/TP∗100 | E14: Porcentaje de proyectos curriculares con acuerdos de cotitulación y/o doble titulación. | F14: 0.013 | G14: 0.04255319149 | H14: ='Base L1'!V13 -> 0.02325581395 | I14: ='Base L1'!W13 -> 0.5465116279 | L14: 0.04255319149 | M14: 0.02325581395 | N14: 0.5465116279 | P14: 8 | Q14: Lograr que 20% de la oferta académica de pregrado y posgrado permita la doble titulación o cotitulación. | R14: 8. Lograr que 20% de la oferta académica de pregrado y posgrado permita la doble titulación o cotitulación. | S14: Meta 8 | T14: 0.5465116279
B15: 9 | C15: Aumentar el índice de movilidad internacional anual mínimo al 1,3% de la población estudiantil. | D15: EstM/(T.EST)∗100 | E15: Porcentaje de estudiantes en procesos de movilidad Internacional | F15: 0.0024 | G15: 0.0035 | H15: ='Base L1'!V14 -> 0.004308852383 | I15: ='Base L1'!W14 -> 1.231100681 | L15: 0.0035 | M15: 0.004308852383 | N15: 1 | P15: 9 | Q15: Aumentar el índice de movilidad internacional anual mínimo al 1,3% de la población estudiantil. | R15: 9. Aumentar el índice de movilidad internacional anual mínimo al 1,3% de la población estudiantil. | S15: Meta 9 | T15: 1
B16: 10 | C16: Aumentar el índice de movilidad internacional anual mínimo al 5 % de la planta docente. | D16: DocM/(T.DOC)∗100 | E16: Porcentaje de docentes en procesos de movilidad Internacional | F16: 0.005 | G16: 0.015 | H16: ='Base L1'!V15 -> 0.007668711656 | I16: ='Base L1'!W15 -> 0.5112474438 | L16: 0.015 | M16: 0.007668711656 | N16: 0.5112474438 | P16: 10 | Q16: Aumentar el índice de movilidad internacional anual mínimo al 5 % de la planta docente. | R16: 10. Aumentar el índice de movilidad internacional anual mínimo al 5 % de la planta docente. | S16: Meta 10 | T16: 0.5112474438
B17: 11 | C17: Lograr que el 60% de estudiantes tengan un dominio de una segunda lengua en un nivel equivalente a B2. | D17: (Est.B2)/(T.EST)∗100 | E17: Porcentaje de estudiantes que tienen un dominio intermedio de una segunda lengua según el MCRE | F17: 0.3628 | G17: 0.4 | H17: ='Base L1'!V16 -> 0.1142 | I17: ='Base L1'!W16 -> 0.2855 | L17: 0.4 | M17: 0.1142 | N17: 0.2855 | P17: 11 | Q17: Lograr que el 60% de estudiantes tengan un dominio de una segunda lengua en un nivel equivalente a B2. | R17: 11. Lograr que el 60% de estudiantes tengan un dominio de una segunda lengua en un nivel equivalente a B2. | S17: Meta 11 | T17: 0.2855
B18: 12 | C18: Apoyar a estudiantes de los colegios distritales ubicados en el área de influencia de las sedes de la Universidad, con programas de fortalecimiento de competencias básicas en: matemáticas, ciencias naturales, lectura crítica e inglés. | D18: ∑ Estudiantes apoyados en CB | E18: Número acumulado de estudiantes de IED apoyados por la Universidad | F18: 0 | G18: 4000 | H18: ='Base L1'!V17 -> 1806 | I18: ='Base L1'!W17 -> 0.4515 | L18: 4000 | M18: =H18 -> 1806 | N18: 0.4515 | P18: 12 | Q18: Apoyar a estudiantes de los colegios distritales ubicados en el área de influencia de las sedes de la Universidad, con programas de fortalecimiento de competencias básicas en: matemáticas, ciencias naturales, lectura crítica e inglés. | R18: 12. Apoyar a estudiantes de los colegios distritales ubicados en el área de influencia de las sedes de la Universidad, con programas de fortalecimiento de competencias básicas en: matemáticas, ciencias naturales, lectura crítica e inglés. | S18: Meta 12 | T18: 0.4515
B19: 13 | C19: Disminuir la tasa de deserción anual al 9% | D19: EAE/EA∗100 | E19: Porcentaje de estudiantes que no se han matriculado por dos periodos consecutivos (desertor anual) Fuente: SPADIES | F19: 0.095 | G19: 0.094 | H19: ='Base L1'!V18 -> 0.1115706454 | I19: 0.842 | L19: 0.094 | M19: 0.1115706454 | N19: 0.842 | P19: 13 | Q19: Disminuir la tasa de deserción anual al 9% | R19: 13. Disminuir la tasa de deserción anual al 9% | S19: Meta 13 | T19: 0.842
B20: 14 | C20: Modernizar la organización académica y administrativa de la institución. | D20: Reforma Organizacional Aprobada por Consejo Superior | E20: Reforma Organizacional Aprobada por Consejo Superior | F20: - | G20: 0 | H20: ='Base L1'!V19 -> 0 | I20: ='Base L1'!W19 -> 0 | L20: 0 | M20: 0 | N20: 0 | P20: 14 | Q20: Modernizar la organización académica y administrativa de la institución. | R20: 14. Modernizar la organización académica y administrativa de la institución. | S20: Meta 14 | T20: 0
I21: =AVERAGE(I7:I20) -> 1.065484297 | L21: 0 | M21: 0 | N21: =(SUM(N7:N12)+SUM(N14:N20))/13 -> 0.7176223334 | S21: Promedio | T21: =N21 -> 0.7176223334
B23: Lineamiento Estratégico 2
B25: Información del indicador | G25: Información del indicador | L25: Información del indicador
B26: N° | C26: Meta | D26: Indicador | E26: Unidad de medida | F26: Linea base (2017) | G26: Metas 2020 | H26: Reportado 2020 | I26: % cumplimiento 2020 | L26: Metas 2020 | M26: Reportado 2020 | N26: % cumplimiento 2020 | P26: N° | Q26: Meta | T26: % cumplimiento 2020
B27: 15 | C27: Evaluar, revisar y reformular la oferta curricular de pregrado y posgrado de cada facultad, en el marco de los procesos de autoevaluación continua y los proyectos educativos de las facultades. | D27: ∑ Programas evaluados curricularmente | E27: Número de proyectos curriculares evaluados y actualizados | F27: 81 | G27: 94 | H27: ='Base L2'!V6 -> 81 | I27: ='Base L2'!W6 -> 0.8617021277 | L27: =G27 -> 94 | M27: =H27 -> 81 | N27: =IF(I27>100%,100%,I27) -> 0.8617021277 | P27: 15 | Q27: Evaluar, revisar y reformular la oferta curricular de pregrado y posgrado de cada facultad, en el marco de los procesos de autoevaluación continua y los proyectos educativos de las facultades. | R27: =P27&". "&Q27 -> 15. Evaluar, revisar y reformular la oferta curricular de pregrado y posgrado de cada facultad, en el marco de los procesos de autoevaluación continua y los proyectos educativos de las facultades. | S27: ="Meta "&P27 -> Meta 15 | T27: =N27 -> 0.8617021277
B28: 16 | C28: Aumentar la tasa de graduación en pregrados al 70% | D28: ETE/EC∗100 | E28: Porcentaje de estudiantes que se han graduado en máximo dos periodos adicionales a los establecidos en el plan de estudios (Tasa de eficiencia en la titulación) | F28: 0.4 | G28: 0.46 | H28: ='Base L2'!V7 -> 0.8752904725 | I28: ='Base L2'!W7 -> 1.902805375 | L28: =G28 -> 0.46 | M28: =H28 -> 0.8752904725 | N28: =IF(I28>100%,100%,I28) -> 1 | P28: 16 | Q28: Aumentar la tasa de graduación en pregrados al 70% | R28: =P28&". "&Q28 -> 16. Aumentar la tasa de graduación en pregrados al 70% | S28: Meta 16 | T28: 1
B29: 17 | C29: Alcanzar una cobertura en el 70 % de los docentes en el manejo de tecnologías de la información y comunicación. | D29: (D.TI)/(T.DOC)∗100 | E29: Porcentaje de docentes con manejo de las TI | F29: Sin medición | G29: 0.1 | H29: ='Base L2'!V8 -> 0.6507614213 | I29: ='Base L2'!W8 -> 6.507614213 | L29: 0.05 | M29: 0 | N29: 1 | P29: 17 | Q29: Alcanzar una cobertura en el 70 % de los docentes en el manejo de tecnologías de la información y comunicación. | R29: 17. Alcanzar una cobertura en el 70 % de los docentes en el manejo de tecnologías de la información y comunicación. | S29: Meta 17 | T29: 1
B30: 18 | C30: Lograr que el 40 % de los docentes de planta manejen lenguajes que permitan garantizar la atención de comunidades en el marco de la política de inclusión. | D30: (D.LI)/(T.DOC)∗100 | E30: Porcentaje de docentes con manejo de lenguajes Inclusivos | F30: Sin medición | G30: 0.07 | H30: ='Base L2'!V9 -> 0 | I30: ='Base L2'!W9 -> 0 | L30: 0.03 | M30: 0 | N30: No Aplica Requiere ajuste | P30: 18 | Q30: Lograr que el 40 % de los docentes de planta manejen lenguajes que permitan garantizar la atención de comunidades en el marco de la política de inclusión. | R30: 18. Lograr que el 40 % de los docentes de planta manejen lenguajes que permitan garantizar la atención de comunidades en el marco de la política de inclusión. | S30: Meta 18 | T30: No Aplica Requiere ajuste
B31: 19 | C31: Lograr el 90% de satisfacción entre los miembros de la comunidad universitaria frente a las expectativas del bienestar estudiantil y los programas que desde allí se ofrezcan. | D31: (∑ Calificaciones) / (T.EST) | E31: Promedio de satisfacción de los estudiantes a los servicios ofrecidos | F31: Sin medición | G31: 0.4 | H31: ='Base L2'!V10 -> 0.859 | I31: ='Base L2'!W10 -> 2.1475 | L31: 0.3 | M31: 0 | N31: 1 | P31: 19 | Q31: Lograr el 90% de satisfacción entre los miembros de la comunidad universitaria frente a las expectativas del bienestar estudiantil y los programas que desde allí se ofrezcan. | R31: 19. Lograr el 90% de satisfacción entre los miembros de la comunidad universitaria frente a las expectativas del bienestar estudiantil y los programas que desde allí se ofrezcan. | S31: Meta 19 | T31: 1
G32: - | H32: - | I32: =AVERAGE(I27:I31) -> 2.283924343 | L32: =G32 -> - | M32: =H32 -> - | N32: =AVERAGE(N27:N31) -> 0.9654255319 | R32: . | T32: 0.9654255319
B35: Lineamiento Estratégico 3
B37: Información del indicador | G37: Información del indicador | L37: Información del indicador
B38: N° | C38: Meta | D38: Indicador | E38: Unidad de medida | F38: Linea base (2017) | G38: Metas 2020 | H38: Reportado 2020 | I38: % cumplimiento 2020 | L38: Metas 2020 | M38: Reportado 2020 | N38: % cumplimiento 2020 | P38: N° | Q38: Meta | T38: % cumplimiento 2020
B39: 20 | C39: Clasificarse entre las 5 mejores IES colombianas según indicadores en investigación. | D39: Puesto según Rankings: US= Usapiens WM= Webometrics ScN= Scimago Nacional ScW= Scimago Internacional | E39: Puesto según Rankings: US= Usapiens WM= Webometrics ScN= Scimago Nacional ScW= Scimago Internacional | F39: US= 16 WM= 18 ScN= 15 ScW= 758 | G39: US= 14 WM= 14 ScN= 17 ScW= 725 | H39: US=14 WM=15 SCN=21 SCW=746 | I39: 0.705 | L39: =G39 -> US= 14 WM= 14 ScN= 17 ScW= 725 | M39: =H39 -> US=14 WM=15 SCN=21 SCW=746 | N39: =I39 -> 0.705 | P39: 20 | Q39: Clasificarse entre las 5 mejores IES colombianas según indicadores en investigación. | R39: =P39&". "&Q39 -> 20. Clasificarse entre las 5 mejores IES colombianas según indicadores en investigación. | S39: ="Meta "&P39 -> Meta 20 | T39: =N39 -> 0.705
B40: 21 | C40: Aumentar el porcentaje de revistas científicas indexadas al 100%. | D40: (TR.i)/TR∗100 | E40: Porcentaje de revistas institucionales con algún nivel de indexación con COLCIENCIAS-PUBLINDEX | F40: 0.33 | G40: 0.48 | H40: ='Base L3'!V7 -> 0.3157894737 | I40: ='Base L3'!W7 -> 0.6578947368 | L40: =G40 -> 0.48 | M40: 0.3157894737 | N40: =IF(I40>100%,100%,I40) -> 0.6578947368 | P40: 21 | Q40: Aumentar el porcentaje de revistas científicas indexadas al 100%. | R40: 21. Aumentar el porcentaje de revistas científicas indexadas al 100%. | S40: Meta 21 | T40: 0.6578947368
B41: 22 | C41: Aumentar la producción científica anual publicada en revistas indexadas. | D41: ∑ Artículos indexados en SCOPUS | E41: Número de artículos científicos indexados en SCOPUS | F41: 208 | G41: 284 | H41: ='Base L3'!V8 -> 222 | I41: ='Base L3'!W8 -> 0.7816901408 | L41: 284 | M41: 222 | N41: 0.7816901408 | P41: 22 | Q41: Aumentar la producción científica anual publicada en revistas indexadas. | R41: 22. Aumentar la producción científica anual publicada en revistas indexadas. | S41: Meta 22 | T41: 0.7816901408
B42: 23 | C42: Crear al menos 3 empresas spin-off, 15 empresas incubadas e institutos de investigación e innovación. | D42: ∑ de Spinoffs y Start Ups Operativos | E42: Número de Spin Offs y Start ups operativos | F42: 0 | G42: 3 | H42: ='Base L3'!V9 -> 0 | I42: ='Base L3'!W9 -> 0 | L42: 3 | M42: 0 | N42: 0 | P42: 23 | Q42: Crear al menos 3 empresas spin-off, 15 empresas incubadas e institutos de investigación e innovación. | R42: 23. Crear al menos 3 empresas spin-off, 15 empresas incubadas e institutos de investigación e innovación. | S42: Meta 23 | T42: 0
B43: 24 | C43: Incrementar los proyectos de cofinanciación externa en 45%, cuyos recursos provengan de organismos internacionales, los sistemas de ciencia tecnología e innovación; sistema nacional de regalías y, de aquellos en los que tengan interés las entidades estatales con capacidad de financiación. | D43: ∑ Proyectos de cofinanciación | E43: Número de proyectos cofinanciados entre la Universidad y otras entidades | F43: 17 | G43: 20 | H43: ='Base L3'!V10 -> 17 | I43: ='Base L3'!W10 -> 0.85 | L43: 20 | M43: 17 | N43: 0.85 | P43: 24 | Q43: Incrementar los proyectos de cofinanciación externa en 45%, cuyos recursos provengan de organismos internacionales, los sistemas de ciencia tecnología e innovación; sistema nacional de regalías y, de aquellos en los que tengan interés las entidades estatales con capacidad de financiación. | R43: 24. Incrementar los proyectos de cofinanciación externa en 45%, cuyos recursos provengan de organismos internacionales, los sistemas de ciencia tecnología e innovación; sistema nacional de regalías y, de aquellos en los que tengan interés las entidades estatales con capacidad de financiación. | S43: Meta 24 | T43: 0.85
B44: 25 | C44: Lograr el pleno apoyo a la investigación, la creación, la formación, la innovación y el incremento de la productividad y competitividad de las empresas de la ciudad región, por medio de convenios de cooperación con los diferentes sectores. | D44: ∑ Convenios de la Universidad | E44: Número de convenios entre la Universidad y otras entidades | F44: 0 | G44: 2 | H44: ='Base L3'!V11 -> 2 | I44: ='Base L3'!W11 -> 1 | L44: 2 | M44: 2 | N44: 1 | P44: 25 | Q44: Lograr el pleno apoyo a la investigación, la creación, la formación, la innovación y el incremento de la productividad y competitividad de las empresas de la ciudad región, por medio de convenios de cooperación con los diferentes sectores. | R44: 25. Lograr el pleno apoyo a la investigación, la creación, la formación, la innovación y el incremento de la productividad y competitividad de las empresas de la ciudad región, por medio de convenios de cooperación con los diferentes sectores. | S44: Meta 25 | T44: 1
B45: 26 | C45: Aumentar al 50% el número de docentes con Doctorado. | D45: DDOC/(T.DOC)∗100 | E45: Porcentaje de docentes con doctorado | F45: 0.18 | G45: 0.28 | H45: ='Base L3'!V12 -> 0.3604294479 | I45: ='Base L3'!W12 -> 1.287248028 | L45: 0.28 | M45: 0.3604294479 | N45: 1 | P45: 26 | Q45: Aumentar al 50 % el número de docentes con Doctorado. | R45: 26. Aumentar al 50 % el número de docentes con Doctorado. | S45: Meta 26 | T45: 1
G46: ='Base L3'!O13 -> - | H46: ='Base L3'!P13 -> - | I46: =AVERAGE(I39:I45) -> 0.754547558 | L46: - | M46: - | N46: =AVERAGE(N39:N45) -> 0.7135121254 | R46: . | T46: =N46 -> 0.7135121254
B48: Lineamiento Estratégico 4
B50: Información del indicador | G50: Información del indicador | L50: Información del indicador
B51: N° | C51: Meta | D51: Indicador | E51: Unidad de medida | F51: Linea base (2017) | G51: Metas 2020 | H51: Reportado 2020 | I51: % cumplimiento 2020 | L51: Metas 2020 | M51: Reportado 2020 | N51: % cumplimiento 2020 | P51: N° | Q51: Meta | T51: % cumplimiento 2020
B52: 27 | C52: Ampliar, mejorar y modernizar física, tecnológica y ambientalmente la infraestructura, esto de acuerdo con la proyección de la cobertura y las políticas de inclusión. | D52: ∑ Metros cuadrados (m2) construidos | E52: Total de metros cuadrados (m2) construidos | F52: ='Base L4'!O6 -> 104609 | G52: 116509 | H52: ='Base L4'!V6 -> 104609 | I52: ='Base L4'!W6 -> 0.8978619677 | L52: =G52 -> 116509 | M52: 104609 | N52: =IF(I52>100%,100%,I52) -> 0.8978619677 | P52: 27 | Q52: Ampliar, mejorar y modernizar física, tecnológica y ambientalmente la infraestructura, esto de acuerdo con la proyección de la cobertura y las políticas de inclusión. | R52: =P52&". "&Q52 -> 27. Ampliar, mejorar y modernizar física, tecnológica y ambientalmente la infraestructura, esto de acuerdo con la proyección de la cobertura y las políticas de inclusión. | S52: ="Meta "&P52 -> Meta 27 | T52: =N52 -> 0.8978619677
B53: 28 | C53: Consolidar cuatro centros de recursos para el aprendizaje y la investigación -CRAI-. | D53: ∑ CRAI Consolidados | E53: Número de CRAI consolidados | F53: ='Base L4'!O7 -> 0 | G53: 1 | H53: ='Base L4'!V7 -> 1 | I53: ='Base L4'!W7 -> 1 | L53: 1 | M53: 1 | N53: 1 | P53: 28 | Q53: Consolidar cuatro centros de recursos para el aprendizaje y la investigación -CRAI-. | R53: 28. Consolidar cuatro centros de recursos para el aprendizaje y la investigación -CRAI-. | S53: Meta 28 | T53: 1
B54: 29 | C54: Fortalecer las competencias de los servidores públicos al servicio de la institución, en beneficio del cumplimiento de las funciones institucionales. | D54: Evaluación del desempeño laboral implementada | E54: Evaluación del desempeño laboral implementada | F54: - | G54: 0 | H54: ='Base L4'!V8 -> 0 | I54: ='Base L4'!W8 -> 0 | L54: 0 | M54: 0 | N54: 0 | P54: 29 | Q54: Fortalecer las competencias de los servidores públicos al servicio de la institución, en beneficio del cumplimiento de las funciones institucionales. | R54: 29. Fortalecer las competencias de los servidores públicos al servicio de la institución, en beneficio del cumplimiento de las funciones institucionales. | S54: Meta 29 | T54: 0
B55: 30 | C55: Aumentar al 100 % la vinculación de empleados administrativos conforme al sistema de carrera administrativa. | D55: (E.Carr) / (T. Emp) * 100 | E55: Porcentaje de empleados que están nombrados dentro de la carrera administrativa | F55: ='Base L4'!O9 -> 0.26 | G55: 1 | H55: ='Base L4'!V9 -> 0.3160621762 | I55: ='Base L4'!W9 -> 0.3160621762 | L55: 1 | M55: 0.3160621762 | N55: 0.3160621762 | P55: 30 | Q55: Aumentar al 100 % la vinculación de empleados administrativos conforme al sistema de carrera administrativa. | R55: 30. Aumentar al 100 % la vinculación de empleados administrativos conforme al sistema de carrera administrativa. | S55: Meta 30 | T55: 0.3160621762
B56: 31 | C56: Aumentar el número de docentes de planta en un 45% y disminuir la vinculación especial en un 10%. | D56: ∑ Docentes nombrados de planta | E56: Número de docentes de planta nombrados | F56: ='Base L4'!O10 -> 645 | G56: 730 | H56: ='Base L4'!V10 -> 652 | I56: ='Base L4'!W10 -> 0.8931506849 | L56: 730 | M56: 652 | N56: 0.8931506849 | P56: 31 | Q56: Aumentar el número de docentes de planta en un 45% y disminuir la vinculación especial en un 10%. | R56: 31. Aumentar el número de docentes de planta en un 45% y disminuir la vinculación especial en un 10%. | S56: Meta 31 | T56: 0.8931506849
B57: 32 | C57: Generar una cultura institucional que respete las diferencias y garantice el bienestar de las personas en situación de discapacidad. | D57: (D/A.LenAcc) / (T.DOC/Adm)∗100 | E57: Porcentaje de docentes y administrativos (de planta) capacitados en lenguajes accesibles | F57: ='Base L4'!O11 -> 0 | G57: 0.05 | H57: ='Base L4'!V11 -> 0 | I57: ='Base L4'!W11 -> 0 | L57: 0.05 | M57: 0 | N57: No Aplica Requiere ajuste | P57: 32 | Q57: Generar una cultura institucional que respete las diferencias y garantice el bienestar de las personas en situación de discapacidad. | R57: 32. Generar una cultura institucional que respete las diferencias y garantice el bienestar de las personas en situación de discapacidad. | S57: Meta 32 | T57: =N57 -> No Aplica Requiere ajuste
F58: ='Base L4'!O12 -> - | G58: ='Base L4'!P12 -> - | I58: =AVERAGE(I52:I57) -> 0.5178458048 | N58: =AVERAGE(N52:N57) -> 0.6214149658 | R58: . | T58: 0.6214149658
B60: Lineamiento Estratégico 5
B62: Información del indicador | G62: Información del indicador | L62: Información del indicador
B63: N° | C63: Meta | D63: Indicador | E63: Unidad de medida | F63: Linea base (2017) | G63: Metas 2020 | H63: Reportado 2020 | I63: % cumplimiento 2020 | L63: Metas 2020 | M63: Reportado 2020 | N63: % cumplimiento 2020 | P63: N° | Q63: Meta | T63: % cumplimiento 2020
B64: 33 | C64: Implementar los dominios identificados en el marco de referencia IT 4+ establecidos por MinTIC | D64: ∑ Dominios implementados según Marco de referencia IT4+ | E64: Dominios implementados según Marco de referencia IT4+ | F64: 0 | G64: 4 | H64: ='Base L5'!V6 -> 0 | I64: ='Base L5'!W6 -> 0 | L64: =G64 -> 4 | M64: =H64 -> 0 | N64: =IF(I64>100%,100%,I64) -> 0 | P64: 33 | Q64: Implementar los dominios identificados en el marco de referencia IT 4+ establecidos por MinTIC. | R64: =P64&". "&Q64 -> 33. Implementar los dominios identificados en el marco de referencia IT 4+ establecidos por MinTIC. | S64: ="Meta "&P64 -> Meta 33 | T64: =N64 -> 0
B65: 34 | C65: Alcanzar la implementación del cuarto componente de Gobierno en Línea (Seguridad y privacidad de la información). | D65: (A.GEL Imp)/(Total de A.GEL)∗100 | E65: Porcentaje de implementación del componente de Gobierno en Línea. | F65: 0.06 | G65: 1 | H65: ='Base L5'!V7 -> 0 | I65: ='Base L5'!W7 -> 0 | L65: 1 | M65: 0 | N65: 0 | P65: 34 | Q65: Alcanzar la implementación del cuarto componente de Gobierno en Línea (Seguridad y privacidad de la información). | R65: 34. Alcanzar la implementación del cuarto componente de Gobierno en Línea (Seguridad y privacidad de la información). | S65: Meta 34 | T65: 0
B66: 35 | C66: Lograr la calidad y disponibilidad del 100% de la información institucional, que no tenga restricción constitucional ni legal. | D66: (Información disponible en la web)/(Total de información de la Universidad)∗100 | E66: Porcentaje de información disponible en la página web | F66: 1 | G66: 1 | H66: ='Base L5'!V8 -> 0.921 | I66: ='Base L5'!W8 -> 0.921 | L66: 1 | M66: 0.921 | N66: 0.921 | P66: 35 | Q66: Lograr la calidad y disponibilidad del 100% de la información institucional, que no tenga restricción constitucional ni legal. | R66: 35. Lograr la calidad y disponibilidad del 100% de la información institucional, que no tenga restricción constitucional ni legal. | S66: Meta 35 | T66: 0.921
B67: 36 | C67: Implementar mecanismos de participación, de los diferentes estamentos, de la comunidad universitaria, en las instancias de planeación, gestión, seguimiento y evaluación de la Universidad. | D67: (Instancias participando efectivamente)/(Total de instancias de la Universidad)∗100 | E67: Porcentaje de instancias de planeación, seguimiento , evaluación y gestión con participación efectiva de los estamentos de la Comunidad Universitaria | F67: Sin medición | G67: 0.7 | H67: ='Base L5'!V9 -> 0.8829787234 | I67: ='Base L5'!W9 -> 1.261398176 | L67: 0.7 | M67: 0.8829787234 | N67: 1 | P67: 36 | Q67: Implementar mecanismos de participación, de los diferentes estamentos, de la comunidad universitaria, en las instancias de planeación, gestión, seguimiento y evaluación de la Universidad. | R67: 36. Implementar mecanismos de participación, de los diferentes estamentos, de la comunidad universitaria, en las instancias de planeación, gestión, seguimiento y evaluación de la Universidad. | S67: Meta 36 | T67: 1
B68: 37 | C68: Lograr un nivel de satisfacción mínimo del 80% por parte de las personas que utilizan los servicios de la Universidad. | D68: (Usuario≥4 y 5)/(T.Usuarios)∗100 | E68: Porcentaje de usuarios que califican con 4 o 5 los servicios ofrecidos por la Universidad | F68: Sin medición | G68: 0.4 | H68: ='Base L5'!V10 -> 0.9315 | I68: ='Base L5'!W10 -> 2.32875 | L68: 0.4 | M68: 0.9315 | N68: 1 | P68: 37 | Q68: Lograr un nivel de satisfacción mínimo del 80% por parte de las personas que utilizan los servicios de la Universidad. | R68: 37. Lograr un nivel de satisfacción mínimo del 80% por parte de las personas que utilizan los servicios de la Universidad. | S68: Meta 37 | T68: 1
B69: 38 | C69: Actualizar, compilar, depurar y difundir el 100% de las normas expedidas por las autoridades institucionales. | D69: (Normatividad verificada)/(Total de normatividad expedida por la UD)∗100 | E69: Porcentaje de verificación de la vigencia de la normatividad interna | F69: Sin medición | G69: 0.3 | H69: ='Base L5'!V11 -> 1 | I69: ='Base L5'!W11 -> 3.333333333 | L69: 0.3 | M69: 1 | N69: 1 | P69: 38 | Q69: Actualizar, compilar, depurar y difundir el 100% de las normas expedidas por las autoridades institucionales. | R69: 38. Actualizar, compilar, depurar y difundir el 100% de las normas expedidas por las autoridades institucionales. | S69: Meta 38 | T69: 1
B70: 39 | C70: Actualizar, simplificar y flexibilizar anualmente la operación de los procesos institucionales en el cumplimiento de las funciones universitarias. | D70: (Procesos Actualizados)/(Total de procesos)∗100 | E70: Porcentaje de actualización de Procesos SIGUD | F70: 1 | G70: 1 | H70: ='Base L5'!V12 -> 0.5909090909 | I70: ='Base L5'!W12 -> 0.5909090909 | L70: 1 | M70: 0.5909090909 | N70: 0.5909090909 | P70: 39 | Q70: Actualizar, simplificar y flexibilizar anualmente la operación de los procesos institucionales en el cumplimiento de las funciones universitarias. | R70: 39. Actualizar, simplificar y flexibilizar anualmente la operación de los procesos institucionales en el cumplimiento de las funciones universitarias. | S70: Meta 39 | T70: 0.5909090909
B71: 40 | C71: Establecer la adecuada asignación de funciones, competencias, seguridad jurídica y equilibrio institucional en la organización, gobierno y gestión de la Universidad. | D71: (Normas actualizadas)/(Total de normas estatutarias)∗100 | E71: Porcentaje de normas estatutarias actualizadas. | F71: 0 | G71: 0.75 | H71: ='Base L5'!V13 -> 0 | I71: ='Base L5'!W13 -> 0 | L71: 0.75 | M71: 0 | N71: 0 | P71: 40 | Q71: Establecer la adecuada asignación de funciones, competencias, seguridad jurídica y equilibrio institucional en la organización, gobierno y gestión de la Universidad. | R71: 40. Establecer la adecuada asignación de funciones, competencias, seguridad jurídica y equilibrio institucional en la organización, gobierno y gestión de la Universidad. | S71: Meta 40 | T71: 0
B72: 41 | C72: Conseguir la publicación oportuna y completa de toda la información relacionada con el principio de transparencia y derecho de acceso a información pública, de acuerdo con la Ley 1712 de 2014. | D72: (Información publicada)/(Información publicable según ley)∗100 | E72: Porcentaje de información publicada según la ley 1712 de 2014 | F72: Sin medición | G72: 0.45 | H72: ='Base L5'!V14 -> 0.921 | I72: ='Base L5'!W14 -> 2.046666667 | L72: 0.45 | M72: 0.921 | N72: 1 | P72: 41 | Q72: Conseguir la publicación oportuna y completa de toda la información relacionada con el principio de transparencia y derecho de acceso a información pública, de acuerdo con la Ley 1712 de 2014. | R72: 41. Conseguir la publicación oportuna y completa de toda la información relacionada con el principio de transparencia y derecho de acceso a información pública, de acuerdo con la Ley 1712 de 2014. | S72: Meta 41 | T72: 1
B73: 42A | C73: Lograr indicadores de cero corrupción en la gestión institucional. | D73: PAAC de cada Vigencia | E73: PAAC de cada Vigencia | F73: PAAC | G73: PAAC 2020 | H73: ='Base L5'!V15 -> PAAC | I73: ='Base L5'!W15 -> 1 | J73: =AVERAGE(I73:I75) -> 0.8666666667 | L73: PAAC 2020 | M73: PAAC | N73: 0.867 | P73: 42A | Q73: Lograr indicadores de cero corrupción en la gestión institucional. | R73: 42A. Lograr indicadores de cero corrupción en la gestión institucional. | S73: Meta 42 | T73: =N73 -> 0.867
B74: 42B | D74: ∑ Número de canales de atención en las localidades de Bogotá | E74: Número de canales de atención en las localidades de Bogotá | F74: 6 | G74: 10 | H74: ='Base L5'!V16 -> 6 | I74: ='Base L5'!W16 -> 0.6 | L74: 10 | M74: 6 | P74: 42B | R74: 42B. | T74: 0
B75: 42C | D75: ∑ Número de rendiciones de cuentas realizadas a la comunidad anualmente | E75: Número de rendiciones de cuentas realizadas a la comunidad anualmente | F75: 1 | G75: 1 | H75: ='Base L5'!V17 -> 1 | I75: ='Base L5'!W17 -> 1 | L75: 1 | M75: 1 | P75: 42C | R75: 42C. | T75: 0
G76: ='Base L5'!O18 -> - | H76: ='Base L5'!P18 -> - | I76: =AVERAGE(I64:I72+J73) -> 2.031339696 | L76: - | M76: - | N76: =AVERAGE(N66:N73) -> 0.7973636364 | R76: . | S76: Meta | T76: 0.7973636364
M78: 2020
G79: Lineamiento Estratégico 1 | H79: =I21 -> 1.065484297 | L79: Lineamiento Estratégico 1 | M79: =N21 -> 0.7176223334
G80: Lineamiento Estratégico 2 | H80: =I32 -> 2.283924343 | L80: Lineamiento Estratégico 2 | M80: =N32 -> 0.9654255319
G81: Lineamiento Estratégico 3 | H81: =I46 -> 0.754547558 | L81: Lineamiento Estratégico 3 | M81: =N46 -> 0.7135121254
G82: Lineamiento Estratégico 4 | H82: =I58 -> 0.5178458048 | L82: Lineamiento Estratégico 4 | M82: =N58 -> 0.6214149658
G83: Lineamiento Estratégico 5 | H83: =I76 -> 2.031339696 | L83: Lineamiento Estratégico 5 | M83: =N76 -> 0.7973636364
G84: Cumplimiento consolidado | H84: =AVERAGE(H79:H83) -> 1.33062834 | L84: Cumplimiento consolidado | M84: =AVERAGE(M79:M83) -> 0.7630677186
E90: Metas 2020 | F90: Reporte 2020
E91: US= 14 | F91: US=14 | H91: =1-((14-14)/(5458)) -> 1
E92: WM= 14 | F92: WM=15 | H92: =1-((15-14)/(15)) -> 0.9333333333
E93: ScN= 17 | F93: SCN=21 | H93: =1-((21-17)/(21)) -> 0.8095238095
E94: ScW= 725 | F94: SCW=746 | H94: =1-((746-725)/(746)) -> 0.971849866
H95: =AVERAGE(H91:H94) -> 0.9286767522

Sheet Consolidado (hidden)
O2: Plan Indicativo | R2: Plan Estratégico de Desarrollo
B3: L | C3: N° | D3: Meta | E3: Indicador | F3: Metas 2018 | G3: Reportado 2018 | H3: % cumplimiento 2018 | I3: Metas 2019 | J3: Reportado 2019 | K3: % cumplimiento 2019 | L3: Metas 2020 | M3: Reportado 2020 | N3: % cumplimiento 2020 | O3: Meta año 2021 | P3: Cumplimiento respecto Indicativo 2018 | Q3: Cumplimiento respecto Indicativo 2019 | R3: Meta año 2030 | S3: Cumplimiento respecto Indicativo 2018 | T3: Cumplimiento respecto Indicativo 2019 | U3: Linea base | V3: Unidad del Indicador | W3: Unidades responsables
B4: L1 | C4: 1 | D4: 1. Mantener y elevar la acreditación institucional de alta calidad y alcanzar el reconocimiento internacional. | E4: Documento de Resolución MEN Acreditación Institucional | F4: ='Base L1'!O6 -> 0 | G4: ='Base L1'!P6 -> 0 | H4: - | I4: ='Base L1'!R6 -> 0 | J4: ='Base L1'!S6 -> 0 | K4: - | L4: ='Base L1'!U6 -> 0 | M4: ='Base L1'!V6 -> 0 | N4: - | R4: Acreditación Institucional Vigente | U4: Universidad Acreditada | V4: Número | W4: Coordinación General de Autoevaluación y Acreditación
B5: L1 | C5: 2 | D5: 2. Aumentar el 34% en el número de estudiantes de pregrado matriculados. | E5: (M1semPre + M2semPre)/2 | F5: ='Base L1'!O7 -> 23886 | G5: ='Base L1'!P7 -> 24006 | H5: =IF(F5=0,1,IF(G5/F5>1,1,G5/F5)) -> 1 | I5: ='Base L1'!R7 -> 25465 | J5: ='Base L1'!S7 -> 24624 | K5: =IF(I5=0,1,IF(J5/I5>1,1,J5/I5)) -> 0.9669742784 | L5: ='Base L1'!U7 -> 27108 | M5: ='Base L1'!V7 -> 25992.5 | N5: ='Base L1'!W7 -> 0.958849786 | O5: 29007 | P5: =G5/O5 -> 0.8275933395 | Q5: =J5/O5 -> 0.8488985417 | R5: 32000 | S5: =G5/R5 -> 0.7501875 | T5: =J5/R5 -> 0.7695 | U5: 23862 | V5: Número | W5: Decanaturas de Facultad
B6: L1 | C6: 3 | D6: 3. Aumentar el 65% de estudiantes matriculados en posgrado. | E6: (M1semPos + M2semPos)/2 | F6: ='Base L1'!O8 -> 2996 | G6: ='Base L1'!P8 -> 3055 | H6: 1 | I6: ='Base L1'!R8 -> 3191 | J6: ='Base L1'!S8 -> 3222 | K6: 1 | L6: ='Base L1'!U8 -> 3417 | M6: ='Base L1'!V8 -> 3274 | N6: ='Base L1'!W8 -> 0.9581504243 | O6: 3667 | P6: =G6/O6 -> 0.8331060813 | Q6: =J6/O6 -> 0.8786473957 | R6: 4904 | S6: =G6/R6 -> 0.6229608483 | T6: =J6/R6 -> 0.6570146819 | U6: 2972 | V6: Número | W6: Decanaturas de Facultad
B7: L1 | C7: 4 | D7: 4. Aumentar en 28% el número de programas en todos los niveles y modalidades. | E7: Σ Programas con registro calificado | F7: ='Base L1'!O9 -> 80 | G7: ='Base L1'!P9 -> 81 | H7: 1 | I7: ='Base L1'!R9 -> 86 | J7: ='Base L1'!S9 -> 86 | K7: 1 | L7: ='Base L1'!U9 -> 94 | M7: ='Base L1'!V9 -> 88 | N7: ='Base L1'!W9 -> 0.9361702128 | O7: 101 | P7: 0.801980198 | Q7: 0.8514851485 | R7: 104 | S7: 0.7788461538 | T7: 0.8269230769 | U7: 77 | V7: Número | W7: Decanaturas de Facultad Coordinación de Autoevaluación y Acreditación
B8: L1 | C8: 5 | D8: 5. Lograr homologación y transferencia del 100% de la oferta académica de la Universidad entre sus diferentes niveles de formación. | E8: (Phom/TP)*100 | F8: ='Base L1'!O10 -> 0 | G8: ='Base L1'!P10 -> 0.950617284 | H8: =IF(F8=0,1,IF(G8/F8>1,1,G8/F8)) -> 1 | I8: ='Base L1'!R10 -> 0.05 | J8: ='Base L1'!S10 -> 0.950617284 | K8: 1 | L8: ='Base L1'!U10 -> 0.15 | M8: ='Base L1'!V10 -> 0.9534883721 | N8: ='Base L1'!W10 -> 6.356589147 | O8: 0.25 | P8: 3.802469136 | Q8: 3.802469136 | R8: 1 | S8: 0.950617284 | T8: 0.950617284 | U8: 0 | V8: Porciento | W8: Vicerrectoría Académica Decanaturas de Facultad
B9: L1 | C9: 6 | D9: 6. Lograr que los proyectos de extensión respondan a la interacción entre las problemáticas del entorno y los procesos de investigación, y que sus resultados vinculen e impacten comunidades de la ciudad y la región. | E9: (PePs/Pe)∗100 | F9: ='Base L1'!O11 -> 0.33 | G9: ='Base L1'!P11 -> 0.3623188406 | H9: 1 | I9: ='Base L1'!R11 -> 0.36 | J9: ='Base L1'!S11 -> 0.2424242424 | K9: 0.6734006734 | L9: ='Base L1'!U11 -> 0.39 | M9: ='Base L1'!V11 -> 0.3272727273 | N9: ='Base L1'!W11 -> 0.8391608392 | O9: 0.39 | P9: 0.9290226682 | Q9: 0.6216006216 | R9: 0.5 | S9: 0.7246376812 | T9: 0.4848484848 | U9: 0.33 | V9: Porciento | W9: IDEXUD Decanaturas de Facultad CIDC
B10: L1 | C10: 7 | D10: 7. Aumentar la oferta en 10 programas de formación para el trabajo y desarrollo del talento humano en correspondencia con las necesidades de los sectores productivos y de servicios de la ciudad región. | E10: ∑ Programas de formación | F10: ='Base L1'!O12 -> 0 | G10: ='Base L1'!P12 -> 0 | H10: 1 | I10: ='Base L1'!R12 -> 1 | J10: ='Base L1'!S12 -> 0 | K10: 0 | L10: ='Base L1'!U12 -> 2 | M10: ='Base L1'!V12 -> 0 | N10: ='Base L1'!W12 -> 0 | O10: 3 | P10: 0 | Q10: 0 | R10: 10 | S10: 0 | T10: 0 | U10: 0 | V10: Número | W10: IDEXUD Unidades de Extensión de Facultad
B11: L1 | C11: 8 | D11: 8. Lograr que 20% de la oferta académica de pregrado y posgrado permita la doble titulación o cotitulación. | E11: [(Pdt/c)/(TP)]∗100 | F11: ='Base L1'!O13 -> 0.0125 | G11: ='Base L1'!P13 -> 0.01234567901 | H11: 0.987654321 | I11: ='Base L1'!R13 -> 0.01162790698 | J11: ='Base L1'!S13 -> 0.01162790698 | K11: 1 | L11: ='Base L1'!U13 -> 0.04255319149 | M11: ='Base L1'!V13 -> 0.02325581395 | N11: ='Base L1'!W13 -> 0.5465116279 | O11: 0.06930693069 | P11: 0.1781305115 | Q11: 0.1677740864 | R11: 0.2 | S11: 0.06172839506 | T11: 0.05813953488 | U11: 0.013 | V11: Porciento | W11: Vicerrectoría Académica Decanaturas de Facultad
B12: L1 | C12: 9 | D12: 9. Aumentar el índice de movilidad internacional anual mínimo al 1,3% de la población estudiantil. | E12: (EstM/T.EST)∗100 | F12: ='Base L1'!O14 -> 0.003 | G12: ='Base L1'!P14 -> 0.005456969091 | H12: 1 | I12: ='Base L1'!R14 -> 0.0035 | J12: ='Base L1'!S14 -> 0.007066276803 | K12: 1 | L12: ='Base L1'!U14 -> 0.0035 | M12: ='Base L1'!V14 -> 0.004308852383 | N12: ='Base L1'!W14 -> 1.231100681 | O12: 0.0035 | P12: 1.559134026 | Q12: 2.018936229 | R12: 0.013 | S12: 0.4197668532 | T12: 0.5435597541 | U12: 0.0024 | V12: Porciento | W12: CERI Decanaturas de Facultad
B13: L1 | C13: 10 | D13: 10. Aumentar el índice de movilidad internacional anual mínimo al 5% de la planta docente. | E13: (DocM/T.DOC)∗100 | F13: ='Base L1'!O15 -> 0.008 | G13: ='Base L1'!P15 -> 0.007751937984 | H13: 0.9689922481 | I13: ='Base L1'!R15 -> 0.011 | J13: ='Base L1'!S15 -> 0.01107594937 | K13: 1 | L13: ='Base L1'!U15 -> 0.015 | M13: ='Base L1'!V15 -> 0.007668711656 | N13: ='Base L1'!W15 -> 0.5112474438 | O13: 0.019 | P13: 0.407996736 | Q13: 0.5829447035 | R13: 0.05 | S13: 0.1550387597 | T13: 0.2215189873 | U13: 0.005 | V13: Porciento | W13: CERI CIDC Decanaturas de Facultad
B14: L1 | C14: 11 | D14: 11. Lograr que el 60% de estudiantes tengan un dominio de una segunda lengua en un nivel equivalente a B2. | E14: (Est.B2/T.EST)∗100 | F14: ='Base L1'!O16 -> 0.3628 | G14: ='Base L1'!P16 -> 0.111 | H14: 0.3059536935 | I14: ='Base L1'!R16 -> 0.38 | J14: ='Base L1'!S16 -> 0.0909 | K14: 0.2392105263 | L14: ='Base L1'!U16 -> 0.4 | M14: ='Base L1'!V16 -> 0.1142 | N14: ='Base L1'!W16 -> 0.2855 | O14: 0.42 | P14: 0.2642857143 | Q14: 0.2164285714 | R14: 0.6 | S14: 0.185 | T14: 0.1515 | U14: 0.3628 | V14: Porciento | W14: Vicerrectoría Académica Decanaturas de Facultad ILUD
B15: L1 | C15: 12 | D15: 12. Apoyar a estudiantes de los colegios distritales ubicados en el área de influencia de las sedes de la Universidad, con programas de fortalecimiento de competencias básicas en: matemáticas, ciencias naturales, lectura crítica e inglés. | E15: ∑ Estudiantes apoyados en CB | F15: ='Base L1'!O17 -> 0 | G15: ='Base L1'!P17 -> 9364 | H15: 1 | I15: ='Base L1'!R17 -> 2000 | J15: ='Base L1'!S17 -> 0 | K15: 0 | L15: ='Base L1'!U17 -> 4000 | M15: ='Base L1'!V17 -> 1806 | N15: ='Base L1'!W17 -> 0.4515 | O15: 6000 | P15: 1.560666667 | Q15: 0 | R15: 20000 | S15: 0.4682 | T15: 0 | U15: 0 | V15: Número | W15: Facultad de Ciencias y Educación
B16: L1 | C16: 13 | D16: 13. Disminuir la tasa de deserción anual al 9% | E16: (EAE/EA)∗100 | F16: ='Base L1'!O18 -> 0.095 | G16: ='Base L1'!P18 -> 0.0751478797 | H16: =IF(F16=0,1,IF(G16/F16>1,1,G16/F16)) -> 0.7910303126 | I16: ='Base L1'!R18 -> 0.0945 | J16: ='Base L1'!S18 -> 0.1103395062 | K16: 1 | L16: ='Base L1'!U18 -> 0.094 | M16: ='Base L1'!V18 -> 0.1115706454 | N16: ='Base L1'!W18 -> 0.8112 | O16: 0.0935 | P16: 0.8037206385 | Q16: 1.18010167 | R16: 0.09 | S16: 0.8349764411 | T16: 1.225994513 | U16: 0.095 | V16: Porciento | W16: Centro de Bienestar Institucional Coordinaciones de Proyectos Curriculares Decanaturas de Facultad Vicerrectoría Académica
B17: L1 | C17: 14 | D17: 14. Modernizar la organización académica y administrativa de la institución. | E17: Reforma Organizacional Aprobada por Consejo Superior | F17: ='Base L1'!O19 -> 0 | G17: ='Base L1'!P19 -> 0 | H17: - | I17: ='Base L1'!R19 -> 0 | J17: ='Base L1'!S19 -> 0 | K17: 1 | L17: ='Base L1'!U19 -> 0 | M17: ='Base L1'!V19 -> 0 | N17: - | R17: Reforma Organizacional implementada | U17: N/A | V17: -
B18: L2 | C18: ='Base L2'!B6 -> 15 | D18: 15. Evaluar, revisar y reformular la oferta curricular de pregrado y posgrado de cada facultad, en el marco de los procesos de autoevaluación continua y los proyectos educativos de las facultades. | E18: ∑ Programas evaluados curricularmente | F18: ='Base L2'!O6 -> 80 | G18: ='Base L2'!P6 -> 81 | H18: 1 | I18: ='Base L2'!R6 -> 86 | J18: ='Base L2'!S6 -> 81 | K18: 0.9418604651 | L18: ='Base L2'!U6 -> 94 | M18: ='Base L2'!V6 -> 81 | N18: ='Base L2'!W6 -> 0.8617021277 | O18: 101 | P18: 0.801980198 | Q18: 0.801980198 | R18: 104 | S18: 0.7788461538 | T18: 0.7788461538 | U18: 81 | V18: Número | W18: Vicerrectoría Académica Coordinación General de Autoevaluación y Acreditación
B19: L2 | C19: ='Base L2'!B7 -> 16 | D19: 16. Aumentar la tasa de graduación en pregrados al 70% | E19: (ETE/EC)∗100 | F19: ='Base L2'!O7 -> 0.428 | G19: ='Base L2'!P7 -> 0 | H19: 0 | I19: ='Base L2'!R7 -> 0.449 | J19: ='Base L2'!S7 -> 0 | K19: 0 | L19: ='Base L2'!U7 -> 0.46 | M19: ='Base L2'!V7 -> 0.8752904725 | N19: ='Base L2'!W7 -> 1.902805375 | O19: 0.48 | P19: 0 | Q19: 0 | R19: 0.7 | S19: 0 | T19: 0 | U19: 0.4 | V19: Porciento | W19: Vicerrectoría Académica Decanaturas de Facultad
B20: L2 | C20: ='Base L2'!B8 -> 17 | D20: 17. Alcanzar una cobertura en el 70% de los docentes en el manejo de tecnologías de la información y comunicación. | E20: (D.TI/T.DOC)∗100 | F20: ='Base L2'!O8 -> 0.05 | G20: ='Base L2'!P8 -> 0 | H20: 0 | I20: ='Base L2'!R8 -> 0.07 | J20: ='Base L2'!S8 -> 0 | K20: 0 | L20: ='Base L2'!U8 -> 0.1 | M20: ='Base L2'!V8 -> 0.6507614213 | N20: ='Base L2'!W8 -> 6.507614213 | O20: 0.15 | P20: 0 | Q20: 0 | R20: 0.7 | S20: 0 | T20: 0 | U20: Sin medición | V20: Porciento | W20: PlanesTIC
B21: L2 | C21: ='Base L2'!B9 -> 18 | D21: 18. Lograr que el 40% de los docentes de planta manejen lenguajes que permitan garantizar la atención de comunidades en el marco de la política de inclusión. | E21: (D.LI/T.DOC)∗100 | F21: ='Base L2'!O9 -> 0.03 | G21: ='Base L2'!P9 -> 0 | H21: 0 | I21: ='Base L2'!R9 -> 0.05 | J21: ='Base L2'!S9 -> 0 | K21: 0 | L21: ='Base L2'!U9 -> 0.07 | M21: ='Base L2'!V9 -> 0 | N21: ='Base L2'!W9 -> 0 | O21: 0.1 | P21: 0 | Q21: 0 | R21: 0.4 | S21: 0 | T21: 0 | U21: Sin medición | V21: Porciento | W21: CADEP ACACIA NEES
B22: L2 | C22: ='Base L2'!B10 -> 19 | D22: 19. Lograr el 90% de satisfacción entre los miembros de la comunidad universitaria frente a las expectativas del bienestar estudiantil y los programas que desde allí se ofrezcan. | E22: (∑ Calificaciones)/(T.EST) | F22: ='Base L2'!O10 -> 0.3 | G22: ='Base L2'!P10 -> 0 | H22: 0 | I22: ='Base L2'!R10 -> 0.35 | J22: ='Base L2'!S10 -> 0 | K22: 0 | L22: ='Base L2'!U10 -> 0.4 | M22: ='Base L2'!V10 -> 0.859 | N22: ='Base L2'!W10 -> 2.1475 | O22: 0.45 | P22: 0 | Q22: 0 | R22: 0.9 | S22: 0 | T22: 0 | U22: Sin medición | V22: Porciento | W22: Centro de Bienestar Institucional
B23: L3 | C23: ='Base L3'!B6 -> 20 | D23: 20. Clasificarse entre las 5 mejores IES colombianas según indicadores en investigación. | E23: Puesto según Rankings: US= Usapiens WM= Webometrics ScN= Scimago Nacional ScW= Scimago Internacional | F23: ='Base L3'!G6 -> US=14 WM=15 SCN=21 SCW=746 | G23: ='Base L3'!H6 -> US=18 WM=24 SCN=25 SCW=770 | H23: - | I23: ='Base L3'!J6 -> US= WM= ScN= ScW= | J23: ='Base L3'!K6 ->  | K23: - | L23: ='Base L3'!U6 -> US= WM= ScN= ScW= | M23: ='Base L3'!V6 -> US= WM= ScN= ScW= | N23: ='Base L3'!W6 -> US= WM= ScN= ScW= | O23: US= WM= ScN= ScW= | R23: US= 5 WM= 5 ScN= 5 ScW= 600 | U23: Sin medición | V23: - | W23: Vicerrectoría Académica Centro de Investigaciones y Desarrollo Científico Unidades de Investigación de Facultad
B24: L3 | C24: ='Base L3'!B7 -> 21 | D24: 21. Aumentar el porcentaje de revistas científicas indexadas al 100%. | E24: (TR.i/TR)∗100 | F24: ='Base L3'!O7 -> 0.38 | G24: ='Base L3'!P7 -> 0.42 | H24: 1 | I24: ='Base L3'!R7 -> 0.42 | J24: ='Base L3'!S7 -> 0.42 | K24: 1 | L24: ='Base L3'!U7 -> 0.48 | M24: ='Base L3'!V7 -> 0.3157894737 | N24: ='Base L3'!W7 -> 0.6578947368 | O24: 0.54 | P24: 0.7777777778 | Q24: 0.7777777778 | R24: 1 | S24: 0.42 | T24: 0.42 | U24: Sin medición | V24: Porciento | W24: Centro de Investigaciones y Desarrollo Científico
B25: L3 | C25: ='Base L3'!B8 -> 22 | D25: 22. Aumentar la producción científica anual publicada en revistas indexadas. | E25: ∑ Artículos indexados en SCOPUS | F25: ='Base L3'!O8 -> 242 | G25: ='Base L3'!P8 -> 244 | H25: 1 | I25: ='Base L3'!R8 -> 274 | J25: ='Base L3'!S8 -> 221 | K25: 0.8065693431 | L25: ='Base L3'!U8 -> 284 | M25: ='Base L3'!V8 -> 222 | N25: ='Base L3'!W8 -> 0.7816901408 | O25: 315 | P25: 0.7746031746 | Q25: 0.7015873016 | R25: 550 | S25: 0.4436363636 | T25: 0.4018181818 | U25: ='Base L1'!F27 -> 0 | V25: Número | W25: Centro de Investigaciones y Desarrollo Científico
B26: L3 | C26: ='Base L3'!B9 -> 23 | D26: 23. Crear al menos 3 empresas spin-off, 15 empresas incubadas e institutos de investigación e innovación. | E26: ∑ de Spinoffs y Start Ups Operativos | F26: ='Base L3'!O9 -> 0 | G26: ='Base L3'!P9 -> 0 | H26: 1 | I26: ='Base L3'!R9 -> 2 | J26: ='Base L3'!S9 -> 0 | K26: 0 | L26: ='Base L3'!U9 -> 3 | M26: ='Base L3'!V9 -> 0 | N26: ='Base L3'!W9 -> 0 | O26: 4 | P26: 0 | Q26: 0 | R26: 20 | S26: =G26/R26 -> 0 | T26: 0 | U26: ='Base L1'!F28 -> 0 | V26: Número | W26: Vicerrectoría Académica Centro de Investigaciones y Desarrollo Científico
B27: L3 | C27: ='Base L3'!B10 -> 24 | D27: 24. Incrementar los proyectos de cofinanciación externa en 45%, cuyos recursos provengan de organismos internacionales, los sistemas de ciencia tecnología e innovación. | E27: ∑ Proyectos de cofinanciación | F27: ='Base L3'!O10 -> 17 | G27: ='Base L3'!P10 -> 5 | H27: 0.2941176471 | I27: ='Base L3'!R10 -> 18 | J27: ='Base L3'!S10 -> 8 | K27: 0.4444444444 | L27: ='Base L3'!U10 -> 20 | M27: ='Base L3'!V10 -> 17 | N27: ='Base L3'!W10 -> 0.85 | O27: 22 | P27: 0.2272727273 | Q27: 0.3636363636 | R27: 25 | S27: 0.2 | T27: 0.32 | U27: ='Base L1'!F29 -> 0 | V27: Número | W27: Centro de Investigaciones y Desarrollo Científico
B28: L3 | C28: ='Base L3'!B11 -> 25 | D28: 25. Lograr el pleno apoyo a la investigación, la creación, la formación, la innovación y el incremento de la productividad y competitividad de las empresas de la ciudad región, por medio de convenios de cooperación con los diferentes sectores. | E28: ∑ Convenios de la Universidad | F28: ='Base L3'!O11 -> 0 | G28: ='Base L3'!P11 -> 5 | H28: 1 | I28: ='Base L3'!R11 -> 1 | J28: ='Base L3'!S11 -> 6 | K28: 1 | L28: ='Base L3'!U11 -> 2 | M28: ='Base L3'!V11 -> 2 | N28: ='Base L3'!W11 -> 1 | O28: 2 | P28: 2.5 | Q28: 3 | R28: 5 | S28: 1 | T28: 1.2 | U28: ='Base L1'!F30 -> 0 | V28: Número | W28: Vicerrectoría Académica Centro de Investigaciones y Desarrollo Científico Centro de Relaciones Interinstitucionales
B29: L3 | C29: ='Base L3'!B12 -> 26 | D29: 26. Aumentar al 50% el número de docentes con Doctorado. | E29: (DDOC/T.DOC)∗100 | F29: ='Base L3'!O12 -> 0.18 | G29: ='Base L3'!P12 -> 0.3131782946 | H29: 1 | I29: ='Base L3'!R12 -> 0.25 | J29: ='Base L3'!S12 -> 0.3306962025 | K29: 1 | L29: ='Base L3'!U12 -> 0.28 | M29: ='Base L3'!V12 -> 0.3604294479 | N29: ='Base L3'!W12 -> 1.287248028 | O29: 0.3 | P29: 1.043927649 | Q29: 1.102320675 | R29: 0.5 | S29: 0.6263565891 | T29: 0.6613924051 | U29: ='Base L1'!F31 -> 0 | V29: Porciento | W29: Vicerrectoría Académica
B30: L4 | C30: ='Base L4'!B6 -> 27 | D30: 27. Ampliar, mejorar y modernizar física, tecnológica y ambientalmente la infraestructura, esto de acuerdo con la proyección de la cobertura y las políticas de inclusión. | E30: ∑ Metros cuadrados (m2) construidos | F30: ='Base L4'!O6 -> 104609 | G30: ='Base L4'!P6 -> 104609 | H30: 1 | I30: ='Base L4'!R6 -> 116509 | J30: ='Base L4'!S6 -> 104609 | K30: 0.8978619677 | L30: ='Base L4'!U6 -> 116509 | M30: ='Base L4'!V6 -> 104609 | N30: ='Base L4'!W6 -> 0.8978619677 | O30: 116509 | P30: 0.8978619677 | Q30: 0.8978619677 | R30: 183609 | S30: 0.5697378669 | T30: 0.5697378669 | U30: 104609 | V30: Número | W30: Oficina Asesora de Planeación y Control
B31: L4 | C31: ='Base L4'!B7 -> 28 | D31: 28. Consolidar cuatro centros de recursos para el aprendizaje y la investigación -CRAI-. | E31: ∑ CRAI Consolidados | F31: ='Base L4'!O7 -> 0 | G31: ='Base L4'!P7 -> 1 | H31: 1 | I31: ='Base L4'!R7 -> 1 | J31: ='Base L4'!S7 -> 1 | K31: 1 | L31: ='Base L4'!U7 -> 1 | M31: ='Base L4'!V7 -> 1 | N31: ='Base L4'!W7 -> 1 | O31: 2 | P31: 0.5 | Q31: 0.5 | R31: 4 | S31: 0.25 | T31: 0.25 | U31: 0 | V31: Número | W31: Sección de Biblioteca
B32: L4 | C32: ='Base L4'!B8 -> 29 | D32: 29. Fortalecer las competencias de los servidores públicos al servicio de la institución, en beneficio del cumplimiento de las funciones institucionales. | E32: Evaluación del desempeño laboral implementada | F32: ='Base L4'!O8 -> 0 | G32: ='Base L4'!P8 -> 0 | H32: - | I32: ='Base L1'!R34 -> 0 | J32: ='Base L1'!S34 -> 0 | K32: - | L32: ='Base L1'!U34 -> 0 | M32: ='Base L1'!V34 -> 0 | N32: - | R32: Evaluación del desempeño laboral implementada | U32: Sin medición | V32: - | W32: División de Recursos Humanos Vicerrectoría Académica
B33: L4 | C33: ='Base L4'!B9 -> 30 | D33: 30. Aumentar al 100% la vinculación de empleados administrativos conforme al sistema de carrera administrativa. | E33: (E.Carr/T. Emp)* 100 | F33: ='Base L4'!O9 -> 0.26 | G33: ='Base L4'!P9 -> 0.275 | H33: 1 | I33: ='Base L4'!R9 -> 0.26 | J33: ='Base L4'!S9 -> 0.275 | K33: 1 | L33: ='Base L4'!U9 -> 1 | M33: ='Base L4'!V9 -> 0.3160621762 | N33: ='Base L4'!W9 -> 0.3160621762 | O33: 1 | P33: 0.275 | Q33: 0.275 | R33: 1 | S33: 0.275 | T33: 0.275 | U33: 0.26 | V33: Porciento | W33: Vicerrectoría Administrativa y Financiera División de Recursos Humanos
B34: L4 | C34: ='Base L4'!B10 -> 31 | D34: 31. Aumentar el número de docentes de planta en un 45% y disminuir la vinculación especial en un 10%. | E34: ∑ Docentes nombrados de planta | F34: ='Base L4'!O10 -> 645 | G34: ='Base L4'!P10 -> 645 | H34: 1 | I34: ='Base L4'!R10 -> 680 | J34: ='Base L4'!S10 -> 632 | K34: 0.9294117647 | L34: ='Base L4'!U10 -> 730 | M34: ='Base L4'!V10 -> 652 | N34: ='Base L4'!W10 -> 0.8931506849 | O34: 750 | P34: =G34/O34 -> 0.86 | Q34: 0.8426666667 | R34: 980 | S34: 0.6581632653 | T34: 0.6448979592 | U34: 670 | V34: Número | W34: Vicerrectoría Académica División de Recursos Humanos
B35: L4 | C35: ='Base L4'!B11 -> 32 | D35: 32. Generar una cultura institucional que respete las diferencias y garantice el bienestar de las personas en situación de discapacidad. | E35: [(D/A.LenAcc)/(T.DOC/Adm)]∗100 | F35: ='Base L4'!O11 -> 0 | G35: ='Base L4'!P11 -> 0 | H35: 1 | I35: ='Base L4'!R11 -> 0.025 | J35: ='Base L4'!S11 -> 0 | K35: 0 | L35: ='Base L4'!U11 -> 0.05 | M35: ='Base L4'!V11 -> 0 | N35: ='Base L4'!W11 -> 0 | O35: 0.05 | P35: 0 | Q35: 0 | R35: 0.3 | S35: 0 | T35: 0 | U35: 0 | V35: Porciento | W35: División de Recursos Humanos Oficina de Docencia
B36: L5 | C36: ='Base L5'!B6 -> 33 | D36: 33. Implementar los dominios identificados en el marco de referencia IT 4+ establecidos por MinTIC | E36: ∑ Dominios implementados según Marco de referencia IT4+ | F36: ='Base L5'!O6 -> 0 | G36: ='Base L5'!P6 -> 0 | H36: 1 | I36: ='Base L5'!R6 -> 3 | J36: ='Base L5'!S6 -> 0 | K36: 0 | L36: ='Base L5'!U6 -> 4 | M36: ='Base L5'!V6 -> 0 | N36: ='Base L5'!W6 -> 0 | O36: 6 | P36: 0 | Q36: 0 | R36: 6 | S36: 0 | T36: 0 | U36: 0 | V36: Número | W36: Oficina Asesora de Sistemas
B37: L5 | C37: ='Base L5'!B7 -> 34 | D37: 34. Alcanzar la implementación del cuarto componente de Gobierno en Línea (Seguridad y privacidad de la información). | E37: [(A.GEL Imp)/(Total de A.GEL)]∗100 | F37: ='Base L5'!O7 -> 0.2 | G37: ='Base L5'!P7 -> 0 | H37: 0 | I37: ='Base L5'!R7 -> 0.5 | J37: ='Base L5'!S7 -> 0 | K37: 0 | L37: ='Base L5'!U7 -> 1 | M37: ='Base L5'!V7 -> 0 | N37: ='Base L5'!W7 -> 0 | O37: 1 | P37: 0 | Q37: 0 | R37: 1 | S37: 0 | T37: 0 | U37: 0.06 | V37: Porciento | W37: Oficina Asesora de Sistemas
B38: L5 | C38: ='Base L5'!B8 -> 35 | D38: 35. Lograr la calidad y disponibilidad del 100% de la información institucional, que no tenga restricción constitucional ni legal. | E38: [(Información disponible en la web)/(Total de información de la Universidad)]∗100 | F38: ='Base L5'!O8 -> 1 | G38: ='Base L5'!P8 -> 0.93 | H38: 0.93 | I38: ='Base L5'!R8 -> 1 | J38: ='Base L5'!S8 -> 0.95 | K38: 0.95 | L38: ='Base L5'!U8 -> 1 | M38: ='Base L5'!V8 -> 0.921 | N38: ='Base L5'!W8 -> 0.921 | O38: 1 | P38: 0.93 | Q38: 0.95 | R38: 1 | S38: 0.93 | T38: 0.95 | U38: 1 | V38: Porciento | W38: Secretaría General
B39: L5 | C39: ='Base L5'!B9 -> 36 | D39: 36. Implementar mecanismos de participación, de los diferentes estamentos, de la comunidad universitaria, en las instancias de planeación, gestión, seguimiento y evaluación de la Universidad. | E39: [(Instancias participando efectivamente)/(Total de instancias de la Universidad)]∗100 | F39: ='Base L5'!O9 -> 0.6 | G39: ='Base L5'!P9 -> 1 | H39: 1 | I39: ='Base L5'!R9 -> 0.6 | J39: ='Base L5'!S9 -> 1 | K39: 1 | L39: ='Base L5'!U9 -> 0.7 | M39: ='Base L5'!V9 -> 0.8829787234 | N39: ='Base L5'!W9 -> 1.261398176 | O39: 1 | P39: 1 | Q39: 1 | R39: 1 | S39: 1 | T39: 1 | U39: Sin medición | V39: Porciento | W39: Consejo Superior Universitario Consejo Académico Rectoría
B40: L5 | C40: ='Base L5'!B10 -> 37 | D40: 37. Lograr un nivel de satisfacción mínimo del 80% por parte de las personas que utilizan los servicios de la Universidad. | E40: [(Usuario≥4 y 5)/(T.Usuarios)]∗100 | F40: ='Base L5'!O10 -> 0 | G40: ='Base L5'!P10 -> 0 | H40: 1 | I40: ='Base L5'!R10 -> 0 | J40: ='Base L5'!S10 -> 0 | K40: 1 | L40: ='Base L5'!U10 -> 0.4 | M40: ='Base L5'!V10 -> 0.9315 | N40: ='Base L5'!W10 -> 2.32875 | O40: 0.6 | P40: 0 | Q40: 0 | R40: 0.8 | S40: 0 | T40: 0 | U40: Sin medición | V40: Porciento | W40: Vicerrectoría Académica
B41: L5 | C41: ='Base L5'!B11 -> 38 | D41: 38. Actualizar, compilar, depurar y difundir el 100% de las normas expedidas por las autoridades institucionales. | E41: [(Normatividad verificada)/(Total de normatividad expedida por la UD)]∗100 | F41: ='Base L5'!O11 -> 0.1 | G41: ='Base L5'!P11 -> 1 | H41: 1 | I41: ='Base L5'!R11 -> 0.2 | J41: ='Base L5'!S11 -> 1 | K41: 1 | L41: ='Base L5'!U11 -> 0.3 | M41: ='Base L5'!V11 -> 1 | N41: ='Base L5'!W11 -> 3.333333333 | O41: 0.4 | P41: 2.5 | Q41: 2.5 | R41: 1 | S41: 1 | T41: 1 | U41: Sin medición | V41: Porciento | W41: Secretaría General
B42: L5 | C42: ='Base L5'!B12 -> 39 | D42: 39. Actualizar, simplificar y flexibilizar anualmente la operación de los procesos institucionales en el cumplimiento de las funciones universitarias. | E42: [(Procesos Actualizados)/(Total de procesos)]∗100 | F42: ='Base L5'!O12 -> 1 | G42: ='Base L5'!P12 -> 1 | H42: 1 | I42: ='Base L5'!R12 -> 1 | J42: ='Base L5'!S12 -> 0.8636363636 | K42: 0.8636363636 | L42: ='Base L5'!U12 -> 1 | M42: ='Base L5'!V12 -> 0.5909090909 | N42: ='Base L5'!W12 -> 0.5909090909 | O42: 1 | P42: 1 | Q42: 0.8636363636 | R42: 1 | S42: 1 | T42: 0.8636363636 | U42: 1 | V42: Porciento | W42: Oficina Asesora de Planeación y Control
B43: L5 | C43: ='Base L5'!B13 -> 40 | D43: 40. Establecer la adecuada asignación de funciones, competencias, seguridad jurídica y equilibrio institucional en la organización, gobierno y gestión de la Universidad. | E43: [(Normas actualizadas)/(Total de normas estatutarias)]∗100 | F43: ='Base L5'!O13 -> 0 | G43: ='Base L5'!P13 -> 0 | H43: 1 | I43: ='Base L5'!R13 -> 0.5 | J43: ='Base L5'!S13 -> 0 | K43: 0 | L43: ='Base L5'!U13 -> 0.75 | M43: ='Base L5'!V13 -> 0 | N43: ='Base L5'!W13 -> 0 | O43: 1 | P43: 0 | Q43: 0 | R43: 1 | S43: 0 | T43: 0 | U43: 0 | V43: Porciento | W43: Secretaría General
B44: L5 | C44: ='Base L5'!B14 -> 41 | D44: 41. Conseguir la publicación oportuna y completa de toda la información relacionada con el principio de transparencia y derecho de acceso a información pública, de acuerdo con la Ley 1712 de 2014. | E44: [(Información publicada)/(Información publicable según ley)]∗100 | F44: ='Base L5'!O14 -> 0.25 | G44: ='Base L5'!P14 -> 0.93 | H44: 1 | I44: ='Base L5'!R14 -> 0.35 | J44: ='Base L5'!S14 -> 0.95 | K44: 1 | L44: ='Base L5'!U14 -> 0.45 | M44: ='Base L5'!V14 -> 0.921 | N44: ='Base L5'!W14 -> 2.046666667 | O44: 0.55 | P44: 1.690909091 | Q44: 1.727272727 | R44: 1 | S44: 0.93 | T44: 0.95 | U44: Sin medición | V44: Porciento | W44: Oficina de Quejas, Reclamos y Atención al Ciudadano
B45: L5 | C45: ='Base L5'!B15 -> 42A | D45: 42. (A) Lograr indicadores de cero corrupción en la gestión institucional. | E45: PAAC de cada Vigencia | F45: ='Base L5'!O15 -> 0 | G45: ='Base L5'!P15 -> 0 | H45: - | I45: ='Base L1'!R47 -> 0 | J45: ='Base L1'!S47 -> 0 | K45: - | L45: ='Base L1'!U47 -> 0 | M45: ='Base L1'!V47 -> 0 | N45: - | R45: PAAC de cada Vigencia | U45: PAAC | V45: Número | W45: Oficina Asesora de Planeación y Control
B46: L5 | C46: ='Base L5'!B16 -> 42B | D46: 42. (B) Lograr indicadores de cero corrupción en la gestión institucional. | E46: ∑ Número de canales de atención en las localidades de Bogotá | F46: ='Base L5'!O16 -> 6 | G46: ='Base L5'!P16 -> 6 | H46: 1 | I46: ='Base L5'!R16 -> 8 | J46: ='Base L5'!S16 -> 6 | K46: 0.75 | L46: ='Base L5'!U16 -> 10 | M46: ='Base L5'!V16 -> 6 | N46: ='Base L5'!W16 -> 0.6 | O46: 10 | P46: 0.6 | Q46: 0.6 | R46: 15 | S46: 0.4 | T46: 0.4 | U46: 6 | V46: Número | W46: Oficina de Quejas, Reclamos y Atención al Ciudadano
B47: L5 | C47: ='Base L5'!B17 -> 42C | D47: 42. (C) Lograr indicadores de cero corrupción en la gestión institucional. | E47: ∑ Número de rendiciones de cuentas realizadas a la comunidad anualmente | F47: ='Base L5'!O17 -> 1 | G47: ='Base L5'!P17 -> 1 | H47: 1 | I47: ='Base L5'!R17 -> 1 | J47: ='Base L5'!S17 -> 1 | K47: 1 | L47: ='Base L5'!U17 -> 1 | M47: ='Base L5'!V17 -> 1 | N47: ='Base L5'!W17 -> 1 | O47: 1 | P47: 1 | Q47: 1 | R47: 1 | S47: 1 | T47: 1 | U47: 1 | V47: Número | W47: Oficina de Quejas, Reclamos y Atención al Ciudadano
E48: Total | G48: 2018 | H48: =AVERAGE(H5:H47) -> 0.8276345698 | J48: 2019 | K48: =SUM(K4:K45)/37 -> 0.6679289142 | M48: 2020 | N48: =SUM(N4:N45)/37 -> 1.174907213
E52: Año | F52: Lineamiento 1 | G52: Lineamiento 2 | H52: Lineamiento 3 | I52: Lineamiento 4 | J52: lineamiento 5 | K52: Consolidado
E53: 2018 | F53: =AVERAGE(H5:H16) -> 0.9211358813 | G53: =AVERAGE(H18:H22) -> 0.2 | H53: =AVERAGE(H24:H29) -> 0.8823529412 | I53: =SUM(H30:H35)/5 -> 1 | J53: =SUM(H36:H47)/11 -> 0.9027272727 | K53: =H48 -> 0.8276345698
E54: 2019 | F54: =AVERAGE(K5:K16) -> 0.7399654565 | G54: =AVERAGE(K18:K22) -> 0.188372093 | H54: =AVERAGE(K24:K29) -> 0.7085022979 | I54: =SUM(K30:K35)/5 -> 0.7654547465 | J54: =SUM(K36:K47)/11 -> 0.6876033058 | K54: =K48 -> 0.6679289142
E55: 2020 | F55: =AVERAGE(N5:N16) -> 1.157165014 | G55: =AVERAGE(N18:N22) -> 2.283924343 | H55: =AVERAGE(N24:N29) -> 0.7628054843 | I55: =SUM(N30:N35)/5 -> 0.6214149658 | J55: =SUM(N36:N47)/11 -> 1.098368842 | K55: =N48 -> 1.174907213

Sheet Base F. Indicador (hidden)
B1: 1 | C1: 2 | D1: 3 | E1: 4 | F1: 5 | G1: 6 | H1: 7 | I1: 8 | J1: 9 | K1: 10 | L1: 11 | M1: 12 | N1: 13 | O1: 14 | P1: 15 | Q1: 16 | R1: 17 | S1: 18 | T1: 19 | U1: 20 | V1: 21 | W1: 22 | X1: 23
B2: Base de datos Ficha de Indicadores
H3: Variable 1 | K3: Variable 2
B4: Meta | C4: Lineamiento | D4: N° | E4: Estrategias asociadas | F4: Indicador | G4: Unidad de medida | H4: Nombre | I4: Unidad medida | J4: Fuente de la Información | K4: Nombre | L4: Unidad medida | M4: Fuente de la Información | N4: Línea base (2017) | O4: Tipo de indicador | P4: Meta 2030 | Q4: Convenciones | R4: Unidades responsables | S4: Fuente de la información | U4: Definiciones | V4: Periodicidad | W4: Criterios y observaciones sobre el Indicador
A5: =D5&". "&B5 -> 1. Mantener y elevar la acreditación institucional de alta calidad y alcanzar el reconocimiento internacional. | B5: Mantener y elevar la acreditación institucional de alta calidad y alcanzar el reconocimiento internacional. | C5: 1. Formar ciudadanos, profesionales, investigadores, creadores e innovadores, íntegros con pensamiento crítico y cultura democrática, en contextos diferenciados inter y multiculturales para la transformación de la sociedad. | D5: 1 | E5: - Difusión y apropiación del Proyecto Universitario Institucional. - Desarrollar de manera permanente procesos de autoevaluación que se traduzcan en planes de mejoramiento continuo. - Elevar el nivel de desempeño de los estudiantes en las pruebas Saber Pro. | F5: Documento de Resolución MEN Acreditación Institucional | G5: Documento de Resolución MEN Acreditación Institucional | H5: =F5 -> Documento de Resolución MEN Acreditación Institucional | I5: Documento MEN | J5: Coordinación General de Autoevaluación y Acreditación | K5: - | L5: - | M5: - | N5: Universidad Acreditada | O5: Cualitativo | P5: Acreditación Institucional Vigente | Q5: - | R5: =VLOOKUP(B5,Indicadores!D7:K89,6,FALSE) -> Coordinación General de Autoevaluación y Acreditación | S5: - | U5: - Acreditación: Proceso mediante el cual una institución o programa educativo obtiene un reconocimiento de alta calidad. | V5: Anual | W5: -
A6: =D6&". "&B6 -> 2. Aumentar el 34% en el número de estudiantes de pregrado matriculados. | B6: Aumentar el 34% en el número de estudiantes de pregrado matriculados. | C6: 1. Formar ciudadanos, profesionales, investigadores, creadores e innovadores, íntegros con pensamiento crítico y cultura democrática, en contextos diferenciados inter y multiculturales para la transformación de la sociedad. | D6: 2 | E6: - Consolidación de una oferta académica flexible que articule todas las metodologías de enseñanza, los niveles y los campos de formación, permitiendo el aumento y fortalecimiento de la oferta existente, articulada con la educación básica, media y superior. | F6: (M1semPre + M2semPre) /2 | G6: Número de estudiantes matriculados en pregrado | H6: Número de estudiantes matriculados en pregrado (Periodo I) | I6: Estudiantes | J6: Spagobi - Sistema de Gestión Académica | K6: Número de estudiantes matriculados en pregrado (Periodo III) | L6: Estudiantes | M6: Spagobi - Sistema de Gestión Académica | N6: 23862 | O6: Cuantitativo | P6: 32000 | Q6: - M1semPre: Número de estudiantes matriculados semestre I en pregrado. - M2semPre: Número de estudiantes matriculados semestre III en pregrado. | R6: =VLOOKUP(B6,Indicadores!D8:K90,6,FALSE) -> Decanaturas de Facultad | S6: - | U6: - | V6: Anual | W6: En el reporte del indicador se tendrá en cuenta el pico más alto de estudiantes matriculados de cada periodo.
A7: 3. Aumentar el 65% de estudiantes matriculados en posgrado. | B7: Aumentar el 65% de estudiantes matriculados en posgrado. | C7: 1. Formar ciudadanos, profesionales, investigadores, creadores e innovadores, íntegros con pensamiento crítico y cultura democrática, en contextos diferenciados inter y multiculturales para la transformación de la sociedad. | D7: 3 | E7: - Consolidación de una oferta académica flexible que articule todas las metodologías de enseñanza, los niveles y los campos de formación, permitiendo el aumento y fortalecimiento de la oferta existente, articulada con la educación básica, media y superior. | F7: (M1semPos + M2semPos) /2 | G7: Numero de estudiantes matriculados en posgrado | H7: Número de estudiantes matriculados en posgrado (Periodo I) | I7: Estudiantes | J7: Spagobi - Sistema de Gestión Académica | K7: Número de estudiantes matriculados en posgrado (Periodo III) | L7: Estudiantes | M7: Spagobi - Sistema de Gestión Académica | N7: 2972 | O7: Cuantitativo | P7: 4904 | Q7: - M1semPos: Número de estudiantes matriculados semestre I en posgrado. - M2semPos: Número de estudiantes matriculados semestre III en posgrado. | R7: =VLOOKUP(B7,Indicadores!D9:K91,6,FALSE) -> Decanaturas de Facultad | S7: - | U7: - | V7: Anual | W7: En el reporte del indicador se tendrá en cuenta el pico más alto de estudiantes matriculados de cada periodo.
A8: 4. Aumentar en 28% el número de programas en todos los niveles y modalidades. | B8: Aumentar en 28% el número de programas en todos los niveles y modalidades. | C8: 1. Formar ciudadanos, profesionales, investigadores, creadores e innovadores, íntegros con pensamiento crítico y cultura democrática, en contextos diferenciados inter y multiculturales para la transformación de la sociedad. | D8: 4 | E8: - Consolidación y aumento de una oferta académica flexible que articule los diferentes niveles de formación desde el nivel básico hasta el superior. | F8: Σ Programas con registro calificado | G8: Total de programas con registro calificado vigente | H8: Programas con registro calificado | I8: Programas | J8: Coordinación General de Autoevaluación y Acreditación | K8: - | L8: - | M8: - | N8: 81 | O8: Cuantitativo | P8: 104 | Q8: - | R8: =VLOOKUP(B8,Indicadores!D10:K92,6,FALSE) -> Decanaturas de Facultad Coordinación de Autoevaluación y Acreditación | S8: - | U8: - Registro calificado: reconocimiento que hace el Estado del cumplimiento de las condiciones mínimas de calidad para el adecuado funcionamiento de programas académicos de educación superior. Este reconocimiento que tiene una vigencia de siete (7) años y es otorgado por el Ministro de Educación Nacional mediante acto administrativo. Para ofrecer y desarrollar un programa académico de educación superior se requiere contar con el Registro Calificado del mismo. | V8: Anual | W8: -
A9: 5. Lograr homologación y transferencia del 100% de la oferta académica de la Universidad entre sus diferentes niveles de formación. | B9: Lograr homologación y transferencia del 100% de la oferta académica de la Universidad entre sus diferentes niveles de formación. | C9: 1. Formar ciudadanos, profesionales, investigadores, creadores e innovadores, íntegros con pensamiento crítico y cultura democrática, en contextos diferenciados inter y multiculturales para la transformación de la sociedad. | D9: 5 | E9: - Consolidación y aumento de una oferta académica flexible que articule los diferentes niveles de formación desde el nivel básico hasta el superior. | F9: (Programas homologables/Total de Programas) *100 | G9: Porcentaje de programas que posean algún grado de homologación con otros programas internos o de otras Universidades nacionales o del exterior | H9: Programas con algún nivel de homologación | I9: Programas homologables | J9: Vicerrectoría Académica | K9: Número total de programas | L9: Programas | M9: Coordinación General de Autoevaluación y Acreditación | N9: 0 | O9: Cuantitativo | P9: 1 | Q9: - Phom: Programas con algún nivel de homologación. - TP: total de programas. | R9: =VLOOKUP(B9,Indicadores!D11:K93,6,FALSE) -> Vicerrectoría Académica Decanaturas de Facultad | S9: - | U9: - Homologaciones: Según el Acuerdo 004 de octubre 16 de 2018 del Consejo Académico, "Por medio del cual se unifican los criterios y procedimientos de las transferencias internas y externas en los programas de pregrado de la Universidad Distrital Francisco José de Caldas." Artículo 8°.- DE LAS HOMOLOGACIONES. Se entiende por homologación el reconocimiento de asignaturas o espacios académicos con contenido o intensidad equivalente, cursadas en una universidad o institución de educación superior nacional o extranjera, reconocida por el Ministerio de Educación Nacional. | V9: Anual | W9: El reporte del indicador se establece en conformidad con el marco normativo aplicable, el cual se relaciona a continuación: ▪ Acuerdo 009 de 2006 expedido por el Consejo Académico. “Por el cual se implementa el Sistema de Créditos Académicos en la Universidad Distrital Francisco José de Caldas”. ▪ Resolución 012 de 2012 expedido por el Consejo Académico. “Por medio de la cual se reglamentan disposiciones relativas a la movilidad académica de estudiantes de la Universidad Distrital y aquellos provenientes de otras instituciones”. ▪ Acuerdo 038 de 2015 expedido por el Consejo Académico. “Por el cual se modifica el Acuerdo No. 031 de 2014, que reglamenta el trabajo de grado para los Estudiantes de pregrado de la Universidad Distrital Francisco José de Caldas y se dictan otras directrices”. ▪ Acuerdo 004 de 2018 expedido por el Consejo Académico. “Por medio del cual se unifican los criterios y procedimientos de las transferencias internas y externas en los programas de pre grado de la Universidad Distrital Francisco José de Caldas”. ▪ Acuerdo 005 de agosto 27 de 2019 del Consejo Académico “Por el cual se establecen criterios de homologación para Estudiantes graduados de programas académicos terminales del nivel tecnológico para la continuación de estudios del nivel de profesionalización en la Universidad Distrital Francisco José de Caldas”.
A10: 6. Lograr que los proyectos de extensión respondan a la interacción entre las problemáticas del entorno y los procesos de investigación, y que sus resultados vinculen e impacten comunidades de la ciudad y la región. | B10: Lograr que los proyectos de extensión respondan a la interacción entre las problemáticas del entorno y los procesos de investigación, y que sus resultados vinculen e impacten comunidades de la ciudad y la región. | C10: 1. Formar ciudadanos, profesionales, investigadores, creadores e innovadores, íntegros con pensamiento crítico y cultura democrática, en contextos diferenciados inter y multiculturales para la transformación de la sociedad. | D10: 6 | E10: - Promoción del intercambio, la circulación y el diálogo de conocimientos y saberes, a través de encuentros multidisciplinarios de conocimiento. - Gestión de proyectos que promuevan la investigación y la proyección social como instrumentos de articulación de la universidad con la sociedad. | F10: (PePs/Pe)∗100 | G10: Porcentaje de Proyectos de Extensión que responden a problemáticas de las comunidades | H10: Proyectos de extensión que impactan a las comunidades (proyección social). | I10: Proyectos de extensión | J10: IDEXUD | K10: Número de proyectos de extensión | L10: Proyectos de extensión | M10: IDEXUD | N10: 0.33 | O10: Cuantitativo | P10: 0.5 | Q10: - PePs: Proyectos de extensión que impactan a las comunidades (proyección social). - Pe: Proyectos de extensión | R10: =VLOOKUP(B10,Indicadores!D12:K94,6,FALSE) -> IDEXUD Decanaturas de Facultad CIDC | S10: - | U10: - Extensión: Hace referencia a la prolongación de la función científica y académica de la universidad por intermedio del desarrollo y ejecución de proyectos bajo la modalidad de convenios, contratos de asesorías, consultorías, apoyo y asistencia técnica e interventorías, entre otras modalidades que den respuesta a necesidades específicas de grupos sociales determinados en articulación con el sector económico y productivo. - Proyección Social: Determina las actividades que se desarrollan con el propósito de proyectar y apropiar socialmente el conocimiento producido y construido al interior de la universidad, con el fin de intervenir efectivamente y resolver bien sea completa o parcialmente, conflictos y problemas específicos procurando mejorar las condiciones sociales, políticas, económicas, culturales y ambientales de grupos sociales específicos, comunidades o la sociedad. | V10: Anual | W10: Conforme a lo definido en el documento de “Lineamientos de Extensión y Proyección Social de la Universidad Distrital Francisco José de Caldas” la Proyección Social, determina las actividades que se desarrollan con el propósito de proyectar y apropiar socialmente el conocimiento producido y construido al interior de la universidad, con el fin de intervenir efectivamente y resolver bien sea completa o parcialmente, conflictos y problemas específicos procurando mejorar las condiciones sociales, políticas, económicas, culturales y ambientales de grupos sociales específicos, comunidades o la sociedad. En la cual no se genera una retribución económica por parte del beneficiario final, por el servicio prestado. La Universidad Distrital concibe la proyección social como la oportunidad de intervenir efectivamente sobre problemas reales en el territorio, identificadas y determinadas a partir de la interacción entre la universidad y los diferentes grupos poblacionales, proyectando y democratizando el conocimiento al orientarlo hacia la satisfacción de necesidades sociales y la resolución de problemas locales, en ese sentido la proyección social se materializa a partir de las siguientes estrategias: • Pasantías • Monitorias • Proyecto de emprendimiento • Practicas Docentes • Prácticas profesionales • Proyectos formativos (proyectos de educación Continuada) • Actividades de difusión y divulgación • Proyectos especiales
A11: 7. Aumentar la oferta en 10 programas de formación para el trabajo y desarrollo del talento humano en correspondencia con las necesidades de los sectores productivos y de servicios de la ciudad región. | B11: Aumentar la oferta en 10 programas de formación para el trabajo y desarrollo del talento humano en correspondencia con las necesidades de los sectores productivos y de servicios de la ciudad región. | C11: 1. Formar ciudadanos, profesionales, investigadores, creadores e innovadores, íntegros con pensamiento crítico y cultura democrática, en contextos diferenciados inter y multiculturales para la transformación de la sociedad. | D11: 7 | E11: - Promoción de encuentros y articulación con el sector productivo a fin de responder a sus demandas y generar sinergia en la difusión y apropiación del conocimiento. | F11: ∑ Programas de formación | G11: Total de programas de formación para el trabajo y desarrollo del talento humano creados | H11: Número de programas de formación | I11: Programas de formación | J11: IDEXUD | K11: - | L11: - | M11: - | N11: 0 | O11: Cuantitativo | P11: 10 | Q11: - | R11: =VLOOKUP(B11,Indicadores!D13:K95,6,FALSE) -> IDEXUD Unidades de Extensión de Facultad | S11: - | U11: - | V11: Anual | W11: En estricto sentido de lo que solicita el Indicador, el IDEXUD no desarrolla Educación y Formación para el Trabajo y Desarrollo Humano, desarrolla Actividades de educación Informal, a saber: Cursos, Talleres, Diplomados y demás actividades de formación y capacitación.
A12: 8. Lograr que 20% de la oferta académica de pregrado y posgrado permita la doble titulación o cotitulación. | B12: Lograr que 20% de la oferta académica de pregrado y posgrado permita la doble titulación o cotitulación. | C12: 1. Formar ciudadanos, profesionales, investigadores, creadores e innovadores, íntegros con pensamiento crítico y cultura democrática, en contextos diferenciados inter y multiculturales para la transformación de la sociedad. | D12: 8 | E12: - Gestión y consolidación de relaciones nacionales e internacionales para fortalecer el intercambio académico, investigativo, de creación e innovación. - Establecer y desarrollar un modelo de homologación y equivalencias entre los diferentes programas y las normas que lo reglamenten. | F12: [(Pdt/c)/(TP)]∗100 | G12: Porcentaje de proyectos curriculares con acuerdos de cotitulación y/o doble titulación. | H12: Número de proyectos curriculares que permiten cotitulación o cotitulación | I12: Programas | J12: Decanaturas de Facultad | K12: Número total de programas | L12: Programas | M12: Coordinación General de Autoevaluación y Acreditación | N12: 0.013 | O12: Cuantitativo | P12: 0.2 | Q12: - Pdt: Programas con doble titulación o cotitulación. - TP: Total de programas. | R12: =VLOOKUP(B12,Indicadores!D14:K96,6,FALSE) -> Vicerrectoría Académica Decanaturas de Facultad | S12: - | U12: - | V12: Anual | W12: -
A13: 9. Aumentar el índice de movilidad internacional anual mínimo al 1,3% de la población estudiantil. | B13: Aumentar el índice de movilidad internacional anual mínimo al 1,3% de la población estudiantil. | C13: 1. Formar ciudadanos, profesionales, investigadores, creadores e innovadores, íntegros con pensamiento crítico y cultura democrática, en contextos diferenciados inter y multiculturales para la transformación de la sociedad. | D13: 9 | E13: - Establecer y desarrollar una política institucional de apropiación de la segunda lengua como parte activa de la gestión curricular, y condición para la titulación y la evaluación. | F13: (EstM/T.EST)∗100 | G13: Porcentaje de estudiantes en procesos de movilidad Internacional | H13: Número de estudiantes en movilidad internacional | I13: Estudiantes | J13: Centro de Relaciones Interinstitucionales | K13: Número de estudiantes matriculados | L13: Estudiantes | M13: Spagobi - Sistema de Gestión Académica | N13: 0.0024 | O13: Cuantitativo | P13: 0.6 | Q13: - EstM: Estudiantes en proceso de movilidad internacional. - T. EST: Total estudiantes | R13: =VLOOKUP(B13,Indicadores!D15:K97,6,FALSE) -> CERI Decanaturas de Facultad | S13: - | U13: - Movilidad Estudiantil: La movilidad estudiantil es el medio que permite a un estudiante participar en algún tipo de actividad académica o estudiantil en otra institución o empresa, manteniendo su condición de estudiante activo en movilidad. Dado su distintivo académico, este mecanismo brinda al estudiante la oportunidad de integrarse a una comunidad nacional e internacional y convivir en un ámbito multicultural que lo habilita como ciudadano global. La movilidad estudiantil implica la homologación y reconocimiento de los espacios académicos realizados en otra institución o empresa en el plan de estudios de la Universidad de origen. | V13: Anual | W13: -
A14: 10. Aumentar el índice de movilidad internacional anual mínimo al 5% de la planta docente. | B14: Aumentar el índice de movilidad internacional anual mínimo al 5% de la planta docente. | C14: 1. Formar ciudadanos, profesionales, investigadores, creadores e innovadores, íntegros con pensamiento crítico y cultura democrática, en contextos diferenciados inter y multiculturales para la transformación de la sociedad. | D14: 10 | E14: - Promover y consolidar convenios con universidades internacionales e incrementar los intercambios de estudiantes y docentes. | F14: (DocM/T.DOC)∗100 | G14: Porcentaje de docentes en procesos de movilidad Internacional | H14: Número de docentes en movilidad internacional | I14: Docentes | J14: CERI, Decanaturas de Facultad y CIDC | K14: Número de docentes de planta | L14: Docentes | M14: División de Recursos Humanos | N14: 0 | O14: Cuantitativo | P14: 0.013 | Q14: - DocM: Docentes en proceso de movilidad internacional. - T. DOC: Número total de docentes. | R14: =VLOOKUP(B14,Indicadores!D16:K98,6,FALSE) ->  | S14: - | U14: - Movilidad Docente: Mecanismo institucional para que el personal docente de la Universidad Distrital participe en algún tipo de actividad académica en otra institución permaneciendo vinculado a la Universidad. Este mecanismo brinda al docente la oportunidad de integrarse a una comunidad académica nacional e internacional, fomentando el intercambio de conocimiento y experiencias académicas. | V14: Anual | W14: -
A15: 11. Lograr que el 60% de estudiantes tengan un dominio de una segunda lengua en un nivel equivalente a B2. | B15: Lograr que el 60% de estudiantes tengan un dominio de una segunda lengua en un nivel equivalente a B2. | C15: 1. Formar ciudadanos, profesionales, investigadores, creadores e innovadores, íntegros con pensamiento crítico y cultura democrática, en contextos diferenciados inter y multiculturales para la transformación de la sociedad. | D15: 11 | E15: - Promover y consolidar convenios con universidades internacionales e incrementar los intercambios de estudiantes y docentes. | F15: (Est.B2/T.EST)∗100 | G15: Porcentaje de estudiantes que tienen un dominio intermedio de una segunda lengua según el MCRE | H15: Número de estudiantes con manejo en una segunda lengua (B2) según el MCRE | I15: Estudiantes | J15: Instituto de Lenguas de la Universidad Distrital - ILUD | K15: Número de estudiantes matriculados | L15: Estudiantes | M15: Spagobi - Sistema de Gestión Académica | N15: 0.3628 | O15: Cuantitativo | P15: 0.05 | Q15: - Est.B: Estudiantes con manejo en una segunda lengua (B2) según el MCRE. - MCRE: Marco Común Europeo de Referencia. - T.EST: Total estudiantes. | R15: =VLOOKUP(B15,Indicadores!D17:K99,6,FALSE) -> Vicerrectoría Académica Decanaturas de Facultad ILUD | S15: - | U15: - | V15: Anual | W15: -
A16: 12. Apoyar a estudiantes de los colegios distritales ubicados en el área de influencia de las sedes de la Universidad, con programas de fortalecimiento de competencias básicas en: matemáticas, ciencias naturales, lectura crítica e inglés. | B16: Apoyar a estudiantes de los colegios distritales ubicados en el área de influencia de las sedes de la Universidad, con programas de fortalecimiento de competencias básicas en: matemáticas, ciencias naturales, lectura crítica e inglés. | C16: 1. Formar ciudadanos, profesionales, investigadores, creadores e innovadores, íntegros con pensamiento crítico y cultura democrática, en contextos diferenciados inter y multiculturales para la transformación de la sociedad. | D16: 12 | E16: - Desarrollar y fortalecer la participación de la universidad en el desarrollo del sistema educativo distrital. - Articulación con autoridades del Sector Educativo, los colegios y sus estamentos, la comunidad y los sectores económicos, con el fin de evaluar, articular y consolidar los objetivos educacionales y los procesos de formación en investigación, creación, innovación y emprendimiento, para fomentar la comprensión y solución de problemas y la potenciación de capacidades hacia la transformación de la sociedad. | F16: ∑ Estudiantes apoyados en CB | G16: Número acumulado de estudiantes de IED apoyados por la Universidad | H16: Número de estudiantes apoyados en competencias básicas | I16: Estudiantes | J16: Facultad de Ciencias y Educación | K16: - | L16: - | M16: - | N16: 0 | O16: Cuantitativo | P16: 20000 | Q16: - CB: Ciencias Básicas. | R16: =VLOOKUP(B16,Indicadores!D18:K100,6,FALSE) -> Facultad de Ciencias y Educación | S16: - | U16: - | V16: Anual | W16: -
A17: 13. Disminuir la tasa de deserción anual al 9% | B17: Disminuir la tasa de deserción anual al 9% | C17: 1. Formar ciudadanos, profesionales, investigadores, creadores e innovadores, íntegros con pensamiento crítico y cultura democrática, en contextos diferenciados inter y multiculturales para la transformación de la sociedad. | D17: 13 | E17: - Estudio sobre el impacto de la articulación con el Sector Educativo Distrital en el acceso, la permanencia y la titulación. - Fortalecimiento y creación de programas que fomenten la inclusión, la permanencia, la retención y la graduación. - Desarrollo del Sistema de Bienestar universitario integral, que mejore las condiciones de los miembros de la comunidad universitaria, con altos estándares de calidad. - Promoción de la comprensión y el análisis sobre las condiciones, creencias y alternativas de proyección de los intereses de los estudiantes sobre su futuro, su situación socioeconómica y la visión que les ofrece la Universidad. | F17: (EAE/EA)∗100 | G17: Porcentaje de estudiantes que no se han matriculado por dos periodos consecutivos (desertor anual) | H17: Número de Estudiantes que abandonan sus estudios | I17: Estudiantes | J17: Spagobi - Sistema de Gestión Académica | K17: Número de estudiantes activos | L17: Estudiantes | M17: Spagobi - Sistema de Gestión Académica | N17: 0.095 | O17: Cuantitativo | P17: 0.09 | Q17: - EAE: Estudiantes que abandonan sus estudios. - EA: Estudiantes activos. | R17: =VLOOKUP(B17,Indicadores!D19:K101,6,FALSE) -> Centro de Bienestar Institucional Coordinaciones de Proyectos Curriculares Decanaturas de Facultad Vicerrectoría Académica | S17: - | U17: - Deserción: Estado de un estudiante que de manera voluntaria o forzosa no registra matrícula por dos o más períodos académicos consecutivos del programa en el que se matriculó; y no se encuentra como graduado, o retirado por motivos disciplinarios. - Desertor del Programa: Estudiante que no se matricula en el mismo programa académico durante dos o más períodos consecutivos y no se encuentra como graduado o retirado por motivos disciplinarios. - Desertor de la Institución de Educación Superior: Estudiante que no se matricula en una Institución de Educación Superior durante dos o más períodos académicos consecutivos y no se encuentra como graduado o retirado por motivos disciplinarios. - Retiro Voluntario: Estudiantes que hicieron retiro voluntario de la institución, es decir informaron al proyectos curriculares la no continuación de sus estudios - Abandono: Estudiantes que no se matricularon en más de dos semestres consecutivos, y no informaron al proyecto curricular. - Estudiantes Matriculados: Son los estudiantes que realizaron el proceso de matrícula, es decir pagaron su recibo de matrícula, el seguro estudiantil, completaron los diferentes formularios y oficializaron su matrícula con los Proyectos Curriculares y están cursando un plan de estudios en la Universidad. | V17: Anual | W17: El numerador del indicador considera los retiros y abandonos. En cuanto estudiantes activos, el indicador tomará el valor correspondiente al promedio de estudiantes matriculados en la vigencia.
A18: 14. Modernizar la organización académica y administrativa de la institución. | B18: Modernizar la organización académica y administrativa de la institución. | C18: 1. Formar ciudadanos, profesionales, investigadores, creadores e innovadores, íntegros con pensamiento crítico y cultura democrática, en contextos diferenciados inter y multiculturales para la transformación de la sociedad. | D18: 14 | E18: - Disponer de manera funcional y jerarquizada un orden adecuado de relaciones entre las facultades, las escuelas y los programas académicos, de acuerdo con el Estatuto General. | F18: Reforma Organizacional Aprobada por Consejo Superior | G18: Reforma Organizacional Aprobada por Consejo Superior | H18: Reforma Organizacional aprobada | I18: Acto administrativo | J18: Secretaria General | K18: - | L18: - | M18: - | N18: N/A | O18: Cualitativo | P18: Reforma Organizacional implementada | Q18: - | R18: =VLOOKUP(B18,Indicadores!D20:K102,6,FALSE) ->  | S18: - | V18: Anual
A19: 15. Evaluar, revisar y reformular la oferta curricular de pregrado y posgrado de cada facultad, en el marco de los procesos de autoevaluación continua y los proyectos educativos de las facultades. | B19: Evaluar, revisar y reformular la oferta curricular de pregrado y posgrado de cada facultad, en el marco de los procesos de autoevaluación continua y los proyectos educativos de las facultades. | C19: 2. Establecer un diseño curricular dinámico y flexible que promueva el pluralismo y consolide una comunidad universitaria crítica transformadora y en armonía ambiental. | D19: 15 | E19: - Definición de lineamientos curriculares institucionales con enfoque crítico-transformador que fomenten el dialogo de saberes y conocimientos, la integración curricular, la pertinencia social, la flexibilidad, la interdisciplinariedad, la investigación curricular, la innovación y el uso de metodologías pertinentes a los diversos contextos. - Estructuración de metodologías y estrategias de enseñanza - aprendizaje que favorezcan la construcción y resolución de situaciones problemáticas. - Construcción e implementación de una reforma curricular participativa, integral y flexible que fomente la integración de las funciones universitarias y los campos, articule los niveles de formación y promueva la internacionalización de los planes de estudios. | F19: ∑ Programas evaluados curricularmente | G19: Número de proyectos curriculares evaluados y actualizados | H19: Número de programas evaluados curricularmente | I19: Programas | J19: Coordinación General de Autoevaluación y Acreditación | K19: - | L19: - | M19: - | N19: 81 | O19: Cuantitativo | P19: 104 | Q19: - | R19: =VLOOKUP(B19,Indicadores!D21:K103,6,FALSE) -> Vicerrectoría Académica Coordinación General de Autoevaluación y Acreditación | S19: - | U19: - Autoevaluación: Ejercicio permanente, crítico y reflexivo realizado por los proyectos curriculares y/o unidades académico administrativas, resultado del cual, para el caso de programas, estos puede, si lo consideran pertinente, plantear modificaciones en aspectos como: la investigación, estrategias de internacionalización, estrategias de evaluación de los aprendizajes, la gestión, entre otros, algunos de los cuales se materializan en reformas curriculares, todo esto en pro del mejoramiento continuo. | V19: Anual | W19: El indicador hace referencia a los programas que hacen el ejercicio de autoevaluación de manera permanente y en ese sentido corresponde a la totalidad de los programas de la universidad. Como indicador complementario a la Meta Estratégica se reportará el indicador de Porcentaje de modificaciones curriculares de programas = [Número de programas que presentaron modificaciones curriculares ante el MEN/Número total de programas activos]*100.
A20: 16. Aumentar la tasa de graduación en pregrados al 70% | B20: Aumentar la tasa de graduación en pregrados al 70% | C20: 2. Establecer un diseño curricular dinámico y flexible que promueva el pluralismo y consolide una comunidad universitaria crítica transformadora y en armonía ambiental. | D20: 16 | E20: - Desarrollo de programas e incentivos que favorezcan mejorar los índices de permanencia y repitencia. - Promoción de alternativas académicas que diversifiquen las modalidades de trabajos de grado. - Adoptar y desarrollar un programa de admisión y permanencia que permita un tránsito flexible en la malla curricular y las posibilidades de titulación, cotitulación y doble titulación. | F20: (ETE/EC)∗100 | G20: Porcentaje de estudiantes que se han graduado en máximo dos periodos adicionales a los establecidos en el plan de estudios (Tasa de eficiencia en la titulación) | H20: Número de estudiantes que termina sus estudios en máximo un año adicional al previsto | I20: Estudiantes | J20: Spagobi - Sistema de Gestión Académica | K20: Número de estudiantes de la cohorte | L20: Estudiantes | M20: Spagobi - Sistema de Gestión Académica | N20: 0.4 | O20: Cuantitativo | P20: 0.7 | Q20: - ETE: Estudiante que termina sus estudios en máximo un año adicional al previsto. - EC: Estudiantes de la cohorte | R20: =VLOOKUP(B20,Indicadores!D22:K104,6,FALSE) -> Vicerrectoría Académica Decanaturas de Facultad | S20: - | U20: - | V20: Anual | W20: -
A21: 17. Alcanzar una cobertura en el 70% de los docentes en el manejo de tecnologías de la información y comunicación. | B21: Alcanzar una cobertura en el 70% de los docentes en el manejo de tecnologías de la información y comunicación. | C21: 2. Establecer un diseño curricular dinámico y flexible que promueva el pluralismo y consolide una comunidad universitaria crítica transformadora y en armonía ambiental. | D21: 17 | E21: - Fortalecimiento de un modelo de formación docente continuo, que permita fomentar las dimensiones pedagógicas, didácticas, profesionales y humanas y los procesos de innovación pedagógica. | F21: [(D.TI)/(T.DOC)] ∗100 | G21: Porcentaje de docentes con manejo de las TI | H21: Número de docentes que manejan T.I. | I21: Docentes | J21: PlanesTIC | K21: Número total de docentes | L21: Docentes | M21: División de Recursos Humanos | N21: Sin medición | O21: Cuantitativo | P21: 0.7 | Q21: - D. TI: Docentes con manejos de las TI. - TI: Tecnologías de la información y comunicación. - T. DOC: Número total de docentes. | R21: =VLOOKUP(B21,Indicadores!D23:K105,6,FALSE) ->  | S21: - | U21: - | V21: Anual | W21: El Indicador considera los Docentes de Planta y Vinculación Especial vinculados a la Institución.
A22: 18. Lograr que el 40% de los docentes de planta manejen lenguajes que permitan garantizar la atención de comunidades en el marco de la política de inclusión. | B22: Lograr que el 40% de los docentes de planta manejen lenguajes que permitan garantizar la atención de comunidades en el marco de la política de inclusión. | C22: 2. Establecer un diseño curricular dinámico y flexible que promueva el pluralismo y consolide una comunidad universitaria crítica transformadora y en armonía ambiental. | D22: 18 | E22: - Consolidación de una evaluación integral del currículo que permita el diseño, implementación, seguimiento y retroalimentación del mismo, promueva la pertinencia social de los programas académicos, la formación integral de personas en situación de discapacidad, la especialización docente en nuevas metodologías y modalidades de enseñanza-aprendizaje; y propicie el aumento en la atención cualificada de poblaciones académicas especificas. | F22: [(D.LI)/(T.DOC)] ∗100 | G22: Porcentaje de docentes con manejo de lenguajes Inclusivos | H22: Número de docentes que manejan lenguajes inclusivos | I22: Docentes | J22: ??? | K22: Número total de docentes | L22: Docentes | M22: División de Recursos Humanos | N22: Sin medición | O22: Cuantitativo | P22: 0.4 | Q22: -D.LI: Docentes con manejo de lenguajes inclusivos. - T. DOC: Total docentes de planta. | R22: =VLOOKUP(B22,Indicadores!D24:K106,6,FALSE) ->  | S22: - | U22: - | V22: Anual | W22: -
A23: 19. Lograr el 90% de satisfacción entre los miembros de la comunidad universitaria frente a las expectativas del bienestar estudiantil y los programas que desde allí se ofrezcan. | B23: Lograr el 90% de satisfacción entre los miembros de la comunidad universitaria frente a las expectativas del bienestar estudiantil y los programas que desde allí se ofrezcan. | C23: 2. Establecer un diseño curricular dinámico y flexible que promueva el pluralismo y consolide una comunidad universitaria crítica transformadora y en armonía ambiental. | D23: 19 | E23: - Construcción de una política cultural universitaria que propenda la diversidad de las expresiones artísticas, culturales, deportivas y el desarrollo de la pertenencia institucional. - Construcción de una cultura organizacional universitaria basada en la solidaridad y el respeto por lo público que permita promover la transparencia, la ética y la responsabilidad colectiva en el marco de la autonomía universitaria. - Crear un sistema de evaluación de los servicios de bienestar universitario. | F23: (∑ Calificaciones)/ (T.EST) | G23: Promedio de satisfacción de los estudiantes a los servicios ofrecidos | H23: Sumatoria de las calificaciones de estudiantes que respondieron la encuesta | I23: Calificaciones | J23: Centro de Bienestar Institucional | K23: Número de estudiantes que utilizan los servicios y diligencian la encuesta | L23: Estudiantes encuestados | M23: Centro de Bienestar Institucional (Encuesta de satisfacción de los servicios de Bienestar Institucional UD) | N23: Sin medición | O23: Cuantitativo | P23: 0.9 | Q23: T. EST: Total estudiantes. | R23: =VLOOKUP(B23,Indicadores!D25:K107,6,FALSE) -> Centro de Bienestar Institucional | S23: - | U23: - Encuesta: Es una técnica que se lleva a cabo mediante la aplicación de un cuestionario a una muestra de personas. Las encuestas proporcionan información sobre las opiniones, actitudes y comportamientos de los ciudadanos. - Satisfacción: Sentimiento de bienestar o placer que se tiene cuando se ha colmado un deseo o cubierto una necesidad. | V23: Anual | W23: -
A24: 20. Clasificarse entre las 5 mejores IES colombianas según indicadores en investigación. | B24: Clasificarse entre las 5 mejores IES colombianas según indicadores en investigación. | C24: 3. Integrar las funciones universitarias por medio de la investigación, creación, innovación para la ampliación del conocimiento como bien público y para la solución de problemas de la ciudad -región y de la sociedad en general. | D24: 20 | E24: - Transferencia de resultados de investigación, creación e innovación institucionales para la solución de problemas de la sociedad. - Definición y desarrollo de modelos de apropiación social del conocimiento, que posibiliten el intercambio y diálogo de saberes y conocimientos con los sectores sociales, productivos y culturales. | F24: Puesto según Rankings: US= Usapiens, WM= Webometrics, ScN= Scimago Nacional, ScW= Scimago Internacional | G24: Puesto según Rankings: US= Usapiens WM= Webometrics ScN= Scimago Nacional ScW= Scimago Internacional | H24: Posición en el ranking | I24: Posición | J24: Rankings de clasificación | K24: - | L24: - | M24: - | N24: US= 16, WM= 18, ScN= 15, ScW= 758 | O24: Cualitativo | P24: US= 5, WM= 5, ScN= 5, ScW= 600 | Q24: - US: Usapiens - WM: Webometrics - ScN: Scimago Nacional - ScW: Scimago Internacional | R24: =VLOOKUP(B24,Indicadores!D26:K108,6,FALSE) -> Vicerrectoría Académica Centro de Investigaciones y Desarrollo Científico Unidades de Investigación de Facultad | S24: - | U24: - Ranking: Clasificación según criterios predefinidos por entidades especializadas en análisis académicos de Instituciones de Educación Superior. | V24: Anual | W24: -
A25: 21. Aumentar el porcentaje de revistas científicas indexadas al 100%. | B25: Aumentar el porcentaje de revistas científicas indexadas al 100%. | C25: 3. Integrar las funciones universitarias por medio de la investigación, creación, innovación para la ampliación del conocimiento como bien público y para la solución de problemas de la ciudad -región y de la sociedad en general. | D25: 21 | E25: - Mejoramiento y cualificación de la producción y difusión científica y creativa, de tal manera que logren mayor presencia en el mundo académico. | F25: (TR.i/TR)∗100 | G25: Porcentaje de revistas institucionales con algún nivel de indexación con COLCIENCIAS-PUBLINDEX | H25: Número de revistas indexadas por COLCIENCIAS | I25: Revistas | J25: Centro de Investigaciones y Desarrollo Científico, CIDC | K25: Número de revistas institucionales | L25: Revistas | M25: Centro de Investigaciones y Desarrollo Científico, CIDC | N25: 0.33 | O25: Cuantitativo | P25: 1 | Q25: - TR.i: Total revista indexadas por COLCIENCIAS. - TR: Total de revistas. | R25: =VLOOKUP(B25,Indicadores!D27:K109,6,FALSE) -> Centro de Investigaciones y Desarrollo Científico | S25: - | U25: - Revista: Una publicación periódica que incorpora resultados de procesos de investigación que aportan, impactan y dan valor agregado a la comunidad académica, científica, empresarial y a la sociedad en general, medio primordial y universal de la comunicación científica, tanto en procesos de difusión como de divulgación, que puede incorporar conocimientos técnicos y tecnológicos y abarcar diferentes campos de conocimiento. Permite discutir y validar la calidad de la investigación y de los conocimientos desarrollados en esta, y puede comportarse como una de las entradas en procesos de innovación. Así mismo reconoce y protege los derechos del autor, y se convierte en un archivo de conocimiento. | V25: Anual | W25: Dadas la diversidad de tipos de investigación y la variedad de criterios existentes se considera adecuado realizar revisión de otros tipos de indexación adicional a la generada por Publindex. Tales como Scopus, SciELo Colombia, Redalyc, Dialnet, DOAJ, Directorio Latindex y REDIB.
A26: 22. Aumentar la producción científica anual publicada en revistas indexadas. | B26: Aumentar la producción científica anual publicada en revistas indexadas. | C26: 3. Integrar las funciones universitarias por medio de la investigación, creación, innovación para la ampliación del conocimiento como bien público y para la solución de problemas de la ciudad -región y de la sociedad en general. | D26: 22 | E26: - Definición y desarrollo de la agenda de investigación-innovación-creación institucional con la comunidad universitaria y con el apoyo de actores interesados, estableciendo mecanismos de participación de acuerdo con los contextos, saberes y conocimientos de los participantes. - Formulación de una política de investigación que permita la creación de programas, proyectos, líneas y áreas de investigación que estimulen la producción científica, y la solución de problemas de la ciudad-región y del país. - Consolidar y cualificar los grupos y semilleros de investigación. - Creación de redes de investigación, nacionales e internacionales; y promover las membresías pertinentes. - Promover la categorización de grupos de investigación en las convocatorias que para efecto se reglamenten. | F26: ∑ Artículos indexados en SCOPUS | G26: Número de artículos científicos indexados en SCOPUS | H26: Número de articulados indexados en SCOPUS | I26: Artículos | J26: Centro de Investigaciones y Desarrollo Científico | K26: - | L26: - | M26: - | N26: 208 | O26: Cuantitativo | P26: 550 | Q26: - | R26: =VLOOKUP(B26,Indicadores!D28:K110,6,FALSE) -> Centro de Investigaciones y Desarrollo Científico | S26: - | U26: - Artículo: Trabajo académico de una extensión breve o media, que pretende exponer el resultado de una investigación de aspiraciones científicas, sea de tipo experimental o teórico. El propósito de un artículo de investigación es divulgar los resultados de un estudio, los cuales suponen un aporte en el ámbito de la especialidad, sea que se trate de ciencias naturales o ciencias sociales. | V26: Anual | W26: -
A27: 23. Crear al menos 3 empresas spin-off, 15 empresas incubadas e institutos de investigación e innovación. | B27: Crear al menos 3 empresas spin-off, 15 empresas incubadas e institutos de investigación e innovación. | C27: 3. Integrar las funciones universitarias por medio de la investigación, creación, innovación para la ampliación del conocimiento como bien público y para la solución de problemas de la ciudad -región y de la sociedad en general. | D27: 23 | E27: - Expedición de la reglamentación interna que defina el marco y las condiciones para la creación y la gestión de las empresas. - Desarrollo de las actividades que aborden las problemáticas de los sectores productivos, e integren a la comunidad universitaria en la búsqueda de soluciones efectivas que respondan a las necesidades diagnosticadas. | F27: ∑ de Spin-off y Startup Operativos | G27: Número de Spin-Off y Start-ups operativos | H27: Número de Spin-off y Start-ups | I27: Empresas | J27: Centro de Investigaciones y Desarrollo Científico | K27: - | L27: - | M27: - | N27: 0 | O27: Cuantitativo | P27: 20 | Q27: - | R27: =VLOOKUP(B27,Indicadores!D29:K111,6,FALSE) -> Vicerrectoría Académica Centro de Investigaciones y Desarrollo Científico | S27: - | U27: - Spin-off : Tipo particular de empresas de base tecnológica que surgen en el seno de las comunidades universitarias, con el objetivo de explotar comercialmente sus invenciones, transfiriendo el conocimiento científico y tecnológico, de los laboratorios y las aulas al mercado. - Start-Up: Empresa de nueva creación que comercializa productos y/o servicios a través del uso intensivo de las tecnologías de la información y la comunicación (TIC’s), con un modelo de negocio escalable el cual le permite un crecimiento rápido y sostenido en el tiempo. | V27: Anual | W27: -
A28: 24. Incrementar los proyectos de cofinanciación externa en 45%, cuyos recursos provengan de organismos internacionales, los sistemas de ciencia tecnología e innovación. | B28: Incrementar los proyectos de cofinanciación externa en 45%, cuyos recursos provengan de organismos internacionales, los sistemas de ciencia tecnología e innovación. | C28: 3. Integrar las funciones universitarias por medio de la investigación, creación, innovación para la ampliación del conocimiento como bien público y para la solución de problemas de la ciudad -región y de la sociedad en general. | D28: 24 | E28: - Fortalecer los diálogos e intercambios con organismos internacionales, entidades estatales y sectores productivos. - Actualización y ajuste, a los intereses de la Universidad, del Estatuto de Propiedad Intelectual. - Incrementar el número de doctores que participan en el desarrollo de acciones encaminadas a la apropiación social del conocimiento. | F28: ∑ Proyectos de cofinanciación | G28: Número de proyectos cofinanciados entre la Universidad y otras entidades | H28: Número de proyectos de cofinanciación | I28: Proyectos de investigación | J28: Centro de Investigaciones y Desarrollo Científico | K28: - | L28: - | M28: - | N28: 17 | O28: Cuantitativo | P28: 25 | Q28: - | R28: Centro de Investigaciones y Desarrollo Científico | S28: - | U28: - Proyecto de investigación: Consiste en planear e implementar un proceso sistemático de captura y análisis de información para alcanzar un objetivo específico, que se desarrolla a través de metodologías y técnicas tomando en cuenta los recursos disponibles. | V28: Anual | W28: El indicador se basa en los proyectos cuyo inicio y ejecución se realice en el año del reporte.
A29: =D29&". "&B29 -> 25. Lograr el pleno apoyo a la investigación, la creación, la formación, la innovación y el incremento de la productividad y competitividad de las empresas de la ciudad región, por medio de convenios de cooperación con los diferentes sectores. | B29: Lograr el pleno apoyo a la investigación, la creación, la formación, la innovación y el incremento de la productividad y competitividad de las empresas de la ciudad región, por medio de convenios de cooperación con los diferentes sectores. | C29: 3. Integrar las funciones universitarias por medio de la investigación, creación, innovación para la ampliación del conocimiento como bien público y para la solución de problemas de la ciudad -región y de la sociedad en general. | D29: 25 | E29: - Creación y funcionamiento de un Centro de Innovación y Emprendimiento que contribuya a dar respuesta a las necesidades de los empresarios de la ciudad región, y promueva la articulación interdisciplinaria de servicios a los sectores económicos y la apropiación social del conocimiento como bien público. - Establecer alianzas estratégicas y apoyar los parques tecnológicos en las áreas de influencia de la universidad. - Concertar acciones de investigación, formación y asesoría con las empresas de los sectores productivos de la ciudad-región. | F29: ∑ Convenios de la Universidad | G29: Número de convenios entre la Universidad y otras entidades | H29: Número de proyectos de cofinanciación | I29: Proyectos de cofinanciación | J29: Centro de Investigaciones y Desarrollo Científico | K29: - | L29: - | M29: - | N29: 0 | O29: Cuantitativo | P29: 5 | Q29: - | R29: =VLOOKUP(B29,Indicadores!D31:K113,6,FALSE) -> Vicerrectoría Académica Centro de Investigaciones y Desarrollo Científico Centro de Relaciones Interinstitucionales | S29: - | U29: - Convenio: Es aquel acuerdo en el que concurre la voluntad de dos o más personas jurídicas de derecho público con la finalidad de cumplir, en el marco de sus objetivos misionales y sus competencias. Para fines del indicador solo se relacionaran los que tengan como finalidad la investigación. | V29: Anual | W29: -
A30: 26. Aumentar al 50% el número de docentes con Doctorado. | B30: Aumentar al 50% el número de docentes con Doctorado. | C30: 3. Integrar las funciones universitarias por medio de la investigación, creación, innovación para la ampliación del conocimiento como bien público y para la solución de problemas de la ciudad -región y de la sociedad en general. | D30: 26 | E30: - Consolidación de los planes de formación doctoral para docentes de planta. | F30: (D.DOC/T.DOC) ∗100 | G30: Porcentaje de docentes con doctorado | H30: Número de docentes con doctorado | I30: Docentes | J30: Oficina de Docencia | K30: Número de docentes de planta | L30: Docentes | M30: División de Recursos Humanos | N30: 0.18 | O30: Cuantitativo | P30: 0.5 | Q30: - DDOC: Docentes con doctorado. - T. DOC: Número total de docentes. | R30: =VLOOKUP(B30,Indicadores!D32:K114,6,FALSE) ->  | S30: - | U30: - | V30: Anual | W30: -
A31: 27. Ampliar, mejorar y modernizar física, tecnológica y ambientalmente la infraestructura, esto de acuerdo con la proyección de la cobertura y las políticas de inclusión. | B31: Ampliar, mejorar y modernizar física, tecnológica y ambientalmente la infraestructura, esto de acuerdo con la proyección de la cobertura y las políticas de inclusión. | C31: 4. Garantizar, gestionar y proveer las condiciones institucionales para el cumplimiento de las funciones universitarias y el bienestar de su comunidad. | D31: 27 | E31: - Elaborar y ejecutar el Plan Maestro de Espacios Educativos. - Desarrollo y actualización sostenible de la infraestructura universitaria de manera articulada entre las sedes de la universidad; además con una relación amable y respetuosa con el medio ambiente. - Promoción de la cultura de respeto por el ambiente y la sostenibilidad ambiental. - Desarrollo y consolidación de un campus digital que conecte a las distintas dependencias académicas y administrativas y que supere las distancias territoriales entre las distintas sedes de la Universidad. - Fortalecimiento de un sistema integral de información institucional que garantice su disponibilidad y la memoria institucional. - Favorecer los indicadores de área por estudiante para el desarrollo de la actividad curricular. - Desarrollo y actualización sostenible de la infraestructura universitaria de manera articulada entre las sedes de la universidad; además con una relación amable y respetuosa con el medio ambiente. | F31: ∑ Metros cuadrados (m2) construidos | G31: Metros cuadrados | H31: Metros cuadrados construidos | I31: Metros cuadrados | J31: Oficina Asesora de Planeación y Control | K31: - | L31: - | M31: - | N31: 104609 | O31: Cuantitativo | P31: 183609 | Q31: - | R31: =VLOOKUP(B31,Indicadores!D33:K115,6,FALSE) -> Oficina Asesora de Planeación y Control | S31: - | U31: - | V31: Anual | W31: -
A32: 28. Consolidar cuatro centros de recursos para el aprendizaje y la investigación -CRAI-. | B32: Consolidar cuatro centros de recursos para el aprendizaje y la investigación -CRAI-. | C32: 4. Garantizar, gestionar y proveer las condiciones institucionales para el cumplimiento de las funciones universitarias y el bienestar de su comunidad. | D32: 28 | E32: - Creación e implementación del sistema CRAI (Centro de Recursos para el Aprendizaje y la Investigación) que articule los medios educativos de la universidad. | F32: ∑ CRAI Consolidados | G32: Número de CRAI consolidados | H32: Número de CRAI | I32: CRAI consolidados | J32: Sección de Biblioteca | K32: - | L32: - | M32: - | N32: 0 | O32: Cuantitativo | P32: 4 | Q32: - CRAI: Centro de Recursos para el Aprendizaje y la Investigación. | R32: =VLOOKUP(B32,Indicadores!D34:K116,6,FALSE) -> Sección de Biblioteca | S32: - | U32: - CRAI: El Centro de Recursos para el Aprendizaje y la Investigación. El CRAI tiene la misión de poner a disposición de los estudiantes y maestros diferentes recursos que faciliten los procesos de enseñanza-aprendizaje tanto offline como online (Mac Kee, 2005). En otras palabras, el CRAI ofrece una variedad de servicios y recursos tanto físicos como virtuales que el docente puede utilizar para hacer de sus clases, un espacio dinámico donde los estudiantes además de aprender sobre los temas propios de la materia desarrollen un pensamiento crítico y un gusto por la investigación como sabemos son fuente de información para el aprendizaje. | V32: Anual | W32: -
A33: 29. Fortalecer las competencias de los servidores públicos al servicio de la institución, en beneficio del cumplimiento de las funciones institucionales. | B33: Fortalecer las competencias de los servidores públicos al servicio de la institución, en beneficio del cumplimiento de las funciones institucionales. | C33: 4. Garantizar, gestionar y proveer las condiciones institucionales para el cumplimiento de las funciones universitarias y el bienestar de su comunidad. | D33: 29 | E33: - Identificar los avances en materia de conocimiento científico, tecnológico y de innovación que inciden en la organización, gestión y productividad de los procesos institucionales. - Conocer las necesidades que expresan los resultados de la evaluación del desempeño; determinar las observaciones de las auditorías, internas y externas sobre la gestión y sus resultados; y diagnosticar las necesidades de los servidores públicos en materia de conocimientos. - Construcción de una cultura organizacional universitaria basada en la solidaridad y el respeto por lo público que permita promover la transparencia, la ética y la responsabilidad colectiva en el marco de la autonomía universitaria. | F33: Evaluación del desempeño laboral implementada | G33: Evaluación del desempeño laboral implementada | H33: Evaluación del desempeño laboral implementada | I33: Evaluación del desempeño laboral implementada | J33: División de Recursos Humanos | K33: - | L33: - | M33: - | N33: Sin medición | O33: Cualitativo | P33: Evaluación del desempeño laboral implementada | R33: =VLOOKUP(B33,Indicadores!D35:K117,6,FALSE) -> División de Recursos Humanos Vicerrectoría Académica | S33: - | U33: - | V33: Seguimiento anual
A34: 30. Aumentar al 100% la vinculación de empleados administrativos conforme al sistema de carrera administrativa. | B34: Aumentar al 100% la vinculación de empleados administrativos conforme al sistema de carrera administrativa. | C34: 4. Garantizar, gestionar y proveer las condiciones institucionales para el cumplimiento de las funciones universitarias y el bienestar de su comunidad. | D34: 30 | E34: - Aumentar y cualificar la planta de empleos docentes y administrativos, en correspondencia con la organización interna, la proyección de cobertura y las condiciones institucionales. | F34: [(E. Carrera/(T. Empleados)]*100 | G34: Porcentaje de empleados que están nombrados dentro de la carrera administrativa | H34: Número de empleados en carrera administrativa | I34: Empleados | J34: División de Recursos Humanos | K34: Número de empleados | L34: Empleados | M34: División de Recursos Humanos | N34: 0.26 | O34: Cuantitativo | P34: 1 | Q34: - E.Carr: Empleados en carrera administrativa. - T. Emp: Total empleados. | R34: =VLOOKUP(B34,Indicadores!D36:K118,6,FALSE) ->  | S34: - | U34: - | V34: Anual | W34: -
A35: 31. Aumentar el número de docentes de planta en un 45% y disminuir la vinculación especial en un 10%. | B35: Aumentar el número de docentes de planta en un 45% y disminuir la vinculación especial en un 10%. | C35: 4. Garantizar, gestionar y proveer las condiciones institucionales para el cumplimiento de las funciones universitarias y el bienestar de su comunidad. | D35: 31 | E35: - Implementar estrategias orientadas a incentivar los ascensos en el escalafón de los docentes de carrera y docentes especiales. | F35: ∑ Docentes nombrados de planta | G35: Número de docentes de planta nombrados | H35: Número total de docentes | I35: Docentes | J35: División de Recursos Humanos | K35: - | L35: - | M35: - | N35: 670 | O35: Cuantitativo | P35: 980 | Q35: - | R35: =VLOOKUP(B35,Indicadores!D37:K119,6,FALSE) -> Vicerrectoría Académica División de Recursos Humanos | S35: - | U35: - Docente de planta o de carrera: Es docente de carrera la persona natural inscrita en el escalafón docente de la Universidad o que se encuentre en periodo de prueba, de acuerdo con los requisitos establecidos en el Estatuto Docente (Acuerdo 011 de 2002 del Consejo Superior Universitario). Su vinculación será por concurso público de méritos y mediante nombramiento. | V35: Anual | W35: -
A36: 32. Generar una cultura institucional que respete las diferencias y garantice el bienestar de las personas en situación de discapacidad. | B36: Generar una cultura institucional que respete las diferencias y garantice el bienestar de las personas en situación de discapacidad. | C36: 4. Garantizar, gestionar y proveer las condiciones institucionales para el cumplimiento de las funciones universitarias y el bienestar de su comunidad. | D36: 32 | E36: - Motivar el conocimiento de lenguajes y actividades interactivas entre los servidores de la entidad y las personas en situación de discapacidad. - Adecuar las instalaciones para garantizar el bienestar de las personas en situación de discapacidad. | F36: [(D/A.LenAcc)/ (T.DOC/Adm)]∗100 | G36: Porcentaje de docentes y administrativos (de planta) capacitados en lenguajes accesibles | H36: Número de docentes o administrativos con dominio en algún lenguaje accesible (braille, lenguaje de señas, etc.). | I36: Docentes y administrativos | J36: NEES/CADEP ACACIA | K36: Número de docentes y administrativos | L36: Docentes y administrativos | M36: División de Recursos Humanos | N36: 0 | O36: Cuantitativo | P36: 0.3 | Q36: - D/A.LenAcc: Docentes o administrativos con dominio en algún lenguaje accesible (braille, lenguaje de señas, etc.). - T.DOC/Adm: Total docentes o administrativos de planta. | R36: =VLOOKUP(B36,Indicadores!D38:K120,6,FALSE) -> División de Recursos Humanos Oficina de Docencia | S36: - | U36: - | V36: Anual | W36: -
A37: 33. Implementar los dominios identificados en el marco de referencia IT 4+ establecidos por MinTIC | B37: Implementar los dominios identificados en el marco de referencia IT 4+ establecidos por MinTIC | C37: 5. Consolidar y fortalecer la democracia participativa, la gobernanza y la gobernabilidad para la cohesión de la comunidad universitaria. | D37: 33 | E37: - Garantizar tecnologías y canales digitales que permitan generar, procesar y acceder a información oportuna sobre las funciones universitarias, los procesos y procedimientos institucionales, el trámite de servicios, la recepción de solicitudes y la generación de respuestas pertinentes y satisfactorias. | F37: ∑ Dominios implementados según Marco de referencia IT4+ | G37: Dominios implementados según Marco de referencia IT4+ | H37: Número de dominios implementados | I37: Dominios | J37: Oficina Asesora de Sistemas | K37: - | L37: - | M37: - | N37: 0 | O37: Cuantitativo | P37: 6 | Q37: - | R37: =VLOOKUP(B37,Indicadores!D39:K121,6,FALSE) -> Oficina Asesora de Sistemas | S37: - | U37: - | V37: Anual | W37: -
A38: 34. Alcanzar la implementación del cuarto componente de Gobierno en Línea (Seguridad y privacidad de la información). | B38: Alcanzar la implementación del cuarto componente de Gobierno en Línea (Seguridad y privacidad de la información). | C38: 5. Consolidar y fortalecer la democracia participativa, la gobernanza y la gobernabilidad para la cohesión de la comunidad universitaria. | D38: 34 | E38: - Garantizar la divulgación de toda información pública generada por la universidad; así como el control de la información pública clasificada y reservada que maneja la institución. | F38: [(A.GEL Imp)/(Total de A.GEL)]∗100 | G38: Porcentaje de implementación del componente de Gobierno en Línea. | H38: Actividades del componente implementadas | I38: Actividades | J38: Oficina Asesora de Sistemas | K38: Total de actividades del componente implementadas. | L38: Actividades | M38: Oficina Asesora de Sistemas | N38: 0.06 | O38: Cuantitativo | P38: 1 | Q38: - A. GEL: Actividades del componente implementadas. - Total de A. GEL: Total de actividades del componente implementadas. | R38: =VLOOKUP(B38,Indicadores!D40:K122,6,FALSE) -> Oficina Asesora de Sistemas | S38: - | U38: - | V38: Anual | W38: -
A39: 35. Lograr la calidad y disponibilidad del 100% de la información institucional, que no tenga restricción constitucional ni legal. | B39: Lograr la calidad y disponibilidad del 100% de la información institucional, que no tenga restricción constitucional ni legal. | C39: 5. Consolidar y fortalecer la democracia participativa, la gobernanza y la gobernabilidad para la cohesión de la comunidad universitaria. | D39: 35 | E39: - Garantizar la divulgación de toda información pública generada por la universidad; así como el control de la información pública clasificada y reservada que maneja la institución. | F39: [(Información disponible en la web)/(Total de información de la Universidad)]∗100 | G39: Porcentaje de información disponible en la página web | H39: Información disponible en la web | I39: Información disponible en la web | J39: Oficina de Quejas, Reclamos y Atención al Ciudadano | K39: Información disponible en la web | L39: Información disponible en la web | M39: Oficina de Quejas, Reclamos y Atención al Ciudadano | N39: 1 | O39: Cuantitativo | P39: 1 | Q39: - | R39: =VLOOKUP(B39,Indicadores!D41:K123,6,FALSE) -> Secretaría General | S39: - | U39: - | V39: Anual | W39: -
A40: 36. Implementar mecanismos de participación, de los diferentes estamentos, de la comunidad universitaria, en las instancias de planeación, gestión, seguimiento y evaluación de la Universidad. | B40: Implementar mecanismos de participación, de los diferentes estamentos, de la comunidad universitaria, en las instancias de planeación, gestión, seguimiento y evaluación de la Universidad. | C40: 5. Consolidar y fortalecer la democracia participativa, la gobernanza y la gobernabilidad para la cohesión de la comunidad universitaria. | D40: 36 | E40: - Consolidación de mecanismos de democracia participativa, donde la comunidad universitaria se involucre en la toma decisiones y en las dinámicas propias de la institución. - Promover formas de organización, interacción y asociación de los estudiantes para su participación activa en los asuntos de la vida universitaria y de la sociedad. - Adelantar diálogos con las diferentes representaciones de la sociedad civil, las agencias de cooperación, el sector privado y la academia para cualificar el proceso de rendición pública de cuentas. | F40: [(Instancias participando efectivamente)/(Total de instancias de la Universidad)]∗100 | G40: Porcentaje de instancias de planeación, seguimiento , evaluación y gestión con participación efectiva de los estamentos de la Comunidad Universitaria | H40: Número de instancias de participación funcionando activamente | I40: Instancias | J40: Secretaría General, Vicerrectoría Académica | K40: Total de instancias de la Universidad | L40: Instancias | M40: Secretaría General, Vicerrectoría Académica | N40: Sin medición | O40: Cuantitativo | P40: 1 | Q40: - | R40: =VLOOKUP(B40,Indicadores!D42:K124,6,FALSE) -> Consejo Superior Universitario Consejo Académico Rectoría | S40: - | U40: - | V40: Anual | W40: -
A41: 37. Lograr un nivel de satisfacción mínimo del 80% por parte de las personas que utilizan los servicios de la Universidad. | B41: Lograr un nivel de satisfacción mínimo del 80% por parte de las personas que utilizan los servicios de la Universidad. | C41: 5. Consolidar y fortalecer la democracia participativa, la gobernanza y la gobernabilidad para la cohesión de la comunidad universitaria. | D41: 37 | E41: - Garantizar la recepción y respuesta al 100% de las peticiones, quejas y reclamos, a través de canales y medios que se ajusten a las necesidades y capacidades de las personas que los interponen. - Construir, ejecutar y evaluar periódicamente la estrategia de participación y rendición de cuentas. - Implementar un sistema integrado de comunicaciones que permita gestionar, articular y medir su impacto en la publicidad, difusión, acceso y apropiación de la información para favorecer la visibilidad institucional nacional e internacionalmente. - Estudiar las causas por las cuales se producen las peticiones, quejas y reclamos y adoptar mecanismos que permitan el mejoramiento continuo en la prestación de los servicios. | F41: [(Usuario≥4 y 5)/(T. Usuarios)]∗100 | G41: Porcentaje de usuarios que califican con 4 o 5 los servicios ofrecidos por la Universidad | H41: Número de usuarios que evaluaron los servicios por arriba de 4 | I41: Usuarios | J41: Oficina de Quejas, Reclamos y Atención al Ciudadano | K41: Número de usuarios que participaron | L41: Usuarios | M41: Oficina de Quejas, Reclamos y Atención al Ciudadano | N41: Sin medición | O41: Cuantitativo | P41: 0.8 | Q41: - | R41: =VLOOKUP(B41,Indicadores!D43:K125,6,FALSE) -> Vicerrectoría Académica | S41: - | U41: - | V41: Anual | W41: -
A42: 38. Actualizar, compilar, depurar y difundir el 100% de las normas expedidas por las autoridades institucionales. | B42: Actualizar, compilar, depurar y difundir el 100% de las normas expedidas por las autoridades institucionales. | C42: 5. Consolidar y fortalecer la democracia participativa, la gobernanza y la gobernabilidad para la cohesión de la comunidad universitaria. | D42: 38 | E42: - Fortalecimiento y ampliación de mecanismos que garanticen la eficiencia, eficacia y efectividad de las funciones universitarias; la transparencia y la ética en la toma de decisiones y en la operación institucional; y la seguridad jurídica institucional. | F42: [(Normatividad verificada)/(Total de normatividad expedida por la UD)]∗100 | G42: Porcentaje de verificación de la vigencia de la normatividad interna | H42: Normatividad verificada | I42: Normas | J42: Secretaría General | K42: Normatividad expedida | L42: Normas | M42: Secretaría General | N42: Sin medición | O42: Cuantitativo | P42: 1 | Q42: - | R42: =VLOOKUP(B42,Indicadores!D44:K126,6,FALSE) -> Secretaría General | S42: - | U42: - | V42: Anual | W42: -
A43: 39. Actualizar, simplificar y flexibilizar anualmente la operación de los procesos institucionales en el cumplimiento de las funciones universitarias. | B43: Actualizar, simplificar y flexibilizar anualmente la operación de los procesos institucionales en el cumplimiento de las funciones universitarias. | C43: 5. Consolidar y fortalecer la democracia participativa, la gobernanza y la gobernabilidad para la cohesión de la comunidad universitaria. | D43: 39 | E43: - Fortalecimiento y ampliación de mecanismos que garanticen la eficiencia, eficacia y efectividad de las funciones universitarias; la transparencia y la ética en la toma de decisiones y en la operación institucional; y la seguridad jurídica institucional. | F43: [(Procesos Actualizados)/(Total de procesos)]∗100 | G43: Porcentaje de actualización de Procesos SIGUD | H43: Número de procesos actualizados | I43: Porcentaje | J43: Oficina Asesora de Planeación y Control | K43: Número de procesos | L43: Procesos | M43: Oficina Asesora de Planeación y Control | N43: 1 | O43: Cuantitativo | P43: 1 | Q43: - | R43: =VLOOKUP(B43,Indicadores!D45:K127,6,FALSE) -> Oficina Asesora de Planeación y Control | S43: - | U43: - | V43: Anual | W43: Procesos Actualizados: Hace referencia a los procesos que durante la vigencia evaluada cumplen con todas las siguientes caracteristicas: 1. Realizó actualización documental. 2. Implemento alguna mejora en la operación del proceso. 3. Realizo de manera efectiva el cierre de brechas identificas en la Auditorias Internas o Externas al Proceso y revisiones por la Alta Dirección.
A44: 40. Establecer la adecuada asignación de funciones, competencias, seguridad jurídica y equilibrio institucional en la organización, gobierno y gestión de la Universidad. | B44: Establecer la adecuada asignación de funciones, competencias, seguridad jurídica y equilibrio institucional en la organización, gobierno y gestión de la Universidad. | C44: 5. Consolidar y fortalecer la democracia participativa, la gobernanza y la gobernabilidad para la cohesión de la comunidad universitaria. | D44: 40 | E44: - Revisión, actualización y modernización del Estatuto General y de las demás normas estatutarias requeridas para el cumplimiento de las funciones institucionales, con las debidas consultas a la comunidad universitaria. | F44: [(Normas actualizadas)/(Total de normas estatutarias)]∗100 | G44: Porcentaje de normas estatutarias actualizadas. | H44: Normatividad actualizada | I44: Normas | J44: Secretaría General | K44: Total de normas estatutarias | L44: Normas | M44: Secretaría General | N44: 0 | O44: Cuantitativo | P44: 1 | Q44: - | R44: =VLOOKUP(B44,Indicadores!D46:K128,6,FALSE) -> Secretaría General | S44: - | U44: - | V44: Anual | W44: -
A45: 41. Conseguir la publicación oportuna y completa de toda la información relacionada con el principio de transparencia y derecho de acceso a información pública, de acuerdo con la Ley 1712 de 2014. | B45: Conseguir la publicación oportuna y completa de toda la información relacionada con el principio de transparencia y derecho de acceso a información pública, de acuerdo con la Ley 1712 de 2014. | C45: 5. Consolidar y fortalecer la democracia participativa, la gobernanza y la gobernabilidad para la cohesión de la comunidad universitaria. | D45: 41 | E45: - Consolidación de sistemas de gestión, control, seguimiento, digitalización y acceso a la información, gestión documental, servicio en línea, trámites institucionales y atención a las personas. | F45: [(Información publicada)/(Información publicable según ley)]∗100 | G45: Porcentaje de información publicada según la ley 1712 de 2014 | H45: Información disponible en la web | I45: Información disponible en la web | J45: Oficina de Quejas, Reclamos y Atención al Ciudadano | K45: Información disponible en la web | L45: Información disponible en la web | M45: Oficina de Quejas, Reclamos y Atención al Ciudadano | N45: Sin medición | O45: Cuantitativo | P45: 1 | Q45: - | R45: =VLOOKUP(B45,Indicadores!D47:K129,6,FALSE) -> Oficina de Quejas, Reclamos y Atención al Ciudadano | S45: - | U45: - | V45: Anual | W45: Con el fin de dar mayor contexto sobre los resultados del indicador, el reporte se acompañará de los resultados asociados a los indices y subindices de transparencia.
A46: 42. (A) Lograr indicadores de cero corrupción en la gestión institucional. | B46: (A) Lograr indicadores de cero corrupción en la gestión institucional. | C46: 5. Consolidar y fortalecer la democracia participativa, la gobernanza y la gobernabilidad para la cohesión de la comunidad universitaria. | D46: 42A | E46: - Estudiar, detectar, tratar y eliminar los riesgos de corrupción, motivando la participación de la comunidad universitaria y de la sociedad en la vigilancia de la gestión y la protección del patrimonio de la Universidad. | F46: PAAC de cada Vigencia | G46: PAAC de cada Vigencia | H46: PAAC de la vigencia | I46: Plan | J46: Oficina Asesora de Planeación y Control | K46: - | L46: - | M46: - | N46: PAAC | O46: Cualitativo | P46: PAAC de cada Vigencia | Q46: PAAC: Plan Anticorrupción y de Atención al Ciudadano | R46: =VLOOKUP(B46,Indicadores!D48:K130,6,FALSE) ->  | S46: - | U46: - PAAC: De acuerdo a lo establecido en el Estatuto Anticorrupción (Artículo 73 de la Ley 1474 de 2011) y el Decreto 2641 de 2012, el Plan Anticorrupción y de Atención al Ciudadano se plantea como la estrategia que la Universidad Distrital Francisco José de Caldas ha definido para la lucha contra la corrupción y el afianzamiento de la cultura de servicio al ciudadano, tiene como objetivo específico la prevención de eventos y situaciones de corrupción que eventualmente se puedan presentar en el entorno. | V46: Anual | W46: El Reporte del indicador se debe realizar tomando como referencia el porcentaje de ejecución del PAAC para la vigencia evaluada. Discriminandolo de acuerdo al cumplimiento obtenido en cada uno de los componentes establecidos (1. Gestión de Riesgos de Corrupción Mapa de Riesgos de Corrupción; 2. Racionalización de trámites; 3. Redición de cuentas; 4. Mecanismos para mejorar la Atención al Ciudadano; 5. Mecanismos para mejorar la Trasparencia y Acceso a la Información; 6. Integridad).
A47: 42. (B) Lograr indicadores de cero corrupción en la gestión institucional. | B47: (B) Lograr indicadores de cero corrupción en la gestión institucional. | C47: 5. Consolidar y fortalecer la democracia participativa, la gobernanza y la gobernabilidad para la cohesión de la comunidad universitaria. | D47: 42B | E47: - Estudiar, detectar, tratar y eliminar los riesgos de corrupción, motivando la participación de la comunidad universitaria y de la sociedad en la vigilancia de la gestión y la protección del patrimonio de la Universidad. | F47: ∑ Número de canales de atención en las localidades de Bogotá | G47: Número de canales de atención en las localidades de Bogotá | H47: Número de canales de atención en Bogotá | I47: Canales | J47: Oficina de Quejas, Reclamos y Atención al Ciudadano | K47: - | L47: - | M47: - | N47: 6 | O47: Cuantitativo | P47: 15 | Q47: - | R47: =VLOOKUP(B47,Indicadores!D49:K131,6,FALSE) ->  | S47: - | U47: - | V47: Anual | W47: -
A48: 42. (C) Lograr indicadores de cero corrupción en la gestión institucional. | B48: (C) Lograr indicadores de cero corrupción en la gestión institucional. | C48: 5. Consolidar y fortalecer la democracia participativa, la gobernanza y la gobernabilidad para la cohesión de la comunidad universitaria. | D48: 42C | E48: - Estudiar, detectar, tratar y eliminar los riesgos de corrupción, motivando la participación de la comunidad universitaria y de la sociedad en la vigilancia de la gestión y la protección del patrimonio de la Universidad. | F48: ∑ Número de rendiciones de cuentas realizadas a la comunidad anualmente | G48: Número de rendiciones de cuentas realizadas a la comunidad anualmente | H48: Número de rendiciones de cuenta anuales | I48: Rendiciones de cuentas | J48: Oficina de Quejas, Reclamos y Atención al Ciudadano | K48: - | L48: - | M48: - | N48: 1 | O48: Cuantitativo | P48: 1 | Q48: - | R48: =VLOOKUP(B48,Indicadores!D50:K132,6,FALSE) ->  | S48: - | U48: - | V48: Anual | W48: -

Sheet Indicadores (hidden)
B2: INSTRUMENTO DE SEGUIMIENTO Y EVALUACIÓN PED 2018-2030
B4: PLAN ESTRATÉGICO DE DESARROLLO 2018-2030 | F4: SEGUIMIENTO | M4: Vigencias | N4: Metas | O4: Lineamientos | P4: Metas
B5: Lineamiento | C5: Metas | E5: Estrategias | F5: Indicador | G5: Unida de Medida | H5: Línea Base (cierre 2017) | I5: Unidades responsables | J5: Meta 2030 | M5: 2018 | N5: 1. Mantener y elevar la acreditación institucional de alta calidad y alcanzar el reconocimiento internacional. | O5: 1. Formar ciudadanos, profesionales, investigadores, creadores e innovadores, íntegros con pensamiento crítico y cultura democrática, en contextos diferenciados inter y multiculturales para la transformación de la sociedad. | P5: 2. Aumentar el 34% en el número de estudiantes de pregrado matriculados.
C6: No. | D6: Descripción | K6: 2030 | M6: 2019 | N6: 2. Aumentar el 34% en el número de estudiantes de pregrado matriculados. | O6: 2. Establecer un diseño curricular dinámico y flexible que promueva el pluralismo y consolide una comunidad universitaria crítica transformadora y en armonía ambiental. | P6: 3. Aumentar el 65% de estudiantes matriculados en posgrado.
B7: LINEAMIENTO 1. Formar ciudadanos, profesionales, investigadores, creadores e innovadores, íntegros con pensamiento crítico y cultura democrática, en contextos diferenciados inter y multiculturales para la transformación de la sociedad. | C7: 1 | D7: Mantener y elevar la acreditación institucional de alta calidad y alcanzar el reconocimiento internacional. | E7: Difusión y apropiación del Proyecto Universitario Institucional. | F7: Documento de Resolución MEN Acreditación Institucional | G7: Documento de Resolución MEN Acreditación Institucional | H7: Universidad Acreditada | I7: Coordinación General de Autoevaluación y Acreditación | J7: Acreditación Institucional Vigente | K7: Acreditación Institucional Vigente | M7: 2020 | N7: 3. Aumentar el 65% de estudiantes matriculados en posgrado. | O7: 3. Integrar las funciones universitarias por medio de la investigación, creación, innovación para la ampliación del conocimiento como bien público y para la solución de problemas de la ciudad -región y de la sociedad en general. | P7: 4. Aumentar en 28% el número de programas en todos los niveles y modalidades.
E8: Desarrollar de manera permanente procesos de autoevaluación que se traduzcan en planes de mejoramiento continuo. | M8: 2021 | N8: 4. Aumentar en 28% el número de programas en todos los niveles y modalidades. | O8: 4. Garantizar, gestionar y proveer las condiciones institucionales para el cumplimiento de las funciones universitarias y el bienestar de su comunidad. | P8: 5. Lograr homologación y transferencia del 100% de la oferta académica de la Universidad entre sus diferentes niveles de formación.
E9: Elevar el nivel de desempeño de los estudiantes en las pruebas Saber Pro. | N9: 5. Lograr homologación y transferencia del 100% de la oferta académica de la Universidad entre sus diferentes niveles de formación. | O9: 5. Consolidar y fortalecer la democracia participativa, la gobernanza y la gobernabilidad para la cohesión de la comunidad universitaria. | P9: 6. Lograr que los proyectos de extensión respondan a la interacción entre las problemáticas del entorno y los procesos de investigación, y que sus resultados vinculen e impacten comunidades de la ciudad y la región.
E10: Adopción de mecanismos que permitan mayor equidad y disminución de las diferencias en las condiciones laborales de los docentes. | N10: 6. Lograr que los proyectos de extensión respondan a la interacción entre las problemáticas del entorno y los procesos de investigación, y que sus resultados vinculen e impacten comunidades de la ciudad y la región. | P10: 7. Aumentar la oferta en 10 programas de formación para el trabajo y desarrollo del talento humano en correspondencia con las necesidades de los sectores productivos y de servicios de la ciudad región.
C11: 2 | D11: Aumentar el 34% en el número de estudiantes de pregrado matriculados. | E11: Consolidación de una oferta académica flexible que articule todas las metodologías de enseñanza, los niveles y los campos de formación, permitiendo el aumento y fortalecimiento de la oferta existente, articulada con la educación básica, media y superior. | F11: (M1semPre + M2semPre)/2 | G11: Número de estudiantes matriculados en pregrado | H11: ASAB= 1.588 Ciencias y Educación= 6.241 Ingeniería= 5.041 FAMARENA= 4.903 Tecnológica= 6.089 Total= 23.862 | I11: Decanaturas de Facultad | J11: 32000 | K11: 32000 | N11: 7. Aumentar la oferta en 10 programas de formación para el trabajo y desarrollo del talento humano en correspondencia con las necesidades de los sectores productivos y de servicios de la ciudad región. | P11: 8. Lograr que 20% de la oferta académica de pregrado y posgrado permita la doble titulación o cotitulación.
C12: 3 | D12: Aumentar el 65% de estudiantes matriculados en posgrado. | F12: (M1semPos + M2semPos )/2 | G12: Numero de estudiantes matriculados en posgrado | H12: ASAB= 85 Ciencias y Educación= 1.222 Ingeniería= 1.396 FAMARENA= 269 Tecnológica= 0 Total= 2.972 | I12: Decanaturas de Facultad | J12: 4904 | K12: 4904 | N12: 8. Lograr que 20% de la oferta académica de pregrado y posgrado permita la doble titulación o cotitulación. | P12: 9. Aumentar el índice de movilidad internacional anual mínimo al 1,3% de la población estudiantil.
C13: 4 | D13: Aumentar en 28% el número de programas en todos los niveles y modalidades. | E13: Consolidación y aumento de una oferta académica flexible que articule los diferentes niveles de formación desde el nivel básico hasta el superior. | F13: Σ Programas con registro calificado | G13: Total de programas con registro calificado vigente | H13: 77 | I13: Decanaturas de Facultad Coordinación de Autoevaluación y Acreditación | J13: 104 | K13: 104 | N13: 9. Aumentar el índice de movilidad internacional anual mínimo al 1,3% de la población estudiantil. | P13: 10. Aumentar el índice de movilidad internacional anual mínimo al 5% de la planta docente.
C14: 5 | D14: Lograr homologación y transferencia del 100% de la oferta académica de la Universidad entre sus diferentes niveles de formación. | F14: (Phom/TP)*100 | G14: Porcentaje de programas que posean algún grado de homologación con otros programas internos o de otras Universidades nacionales o del exterior | H14: 0 | I14: Vicerrectoría Académica Decanaturas de Facultad | J14: 1 | K14: 1 | N14: 10. Aumentar el índice de movilidad internacional anual mínimo al 5% de la planta docente. | P14: 11. Lograr que el 60% de estudiantes tengan un dominio de una segunda lengua en un nivel equivalente a B2.
C15: 6 | D15: Lograr que los proyectos de extensión respondan a la interacción entre las problemáticas del entorno y los procesos de investigación, y que sus resultados vinculen e impacten comunidades de la ciudad y la región. | E15: Promoción del intercambio, la circulación y el diálogo de conocimientos y saberes, a través de encuentros multidisciplinarios de conocimiento. | F15: PePs/Pe∗100 | G15: Porcentaje de Proyectos de Extensión que responden a problemáticas de las comunidades. | H15: 33% | I15: IDEXUD Decanaturas de Facultad CIDC | J15: 0.5 | K15: 0.5 | N15: 11. Lograr que el 60% de estudiantes tengan un dominio de una segunda lengua en un nivel equivalente a B2. | P15: 12. Apoyar a estudiantes de los colegios distritales ubicados en el área de influencia de las sedes de la Universidad, con programas de fortalecimiento de competencias básicas en: matemáticas, ciencias naturales, lectura crítica e inglés.
E16: Gestión de proyectos que promuevan la investigación y la proyección social como instrumentos de articulación de la universidad con la sociedad. | N16: 12. Apoyar a estudiantes de los colegios distritales ubicados en el área de influencia de las sedes de la Universidad, con programas de fortalecimiento de competencias básicas en: matemáticas, ciencias naturales, lectura crítica e inglés. | P16: 13. Disminuir la tasa de deserción anual al 9%
C17: 7 | D17: Aumentar la oferta en 10 programas de formación para el trabajo y desarrollo del talento humano en correspondencia con las necesidades de los sectores productivos y de servicios de la ciudad región. | E17: Promoción de encuentros y articulación con el sector productivo a fin de responder a sus demandas y generar sinergia en la difusión y apropiación del conocimiento. | F17: ∑ Programas de formación | G17: Total de programas de formación para el trabajo y desarrollo del talento humano creados | H17: 0 | I17: IDEXUD Unidades de Extensión de Facultad | J17: 10 | K17: 10 | N17: 13. Disminuir la tasa de deserción anual al 9% | P17: 15. Evaluar, revisar y reformular la oferta curricular de pregrado y posgrado de cada facultad, en el marco de los procesos de autoevaluación continua y los proyectos educativos de las facultades.
C18: 8 | D18: Lograr que 20% de la oferta académica de pregrado y posgrado permita la doble titulación o cotitulación. | E18: Gestión y consolidación de relaciones nacionales e internacionales para fortalecer el intercambio académico, investigativo, de creación e innovación. | F18: (Pdt/c)/TP∗100 | G18: Porcentaje de proyectos curriculares con acuerdos de cotitulación y/o doble titulación | H18: 0.013 | I18: Vicerrectoría Académica Decanaturas de Facultad | J18: 0.2 | K18: 0.2 | N18: 14. Modernizar la organización académica y administrativa de la institución. | P18: 16. Aumentar la tasa de graduación en pregrados al 70%
E19: Establecer y desarrollar un modelo de homologación y equivalencias entre los diferentes programas y las normas que lo reglamenten. | N19: 15. Evaluar, revisar y reformular la oferta curricular de pregrado y posgrado de cada facultad, en el marco de los procesos de autoevaluación continua y los proyectos educativos de las facultades. | P19: 17. Alcanzar una cobertura en el 70% de los docentes en el manejo de tecnologías de la información y comunicación.
C20: 9 | D20: Lograr que el 60% de estudiantes tengan un dominio de una segunda lengua en un nivel equivalente a B2. | E20: Establecer y desarrollar una política institucional de apropiación de la segunda lengua como parte activa de la gestión curricular, y condición para la titulación y la evaluación. | F20: (Est.B2)/(T.EST)∗100 | G20: Porcentaje de estudiantes que tienen un dominio intermedio de una segunda lengua según el MCRE | H20: 0.3628 | I20: Vicerrectoría Académica Decanaturas de Facultad ILUD | J20: 0.6 | K20: 0.6 | N20: 16. Aumentar la tasa de graduación en pregrados al 70% | P20: 18. Lograr que el 40% de los docentes de planta manejen lenguajes que permitan garantizar la atención de comunidades en el marco de la política de inclusión.
C21: 10 | D21: Aumentar el índice de movilidad internacional anual mínimo al 1,3% de la población estudiantil. | E21: Promover y consolidar convenios con universidades internacionales e incrementar los intercambios de estudiantes y docentes. | F21: EstM/(T.EST)∗100 | G21: Porcentaje de estudiantes en procesos de movilidad Internacional. | H21: 0.0024 | I21: CERI Decanaturas de Facultad | J21: 0.013 | K21: 0.013 | N21: 17. Alcanzar una cobertura en el 70% de los docentes en el manejo de tecnologías de la información y comunicación. | P21: 19. Lograr el 90% de satisfacción entre los miembros de la comunidad universitaria frente a las expectativas del bienestar estudiantil y los programas que desde allí se ofrezcan.
C22: 11 | D22: Aumentar el índice de movilidad internacional anual mínimo al 5 % de la planta docente. | F22: DocM/(T.DOC)∗100 | G22: Porcentaje de docentes en procesos de movilidad Internacional | H22: 0,50% | I22: CERI Decanaturas de Facultad | J22: 0.05 | K22: 0.05 | N22: 18. Lograr que el 40% de los docentes de planta manejen lenguajes que permitan garantizar la atención de comunidades en el marco de la política de inclusión. | P22: 21. Aumentar el porcentaje de revistas científicas indexadas al 100%.
C23: 12 | D23: Apoyar a estudiantes de los colegios distritales ubicados en el área de influencia de las sedes de la Universidad, con programas de fortalecimiento de competencias básicas en: matemáticas, ciencias naturales, lectura crítica e inglés. | E23: Desarrollar y fortalecer la participación de la universidad en el desarrollo del sistema educativo distrital. | F23: ∑ Estudiantes apoyados en CB | G23: Número acumulado de estudiantes de IED apoyados por la Universidad | H23: 0 | I23: Facultad de Ciencias y Educación | J23: 20000 | K23: 20000 | N23: 19. Lograr el 90% de satisfacción entre los miembros de la comunidad universitaria frente a las expectativas del bienestar estudiantil y los programas que desde allí se ofrezcan. | P23: 22. Aumentar la producción científica anual publicada en revistas indexadas.
E24: Articulación con autoridades del Sector Educativo, los colegios y sus estamentos, la comunidad y los sectores económicos, con el fin de evaluar, articular y consolidar los objetivos educacionales y los procesos de formación en investigación, creación, innovación y emprendimiento, para fomentar la comprensión y solución de problemas y la potenciación de capacidades hacia la transformación de la sociedad. | N24: 20. Clasificarse entre las 5 mejores IES colombianas según indicadores en investigación. | P24: 23. Crear al menos 3 empresas spin-off, 15 empresas incubadas e institutos de investigación e innovación.
C25: 13 | D25: Disminuir la tasa de deserción anual al 9% | E25: Estudio sobre el impacto de la articulación con el Sector Educativo Distrital en el acceso, la permanencia y la titulación. | F25: EAE/EA∗100 | G25: Porcentaje de estudiantes que no se han matriculado por dos periodos consecutivos (desertor anual) Fuente: SPADIES | H25: 9,50% | I25: Centro de Bienestar Institucional Coordinaciones de Proyectos Curriculares Decanaturas de Facultad Vicerrectoría Académica | J25: 0.09 | K25: 0.09 | N25: 21. Aumentar el porcentaje de revistas científicas indexadas al 100%. | P25: 24. Incrementar los proyectos de cofinanciación externa en 45%, cuyos recursos provengan de organismos internacionales, los sistemas de ciencia tecnología e innovación.
E26: Fortalecimiento y creación de programas que fomenten la inclusión, la permanencia, la retención y la graduación. | N26: 22. Aumentar la producción científica anual publicada en revistas indexadas. | P26: 25. Lograr el pleno apoyo a la investigación, la creación, la formación, la innovación y el incremento de la productividad y competitividad de las empresas de la ciudad región, por medio de convenios de cooperación con los diferentes sectores.
E27: Desarrollo del Sistema de Bienestar universitario integral, que mejore las condiciones de los miembros de la comunidad universitaria, con altos estándares de calidad. | N27: 23. Crear al menos 3 empresas spin-off, 15 empresas incubadas e institutos de investigación e innovación. | P27: 26. Aumentar al 50% el número de docentes con Doctorado.
E28: Promoción de la comprensión y el análisis sobre las condiciones, creencias y alternativas de proyección de los intereses de los estudiantes sobre su futuro, su situación socioeconómica y la visión que les ofrece la Universidad. | N28: 24. Incrementar los proyectos de cofinanciación externa en 45%, cuyos recursos provengan de organismos internacionales, los sistemas de ciencia tecnología e innovación. | P28: 27. Ampliar, mejorar y modernizar física, tecnológica y ambientalmente la infraestructura, esto de acuerdo con la proyección de la cobertura y las políticas de inclusión.
C29: 14 | D29: Modernizar la organización académica y administrativa de la institución. | E29: Disponer de manera funcional y jerarquizada un orden adecuado de relaciones entre las facultades, las escuelas y los programas académicos, de acuerdo con el Estatuto General. | F29: Reforma Organizacional Aprobada por Consejo Superior | G29: Reforma Organizacional Aprobada por Consejo Superior | H29: N/A | I29: CSU Rectoría Vicerrectorías | J29: Reforma Organizacional implementada | K29: Reforma Organizacional implementada | N29: 25. Lograr el pleno apoyo a la investigación, la creación, la formación, la innovación y el incremento de la productividad y competitividad de las empresas de la ciudad región, por medio de convenios de cooperación con los diferentes sectores. | P29: 28. Consolidar cuatro centros de recursos para el aprendizaje y la investigación -CRAI-.
B30: LINEAMIENTO 2. Establecer un diseño curricular dinámico y flexible que promueva el pluralismo y consolide una comunidad universitaria crítica transformadora y en armonía ambiental. | C30: 15 | D30: Evaluar, revisar y reformular la oferta curricular de pregrado y posgrado de cada facultad, en el marco de los procesos de autoevaluación continua y los proyectos educativos de las facultades. | E30: Definición de lineamientos curriculares institucionales con enfoque crítico-transformador que fomenten el dialogo de saberes y conocimientos, la integración curricular, la pertinencia social, la flexibilidad, la interdisciplinariedad, la investigación curricular, la innovación y el uso de metodologías pertinentes a los diversos contextos. | F30: ∑ Programas evaluados curricularmente | G30: Número de proyectos curriculares evaluados y actualizados | H30: 81 | I30: Vicerrectoría Académica Coordinación General de Autoevaluación y Acreditación | J30: 104 | K30: 104 | N30: 26. Aumentar al 50% el número de docentes con Doctorado. | P30: 30. Aumentar al 100% la vinculación de empleados administrativos conforme al sistema de carrera administrativa.
E31: Estructuración de metodologías y estrategias de enseñanza - aprendizaje que favorezcan la construcción y resolución de situaciones problemáticas. | N31: 27. Ampliar, mejorar y modernizar física, tecnológica y ambientalmente la infraestructura, esto de acuerdo con la proyección de la cobertura y las políticas de inclusión. | P31: 31. Aumentar el número de docentes de planta en un 45% y disminuir la vinculación especial en un 10%.
E32: Construcción e implementación de una reforma curricular participativa, integral y flexible que fomente la integración de las funciones universitarias y los campos, articule los niveles de formación y promueva la internacionalización de los planes de estudios. | N32: 28. Consolidar cuatro centros de recursos para el aprendizaje y la investigación -CRAI-. | P32: 32. Generar una cultura institucional que respete las diferencias y garantice el bienestar de las personas en situación de discapacidad.
C33: 16 | D33: Aumentar la tasa de graduación en pregrados al 70% | E33: Desarrollo de programas e incentivos que favorezcan mejorar los índices de permanencia y repitencia. | F33: ETE/EC∗100 | G33: Porcentaje de estudiantes que se han graduado en máximo dos periodos adicionales a los establecidos en el plan de estudios (Tasa de eficiencia en la titulación) | H33: 0.4 | I33: Vicerrectoría Académica Decanaturas de Facultad | J33: 0.7 | K33: 0.7 | N33: 29. Fortalecer las competencias de los servidores públicos al servicio de la institución, en beneficio del cumplimiento de las funciones institucionales. | P33: 33. Implementar los dominios identificados en el marco de referencia IT 4+ establecidos por MinTIC
E34: Promoción de alternativas académicas que diversifiquen las modalidades de trabajos de grado. | N34: 30. Aumentar al 100% la vinculación de empleados administrativos conforme al sistema de carrera administrativa. | P34: 34. Alcanzar la implementación del cuarto componente de Gobierno en Línea (Seguridad y privacidad de la información).
E35: Adoptar y desarrollar un programa de admisión y permanencia que permita un tránsito flexible en la malla curricular y las posibilidades de titulación, cotitulación y doble titulación. | N35: 31. Aumentar el número de docentes de planta en un 45% y disminuir la vinculación especial en un 10%. | P35: 35. Lograr la calidad y disponibilidad del 100% de la información institucional, que no tenga restricción constitucional ni legal.
C36: 17 | D36: Alcanzar una cobertura en el 70 % de los docentes en el manejo de tecnologías de la información y comunicación. | E36: Fortalecimiento de un modelo de formación docente continuo, que permita fomentar las dimensiones pedagógicas, didácticas, profesionales y humanas y los procesos de innovación pedagógica. | F36: (D.TI)/(T.DOC)∗100 | G36: Porcentaje de docentes con manejo de las TI | H36: Sin medición | I36: Vicerrectoría Académica División de Recursos Humanos | J36: 0.7 | K36: 0.7 | N36: 32. Generar una cultura institucional que respete las diferencias y garantice el bienestar de las personas en situación de discapacidad. | P36: 36. Implementar mecanismos de participación, de los diferentes estamentos, de la comunidad universitaria, en las instancias de planeación, gestión, seguimiento y evaluación de la Universidad.
C37: 18 | D37: Lograr que el 40 % de los docentes de planta manejen lenguajes que permitan garantizar la atención de comunidades en el marco de la política de inclusión. | E37: Consolidación de una evaluación integral del currículo que permita el diseño, implementación, seguimiento y retroalimentación del mismo, promueva la pertinencia social de los programas académicos, la formación integral de personas en situación de discapacidad, la especialización docente en nuevas metodologías y modalidades de enseñanza-aprendizaje; y propicie el aumento en la atención cualificada de poblaciones académicas especificas. | F37: (D.LI)/(T.DOC)∗100 | G37: Porcentaje de docentes con manejo de lenguajes Inclusivos | H37: Sin medición | I37: Vicerrectoría Académica División de Recursos Humanos | J37: 0.4 | K37: 0.4 | N37: 33. Implementar los dominios identificados en el marco de referencia IT 4+ establecidos por MinTIC | P37: 37. Lograr un nivel de satisfacción mínimo del 80% por parte de las personas que utilizan los servicios de la Universidad.
C38: 19 | D38: Lograr el 90% de satisfacción entre los miembros de la comunidad universitaria frente a las expectativas del bienestar estudiantil y los programas que desde allí se ofrezcan. | E38: Construcción de una política cultural universitaria que propenda la diversidad de las expresiones artísticas, culturales, deportivas y el desarrollo de la pertenencia institucional. | F38: (∑ Calificaciones) / (T.EST) | G38: Promedio de satisfacción de los estudiantes a los servicios ofrecidos | H38: Sin medición | I38: Centro de Bienestar Institucional | J38: 0.9 | K38: 0.9 | N38: 34. Alcanzar la implementación del cuarto componente de Gobierno en Línea (Seguridad y privacidad de la información). | P38: 38. Actualizar, compilar, depurar y difundir el 100% de las normas expedidas por las autoridades institucionales.
E39: Construcción de una cultura organizacional universitaria basada en la solidaridad y el respeto por lo público que permita promover la transparencia, la ética y la responsabilidad colectiva en el marco de la autonomía universitaria. | N39: 35. Lograr la calidad y disponibilidad del 100% de la información institucional, que no tenga restricción constitucional ni legal. | P39: 39. Actualizar, simplificar y flexibilizar anualmente la operación de los procesos institucionales en el cumplimiento de las funciones universitarias.
E40: Crear un sistema de evaluación de los servicios de bienestar universitario. | N40: 36. Implementar mecanismos de participación, de los diferentes estamentos, de la comunidad universitaria, en las instancias de planeación, gestión, seguimiento y evaluación de la Universidad. | P40: 40. Establecer la adecuada asignación de funciones, competencias, seguridad jurídica y equilibrio institucional en la organización, gobierno y gestión de la Universidad.
B41: LINEAMIENTO 3. Integrar las funciones universitarias por medio de la investigación, creación, innovación para la ampliación del conocimiento como bien público y para la solución de problemas de la ciudad -región y de la sociedad en general. | C41: 20 | D41: Clasificarse entre las 5 mejores IES colombianas según indicadores en investigación. | E41: Transferencia de resultados de investigación, creación e innovación institucionales para la solución de problemas de la sociedad. | F41: Puesto según Rankings: US= Usapiens WM= Webometrics ScN= Scimago Nacional ScW= Scimago Internacional | G41: Puesto según Rankings: US= Usapiens WM= Webometrics ScN= Scimago Nacional ScW= Scimago Internacional | H41: US= 16 WM= 18 ScN= 15 ScW= 758 | I41: Vicerrectoría Académica Centro de Investigaciones y Desarrollo Científico Unidades de Investigación de Facultad | J41: US= 5 WM= 5 ScN= 5 ScW= 600 | K41: US= 5 WM= 5 ScN= 5 ScW= 600 | N41: 37. Lograr un nivel de satisfacción mínimo del 80% por parte de las personas que utilizan los servicios de la Universidad. | P41: 41. Conseguir la publicación oportuna y completa de toda la información relacionada con el principio de transparencia y derecho de acceso a información pública, de acuerdo con la Ley 1712 de 2014.
E42: Definición y desarrollo de modelos de apropiación social del conocimiento, que posibiliten el intercambio y diálogo de saberes y conocimientos con los sectores sociales, productivos y culturales. | N42: 38. Actualizar, compilar, depurar y difundir el 100% de las normas expedidas por las autoridades institucionales. | P42: 42. (B) Lograr indicadores de cero corrupción en la gestión institucional.
C43: 21 | D43: Aumentar el porcentaje de revistas científicas indexadas al 100%. | E43: Mejoramiento y cualificación de la producción y difusión científica y creativa, de tal manera que logren mayor presencia en el mundo académico. | F43: (TR.i)/TR∗100 | G43: Porcentaje de revistas institucionales con algún nivel de indexación con COLCIENCIAS-PUBLINDEX | H43: 33% 7 de 21 revistas están indexadas en COLCIENCIAS - PUBLINDEX | I43: Centro de Investigaciones y Desarrollo Científico | J43: 1 | K43: 1 | N43: 39. Actualizar, simplificar y flexibilizar anualmente la operación de los procesos institucionales en el cumplimiento de las funciones universitarias. | P43: 42. (C) Lograr indicadores de cero corrupción en la gestión institucional.
C44: 22 | D44: Aumentar la producción científica anual publicada en revistas indexadas. | E44: Definición y desarrollo de la agenda de investigación-innovación-creación institucional con la comunidad universitaria y con el apoyo de actores interesados, estableciendo mecanismos de participación de acuerdo con los contextos, saberes y conocimientos de los participantes. | F44: ∑ Artículos indexados en SCOPUS | G44: Número de artículos científicos indexados en SCOPUS | H44: 208 | I44: Centro de Investigaciones y Desarrollo Científico | J44: 550 | K44: 550 | N44: 40. Establecer la adecuada asignación de funciones, competencias, seguridad jurídica y equilibrio institucional en la organización, gobierno y gestión de la Universidad.
E45: Formulación de una política de investigación que permita la creación de programas, proyectos, líneas y áreas de investigación que estimulen la producción científica, y la solución de problemas de la ciudad-región y del país. | N45: 41. Conseguir la publicación oportuna y completa de toda la información relacionada con el principio de transparencia y derecho de acceso a información pública, de acuerdo con la Ley 1712 de 2014.
E46: Consolidar y cualificar los grupos y semilleros de investigación. | N46: 42. (A) Lograr indicadores de cero corrupción en la gestión institucional.
E47: Creación de redes de investigación, nacionales e internacionales; y promover las membresías pertinentes. | N47: 42. (B) Lograr indicadores de cero corrupción en la gestión institucional.
E48: Promover la categorización de grupos de investigación en las convocatorias que para efecto se reglamenten. | N48: 42. (C) Lograr indicadores de cero corrupción en la gestión institucional.
C49: 23 | D49: Crear al menos 3 empresas spin-off, 15 empresas incubadas e institutos de investigación e innovación. | E49: Expedición de la reglamentación interna que defina el marco y las condiciones para la creación y la gestión de las empresas. | F49: ∑ de Spinoffs y Start Ups Operativos | G49: Número de Spin Offs y Start ups operativos | H49: 0 Spin Offs 0 Start Ups | I49: Vicerrectoría Académica Centro de Investigaciones y Desarrollo Científico | J49: 20 | K49: 20
E50: Desarrollo de las actividades que aborden las problemáticas de los sectores productivos, e integren a la comunidad universitaria en la búsqueda de soluciones efectivas que respondan a las necesidades diagnosticadas.
C51: 24 | D51: Incrementar los proyectos de cofinanciación externa en 45%, cuyos recursos provengan de organismos internacionales, los sistemas de ciencia tecnología e innovación. | E51: Fortalecer los diálogos e intercambios con organismos internacionales, entidades estatales y sectores productivos. | F51: ∑ Proyectos de cofinanciación | G51: Número de proyectos cofinanciados entre la Universidad y otras entidades | H51: 17 | I51: Vicerrectoría Académica Centro de Investigaciones y Desarrollo Científico | J51: 25 | K51: 25
E52: Actualización y ajuste, a los intereses de la Universidad, del Estatuto de Propiedad Intelectual.
E53: Incrementar el número de doctores que participan en el desarrollo de acciones encaminadas a la apropiación social del conocimiento.
C54: 25 | D54: Lograr el pleno apoyo a la investigación, la creación, la formación, la innovación y el incremento de la productividad y competitividad de las empresas de la ciudad región, por medio de convenios de cooperación con los diferentes sectores. | E54: Creación y funcionamiento de un Centro de Innovación y Emprendimiento que contribuya a dar respuesta a las necesidades de los empresarios de la ciudad región, y promueva la articulación interdisciplinaria de servicios a los sectores económicos y la apropiación social del conocimiento como bien público. | F54: ∑ Convenios de la Universidad | G54: Número de convenios entre la Universidad y otras entidades | H54: 0 | I54: Vicerrectoría Académica Centro de Investigaciones y Desarrollo Científico Centro de Relaciones Interinstitucionales | J54: 5 | K54: 5
E55: Establecer alianzas estratégicas y apoyar los parques tecnológicos en las áreas de influencia de la universidad.
E56: Concertar acciones de investigación, formación y asesoría con las empresas de los sectores productivos de la ciudad-región.
C57: 26 | D57: Aumentar al 50 % el número de docentes con Doctorado. | E57: Consolidación de los planes de formación doctoral para docentes de planta. | F57: DDOC/(T.DOC)∗100 | G57: Porcentaje de docentes con doctorado | H57: 0.18 | I57: Vicerrectoría Académica División de Recursos Humanos | J57: 0.5 | K57: 0.5
B58: LINEAMIENTO 4. Garantizar, gestionar y proveer las condiciones institucionales para el cumplimiento de las funciones universitarias y el bienestar de su comunidad. | C58: 27 | D58: Ampliar, mejorar y modernizar física, tecnológica y ambientalmente la infraestructura, esto de acuerdo con la proyección de la cobertura y las políticas de inclusión. | E58: Elaborar y ejecutar el Plan Maestro de Espacios Educativos. | F58: ∑ Metros cuadrados (m2) construidos | G58: Total de metros cuadrados (m2) construidos | H58: 104609 | I58: Oficina Asesora de Planeación y Control | J58: 183609 | K58: 183609
E59: Desarrollo y actualización sostenible de la infraestructura universitaria de manera articulada entre las sedes de la universidad; además con una relación amable y respetuosa con el medio ambiente.
E60: Promoción de la cultura de respeto por el ambiente y la sostenibilidad ambiental.
E61: Desarrollo y consolidación de un campus digital que conecte a las distintas dependencias académicas y administrativas y que supere las distancias territoriales entre las distintas sedes de la Universidad.
E62: Fortalecimiento de un sistema integral de información institucional que garantice su disponibilidad y la memoria institucional.
E63: Favorecer los indicadores de área por estudiante para el desarrollo de la actividad curricular.
E64: Desarrollo y actualización sostenible de la infraestructura universitaria de manera articulada entre las sedes de la universidad; además con una relación amable y respetuosa con el medio ambiente.
C65: 28 | D65: Consolidar cuatro centros de recursos para el aprendizaje y la investigación -CRAI-. | E65: Creación e implementación del sistema CRAI (Centro de Recursos para el Aprendizaje y la Investigación) que articule los medios educativos de la universidad. | F65: ∑ CRAI Consolidados | G65: Número de CRAI consolidados | H65: 0 | I65: Sección de Biblioteca | J65: 4 | K65: 4
C66: 29 | D66: Fortalecer las competencias de los servidores públicos al servicio de la institución, en beneficio del cumplimiento de las funciones institucionales. | E66: Identificar los avances en materia de conocimiento científico, tecnológico y de innovación que inciden en la organización, gestión y productividad de los procesos institucionales. | F66: Evaluación del desempeño laboral implementada | G66: Evaluación del desempeño laboral implementada | H66: Sin medición | I66: División de Recursos Humanos Vicerrectoría Académica | J66: Evaluación del desempeño laboral implementada | K66: Evaluación del desempeño laboral implementada
E67: Conocer las necesidades que expresan los resultados de la evaluación del desempeño; determinar las observaciones de las auditorías, internas y externas sobre la gestión y sus resultados; y diagnosticar las necesidades de los servidores públicos en materia de conocimientos.
E68: Construcción de una cultura organizacional universitaria basada en la solidaridad y el respeto por lo público que permita promover la transparencia, la ética y la responsabilidad colectiva en el marco de la autonomía universitaria.
C69: 30 | D69: Aumentar al 100 % la vinculación de empleados administrativos conforme al sistema de carrera administrativa. | E69: Aumentar y cualificar la planta de empleos docentes y administrativos, en correspondencia con la organización interna, la proyección de cobertura y las condiciones institucionales. | F69: (E.Carr) / (T. Emp) * 100 | G69: Porcentaje de empleados que están nombrados dentro de la carrera administrativa | H69: 0.26 | I69: División de Recursos Humanos | J69: 1 | K69: 1
C70: 31 | D70: Aumentar el número de docentes de planta en un 45% y disminuir la vinculación especial en un 10%. | E70: Implementar estrategias orientadas a incentivar los ascensos en el escalafón de los docentes de carrera y docentes especiales. | F70: ∑ Docentes nombrados de planta | G70: Número de docentes de planta nombrados | H70: 633 | I70: Vicerrectoría Académica División de Recursos Humanos | J70: 980 | K70: 980
C71: 32 | D71: Generar una cultura institucional que respete las diferencias y garantice el bienestar de las personas en situación de discapacidad. | E71: Motivar el conocimiento de lenguajes y actividades interactivas entre los servidores de la entidad y las personas en situación de discapacidad. | F71: (D/A.LenAcc) / (T.DOC/Adm)∗100 | G71: Porcentaje de docentes y administrativos (de planta) capacitados en lenguajes accesibles | H71: 0 | I71: División de Recursos Humanos Oficina de Docencia | J71: 0.3 | K71: 0.3
E72: Adecuar las instalaciones para garantizar el bienestar de las personas en situación de discapacidad.
B73: LINEAMIENTO 5. Consolidar y fortalecer la democracia participativa, la gobernanza y la gobernabilidad para la cohesión de la comunidad universitaria. | C73: 33 | D73: Implementar los dominios identificados en el marco de referencia IT 4+ establecidos por MinTIC | E73: Garantizar tecnologías y canales digitales que permitan generar, procesar y acceder a información oportuna sobre las funciones universitarias, los procesos y procedimientos institucionales, el trámite de servicios, la recepción de solicitudes y la generación de respuestas pertinentes y satisfactorias. | F73: ∑ Dominios implementados según Marco de referencia IT4+ | G73: Dominios implementados según Marco de referencia IT4+ | H73: 0 | I73: Oficina Asesora de Sistemas | J73: 6 | K73: 6
C74: 34 | D74: Alcanzar la implementación del cuarto componente de Gobierno en Línea (Seguridad y privacidad de la información). | E74: Garantizar la divulgación de toda información pública generada por la universidad; así como el control de la información pública clasificada y reservada que maneja la institución. | F74: (A.GEL Imp)/(Total de A.GEL)∗100 | G74: Porcentaje de implementación del componente de Gobierno en Línea. | H74: 0.06 | I74: Oficina Asesora de Sistemas | J74: 1 | K74: 1
C75: 35 | D75: Lograr la calidad y disponibilidad del 100% de la información institucional, que no tenga restricción constitucional ni legal. | F75: (Información disponible en la web)/(Total de información de la Universidad)∗100 | G75: Porcentaje de información disponible en la página web | H75: 1 | I75: Secretaría General | J75: 1 | K75: 1
C76: 36 | D76: Implementar mecanismos de participación, de los diferentes estamentos, de la comunidad universitaria, en las instancias de planeación, gestión, seguimiento y evaluación de la Universidad. | E76: Consolidación de mecanismos de democracia participativa, donde la comunidad universitaria se involucre en la toma decisiones y en las dinámicas propias de la institución. | F76: (Instancias participando efectivamente)/(Total de instancias de la Universidad)∗100 | G76: Porcentaje de instancias de planeación, seguimiento , evaluación y gestión con participación efectiva de los estamentos de la Comunidad Universitaria | H76: Sin medición | I76: Consejo Superior Universitario Consejo Académico Rectoría | J76: 1 | K76: 1
E77: Promover formas de organización, interacción y asociación de los estudiantes para su participación activa en los asuntos de la vida universitaria y de la sociedad.
E78: Adelantar diálogos con las diferentes representaciones de la sociedad civil, las agencias de cooperación, el sector privado y la academia para cualificar el proceso de rendición pública de cuentas.
C79: 37 | D79: Lograr un nivel de satisfacción mínimo del 80% por parte de las personas que utilizan los servicios de la Universidad. | E79: Garantizar la recepción y respuesta al 100% de las peticiones, quejas y reclamos, a través de canales y medios que se ajusten a las necesidades y capacidades de las personas que los interponen. | F79: (Usuario≥4 y 5)/(T.Usuarios)∗100 | G79: Porcentaje de usuarios que califican con 4 o 5 los servicios ofrecidos por la Universidad | H79: Sin medición | I79: Vicerrectoría Académica | J79: 0.8 | K79: 0.8
E80: Construir, ejecutar y evaluar periódicamente la estrategia de participación y rendición de cuentas.
E81: Implementar un sistema integrado de comunicaciones que permita gestionar, articular y medir su impacto en la publicidad, difusión, acceso y apropiación de la información para favorecer la visibilidad institucional nacional e internacionalmente.
E82: Estudiar las causas por las cuales se producen las peticiones, quejas y reclamos y adoptar mecanismos que permitan el mejoramiento continuo en la prestación de los servicios.
C83: 38 | D83: Actualizar, compilar, depurar y difundir el 100% de las normas expedidas por las autoridades institucionales. | E83: Fortalecimiento y ampliación de mecanismos que garanticen la eficiencia, eficacia y efectividad de las funciones universitarias; la transparencia y la ética en la toma de decisiones y en la operación institucional; y la seguridad jurídica institucional. | F83: (Normatividad verificada)/(Total de normatividad expedida por la UD)∗100 | G83: Porcentaje de verificación de la vigencia de la normatividad interna | H83: Sin medición | I83: Secretaría General | J83: 1 | K83: 1
C84: 39 | D84: Actualizar, simplificar y flexibilizar anualmente la operación de los procesos institucionales en el cumplimiento de las funciones universitarias. | F84: (Procesos Actualizados)/(Total de procesos)∗100 | G84: Porcentaje de actualización de Procesos SIGUD | H84: 1 | I84: Oficina Asesora de Planeación y Control | J84: 1 | K84: 1
C85: 40 | D85: Establecer la adecuada asignación de funciones, competencias, seguridad jurídica y equilibrio institucional en la organización, gobierno y gestión de la Universidad. | E85: Revisión, actualización y modernización del Estatuto General y de las demás normas estatutarias requeridas para el cumplimiento de las funciones institucionales, con las debidas consultas a la comunidad universitaria. | F85: (Normas actualizadas)/(Total de normas estatutarias)∗100 | G85: Porcentaje de normas estatutarias actualizadas. | H85: 0 | I85: Secretaría General | J85: 1 | K85: 1
C86: 41 | D86: Conseguir la publicación oportuna y completa de toda la información relacionada con el principio de transparencia y derecho de acceso a información pública, de acuerdo con la Ley 1712 de 2014. | E86: Consolidación de sistemas de gestión, control, seguimiento, digitalización y acceso a la información, gestión documental, servicio en línea, trámites institucionales y atención a las personas. | F86: (Información publicada)/(Información publicable según ley)∗100 | G86: Porcentaje de información publicada según la ley 1712 de 2014 | H86: Sin medición | I86: Oficina de Quejas, Reclamos y Atención al Ciudadano | J86: 1 | K86: 1
C87: 42 | D87: Lograr indicadores de cero corrupción en la gestión institucional. | E87: Estudiar, detectar, tratar y eliminar los riesgos de corrupción, motivando la participación de la comunidad universitaria y de la sociedad en la vigilancia de la gestión y la protección del patrimonio de la Universidad. | F87: PAAC de cada Vigencia | G87: PAAC de cada Vigencia | I87: Oficina Asesora de Planeación y Control | J87: PAAC de cada Vigencia | K87: PAAC de cada Vigencia
F88: ∑ Número de canales de atención en las localidades de Bogotá | G88: Número de canales de atención en las localidades de Bogotá | H88: 6 | I88: Oficina de Quejas, Reclamos y Atención al Ciudadano | J88: 15 | K88: 15
F89: ∑ Número de rendiciones de cuentas realizadas a la comunidad anualmente | G89: Número de rendiciones de cuentas realizadas a la comunidad anualmente | H89: 1 | I89: Oficina Asesora de Planeación y Control | J89: 1 | K89: 1

Sheet Avance Lineamientos (hidden)
G11: CUMPLIMIENTO DE LAS METAS POR LINEAMIENTO
B22: LINEAMIENTO | D22: 1. Formar ciudadanos, profesionales, investigadores, creadores e innovadores, íntegros con pensamiento crítico y cultura democrática, en contextos diferenciados inter y multiculturales para la transformación de la sociedad.
C23: =IF(D22="1. Formar ciudadanos, profesionales, investigadores, creadores e innovadores, íntegros con pensamiento crítico y cultura democrática, en contextos diferenciados inter y multiculturales para la transformación de la sociedad.","L1",IF(D22="2. Establecer un diseño curricular dinámico y flexible que promueva el pluralismo y consolide una comunidad universitaria crítica transformadora y en armonía ambiental.","L2",IF(D22="3. Integrar las funciones universitarias por medio de la investigación, creación, innovación para la ampliación del conocimiento como bien público y para la solución de problemas de la ciudad -región y de la sociedad en general.","L3",IF(D22="4. Garantizar, gestionar y proveer las condiciones institucionales para el cumplimiento de las funciones universitarias y el bienestar de su comunidad.","L4","L5")))) -> L1
B24: LINEAMIENTOS ESTRATÉGICOS | I24: PORCENTAJE DE CUMPLIMIENTO METAS ASOCIADAS A CADA LINEAMIENTO
B26: Meta
B27: =IF(C23="L1",1,IF(C23="L2",15,IF(C23="L3",20,IF(C23="L4",27,33)))) -> 1 | C27: =VLOOKUP(B27,Consolidado!$C$4:$D$47,2,FALSE) -> 1. Mantener y elevar la acreditación institucional de alta calidad y alcanzar el reconocimiento internacional.
B28: =IF(OR($C$23="L1",$C$23="L2",$C$23="L3",$C$23="L4",$C$23="L5"),B27+1,"") -> 2 | C28: =VLOOKUP(B28,Consolidado!$C$4:$D$47,2,FALSE) -> 2. Aumentar el 34% en el número de estudiantes de pregrado matriculados. | O28: Meta | P28: 2018 | Q28: 2019 | R28: 2020
B29: =IF(OR($C$23="L1",$C$23="L2",$C$23="L3",$C$23="L4",$C$23="L5"),B28+1,"") -> 3 | C29: =VLOOKUP(B29,Consolidado!$C$4:$D$47,2,FALSE) -> 3. Aumentar el 65% de estudiantes matriculados en posgrado. | O29: ="Meta "&B27 -> Meta 1 | P29: =IF(B27>0,VLOOKUP(B27,Consolidado!$C$4:$N$47,6,FALSE),"") -> - | Q29: =IF(B27="","",(VLOOKUP(B27,Consolidado!$C$4:$N$47,9,FALSE))) -> - | R29: =IF(B27="","",(VLOOKUP(B27,Consolidado!$C$4:$N$47,12,FALSE))) -> -
B30: =IF(OR($C$23="L1",$C$23="L2",$C$23="L3",$C$23="L4",$C$23="L5"),B29+1,"") -> 4 | C30: =VLOOKUP(B30,Consolidado!$C$4:$D$47,2,FALSE) -> 4. Aumentar en 28% el número de programas en todos los niveles y modalidades. | O30: ="Meta "&B28 -> Meta 2 | P30: =IF(B28>0,VLOOKUP(B28,Consolidado!$C$4:$N$47,6,FALSE),"") -> 1 | Q30: =IF(B28="","",(VLOOKUP(B28,Consolidado!$C$4:$N$47,9,FALSE))) -> 0.9669742784 | R30: =IF(B28="","",(VLOOKUP(B28,Consolidado!$C$4:$N$47,12,FALSE))) -> 0.958849786
B31: =IF(OR($C$23="L1",$C$23="L2",$C$23="L3",$C$23="L4",$C$23="L5"),B30+1,"") -> 5 | C31: =VLOOKUP(B31,Consolidado!$C$4:$D$47,2,FALSE) -> 5. Lograr homologación y transferencia del 100% de la oferta académica de la Universidad entre sus diferentes niveles de formación. | O31: ="Meta "&B29 -> Meta 3 | P31: =IF(B29>0,VLOOKUP(B29,Consolidado!$C$4:$N$47,6,FALSE),"") -> 1 | Q31: =IF(B29="","",(VLOOKUP(B29,Consolidado!$C$4:$N$47,9,FALSE))) -> 1 | R31: =IF(B29="","",(VLOOKUP(B29,Consolidado!$C$4:$N$47,12,FALSE))) -> 0.9581504243
B32: =IF(OR($C$23="L1",$C$23="L3",$C$23="L4",$C$23="L5"),B31+1,"") -> 6 | C32: =IF(B32="","",VLOOKUP(B32,Consolidado!$C$4:$D$47,2,FALSE)) -> 6. Lograr que los proyectos de extensión respondan a la interacción entre las problemáticas del entorno y los procesos de investigación, y que sus resultados vinculen e impacten comunidades de la ciudad y la región. | O32: ="Meta "&B30 -> Meta 4 | P32: =IF(B30="","",(VLOOKUP(B30,Consolidado!$C$4:$N$47,6,FALSE))) -> 1 | Q32: =IF(B30="","",(VLOOKUP(B30,Consolidado!$C$4:$N$47,9,FALSE))) -> 1 | R32: =IF(B30="","",(VLOOKUP(B30,Consolidado!$C$4:$N$47,12,FALSE))) -> 0.9361702128
B33: =IF(OR($C$23="L1",$C$23="L3",$C$23="L5"),B32+1,"") -> 7 | C33: =IF(B33="","",VLOOKUP(B33,Consolidado!$C$4:$D$47,2,FALSE)) -> 7. Aumentar la oferta en 10 programas de formación para el trabajo y desarrollo del talento humano en correspondencia con las necesidades de los sectores productivos y de servicios de la ciudad región. | O33: ="Meta "&B31 -> Meta 5 | P33: =IF(B31="","",(VLOOKUP(B31,Consolidado!$C$4:$N$47,6,FALSE))) -> 1 | Q33: =IF(B31="","",(VLOOKUP(B31,Consolidado!$C$4:$N$47,9,FALSE))) -> 1 | R33: =IF(B31="","",(VLOOKUP(B31,Consolidado!$C$4:$N$47,12,FALSE))) -> 6.356589147
B34: =IF(OR($C$23="L1",$C$23="L5"),B33+1,"") -> 8 | C34: =IF(B34="","",VLOOKUP(B34,Consolidado!$C$4:$D$47,2,FALSE)) -> 8. Lograr que 20% de la oferta académica de pregrado y posgrado permita la doble titulación o cotitulación. | O34: =IF(B32="","","Meta "&B32) -> Meta 6 | P34: =IF(B32="","",(VLOOKUP(B32,Consolidado!$C$4:$N$47,6,FALSE))) -> 1 | Q34: =IF(B32="","",(VLOOKUP(B32,Consolidado!$C$4:$N$47,9,FALSE))) -> 0.6734006734 | R34: =IF(B32="","",(VLOOKUP(B32,Consolidado!$C$4:$N$47,12,FALSE))) -> 0.8391608392
B35: =IF(OR($C$23="L1",$C$23="L5"),B34+1,"") -> 9 | C35: =IF(B35="","",VLOOKUP(B35,Consolidado!$C$4:$D$47,2,FALSE)) -> 9. Aumentar el índice de movilidad internacional anual mínimo al 1,3% de la población estudiantil. | O35: Meta 7 | P35: =IF(B33="","",(VLOOKUP(B33,Consolidado!$C$4:$N$47,6,FALSE))) -> 1 | Q35: =IF(B33="","",(VLOOKUP(B33,Consolidado!$C$4:$N$47,9,FALSE))) -> 0 | R35: =IF(B33="","",(VLOOKUP(B33,Consolidado!$C$4:$N$47,12,FALSE))) -> 0
B36: =IF($C$23="L1",B35+1,IF($C$23="L5","42A","")) -> 10 | C36: =IF(B36="","",VLOOKUP(B36,Consolidado!$C$4:$D$47,2,FALSE)) -> 10. Aumentar el índice de movilidad internacional anual mínimo al 5% de la planta docente. | O36: Meta 8 | P36: =IF(B34="","",(VLOOKUP(B34,Consolidado!$C$4:$N$47,6,FALSE))) -> 0.987654321 | Q36: =IF(B34="","",(VLOOKUP(B34,Consolidado!$C$4:$N$47,9,FALSE))) -> 1 | R36: =IF(B34="","",(VLOOKUP(B34,Consolidado!$C$4:$N$47,12,FALSE))) -> 0.5465116279
B37: =IF($C$23="L1",B36+1,IF($C$23="L5","42B","")) -> 11 | C37: =IF(B37="","",VLOOKUP(B37,Consolidado!$C$4:$D$47,2,FALSE)) -> 11. Lograr que el 60% de estudiantes tengan un dominio de una segunda lengua en un nivel equivalente a B2. | O37: Meta 9 | P37: =IF(B35="","",(VLOOKUP(B35,Consolidado!$C$4:$N$47,6,FALSE))) -> 1 | Q37: =IF(B35="","",(VLOOKUP(B35,Consolidado!$C$4:$N$47,9,FALSE))) -> 1 | R37: =IF(B35="","",(VLOOKUP(B35,Consolidado!$C$4:$N$47,12,FALSE))) -> 1.231100681
B38: =IF($C$23="L1",B37+1,IF($C$23="L5","42C","")) -> 12 | C38: =IF(B38="","",VLOOKUP(B38,Consolidado!$C$4:$D$47,2,FALSE)) -> 12. Apoyar a estudiantes de los colegios distritales ubicados en el área de influencia de las sedes de la Universidad, con programas de fortalecimiento de competencias básicas en: matemáticas, ciencias naturales, lectura crítica e inglés. | O38: Meta 10 | P38: =IF(B36="","",(VLOOKUP(B36,Consolidado!$C$4:$N$47,6,FALSE))) -> 0.9689922481 | Q38: =IF(B36="","",(VLOOKUP(B36,Consolidado!$C$4:$N$47,9,FALSE))) -> 1 | R38: =IF(B36="","",(VLOOKUP(B36,Consolidado!$C$4:$N$47,12,FALSE))) -> 0.5112474438
B39: =IF($C$23="L1",B38+1,"") -> 13 | C39: =IF(B39="","",VLOOKUP(B39,Consolidado!$C$4:$D$47,2,FALSE)) -> 13. Disminuir la tasa de deserción anual al 9% | O39: Meta 11 | P39: =IF(B37="","",(VLOOKUP(B37,Consolidado!$C$4:$N$47,6,FALSE))) -> 0.3059536935 | Q39: =IF(B37="","",(VLOOKUP(B37,Consolidado!$C$4:$N$47,9,FALSE))) -> 0.2392105263 | R39: =IF(B37="","",(VLOOKUP(B37,Consolidado!$C$4:$N$47,12,FALSE))) -> 0.2855
B40: =IF($C$23="L1",B39+1,"") -> 14 | C40: =IF(B40="","",VLOOKUP(B40,Consolidado!$C$4:$D$47,2,FALSE)) -> 14. Modernizar la organización académica y administrativa de la institución. | O40: Meta 12 | P40: =IF(B38="","",(VLOOKUP(B38,Consolidado!$C$4:$N$47,6,FALSE))) -> 1 | Q40: =IF(B38="","",(VLOOKUP(B38,Consolidado!$C$4:$N$47,9,FALSE))) -> 0 | R40: =IF(B38="","",(VLOOKUP(B38,Consolidado!$C$4:$N$47,12,FALSE))) -> 0.4515
O41: Meta 13 | P41: =IF(B39="","",(VLOOKUP(B39,Consolidado!$C$4:$N$47,6,FALSE))) -> 0.7910303126 | Q41: =IF(B39="","",(VLOOKUP(B39,Consolidado!$C$4:$N$47,9,FALSE))) -> 1 | R41: =IF(B39="","",(VLOOKUP(B39,Consolidado!$C$4:$N$47,12,FALSE))) -> 0.8112
O42: Meta 14 | P42: =IF(B40="","",(VLOOKUP(B40,Consolidado!$C$4:$N$47,6,FALSE))) -> - | Q42: =IF(B40="","",(VLOOKUP(B40,Consolidado!$C$4:$N$47,9,FALSE))) -> 1 | R42: =IF(B40="","",(VLOOKUP(B40,Consolidado!$C$4:$N$47,12,FALSE))) -> -

Sheet Ficha Indicador
C6: =D10 -> 2 | D6: HOJA DE VIDA DEL INDICADOR
B8: INFORMACIÓN DE LA META ESTRATÉGICA
B9: Lineamiento Estratégico | D9: =VLOOKUP($E$10,'Base F. Indicador'!$B$5:$S$48,2,FALSE) -> 1. Formar ciudadanos, profesionales, investigadores, creadores e innovadores, íntegros con pensamiento crítico y cultura democrática, en contextos diferenciados inter y multiculturales para la transformación de la sociedad.
B10: Meta | D10: =VLOOKUP(E10,'Base F. Indicador'!B5:S48,3,FALSE) -> 2 | E10: =VLOOKUP('Avance Metas'!I10,'Base F. Indicador'!A4:B48,2,FALSE) -> Aumentar el 34% en el número de estudiantes de pregrado matriculados.
B11: Estrategias asociadas | D11: =VLOOKUP($E$10,'Base F. Indicador'!$B$5:$S$48,4,FALSE) -> - Consolidación de una oferta académica flexible que articule todas las metodologías de enseñanza, los niveles y los campos de formación, permitiendo el aumento y fortalecimiento de la oferta existente, articulada con la educación básica, media y superior.
B12: INFORMACIÓN DEL INDICADOR
B13: Nombre del Indicador | D13: =VLOOKUP($E$10,'Base F. Indicador'!$B$5:$S$48,6,FALSE) -> Número de estudiantes matriculados en pregrado
B14: Indicador | D14: =VLOOKUP($E$10,'Base F. Indicador'!$B$5:$S$48,5,FALSE) -> (M1semPre + M2semPre) /2
B15: Línea Base | D15: =VLOOKUP($E$10,'Base F. Indicador'!$B$5:$S$48,13,FALSE) -> 23862 | F15: Meta 2030 | H15: =VLOOKUP($E$10,'Base F. Indicador'!$B$5:$S$48,15,FALSE) -> 32000 | J15: Unidad de Medida | K15: =VLOOKUP($E$10,'Base F. Indicador'!$B$5:$S$48,8,FALSE) -> Estudiantes
B16: Convenciones | D16: =VLOOKUP(E10,'Base F. Indicador'!B5:S48,16,FALSE) -> - M1semPre: Número de estudiantes matriculados semestre I en pregrado. - M2semPre: Número de estudiantes matriculados semestre III en pregrado. | J16: Periodicidad | K16: =VLOOKUP($E$10,'Base F. Indicador'!$B$5:$W$48,21,FALSE) -> Anual
B17: VARIABLES DEL INDICADOR
B18: Nombre | G18: Unidad de Medida | J18: Fuente de Información
B19: ="1. "&VLOOKUP($E$10,'Base F. Indicador'!$B$5:$S$48,7,FALSE) -> 1. Número de estudiantes matriculados en pregrado (Periodo I) | G19: =VLOOKUP($E$10,'Base F. Indicador'!$B$5:$S$48,8,FALSE) -> Estudiantes | J19: =VLOOKUP($E$10,'Base F. Indicador'!$B$5:$S$48,9,FALSE) -> Spagobi - Sistema de Gestión Académica
B21: ="2. "&VLOOKUP($E$10,'Base F. Indicador'!$B$5:$S$48,10,FALSE) -> 2. Número de estudiantes matriculados en pregrado (Periodo III) | G21: =VLOOKUP($E$10,'Base F. Indicador'!$B$5:$S$48,11,FALSE) -> Estudiantes | J21: =VLOOKUP($E$10,'Base F. Indicador'!$B$5:$S$48,12,FALSE) -> Spagobi - Sistema de Gestión Académica
B23: DEFINICIÓN DE TÉRMINOS
B24: =VLOOKUP(E10,'Base F. Indicador'!B4:W48,20,FALSE) -> -
B25: CRITERIOS Y OBSERVACIONES SOBRE EL INDICADOR
B26: =VLOOKUP(E10,'Base F. Indicador'!B4:W48,22,FALSE) -> En el reporte del indicador se tendrá en cuenta el pico más alto de estudiantes matriculados de cada periodo. | P26: =UPPER(B26) -> EN EL REPORTE DEL INDICADOR SE TENDRÁ EN CUENTA EL PICO MÁS ALTO DE ESTUDIANTES MATRICULADOS DE CADA PERIODO.

Sheet Base L1 (hidden)
B2: L I N E A M I E N T O 1
B4: Información del indicador | G4: Reporte de los indicadores | M4: N° | N4: Meta | O4: Avance PLAN INDICATIVO
B5: N° | C5: Meta | D5: Indicador | E5: Unidad de medida | F5: Linea base (2017) | G5: 2018 | H5: 2019 | I5: 2020 | J5: 2021 | K5: Tendencia | O5: Metas 2018 | P5: Reportado 2018 | Q5: % cumplimiento 2018 | R5: Metas 2019 | S5: Reportado 2019 | T5: % cumplimiento 2019 | U5: Metas 2020 | V5: Reportado 2020 | W5: % cumplimiento 2020 | Y5: 2021
B6: 1 | C6: Mantener y elevar la acreditación institucional de alta calidad y alcanzar el reconocimiento internacional. | D6: Documento de Resolución MEN Acreditación Institucional | E6: Documento de Resolución MEN Acreditación Institucional | F6: Universidad Acreditada | M6: 1 | N6: =C6 -> Mantener y elevar la acreditación institucional de alta calidad y alcanzar el reconocimiento internacional.
B7: 2 | C7: Aumentar el 34% en el número de estudiantes de pregrado matriculados. | D7: (M1semPre + M2semPre)/2 | E7: Número de estudiantes matriculados en pregrado | F7: 23862 | G7: =$J$28 -> 24006 | H7: =$J$29 -> 24624 | I7: =J30 -> 25992.5 | J7: =J31 -> 0 | M7: 2 | N7: =C7 -> Aumentar el 34% en el número de estudiantes de pregrado matriculados. | O7: =$I$28 -> 23886 | P7: =$J$28 -> 24006 | Q7: =IF(P7=0,,(P7/O7)) -> 1.005023863 | R7: =$I$29 -> 25465 | S7: =$J$29 -> 24624 | T7: =IF(S7=0,,(S7/R7)) -> 0.9669742784 | U7: =$I$30 -> 27108 | V7: =$J$30 -> 25992.5 | W7: =IF(V7=0,,(V7/U7)) -> 0.958849786 | Y7: =$I$31 -> 29007
B8: 3 | C8: Aumentar el 65% de estudiantes matriculados en posgrado. | D8: (M1semPos + M2semPos )/2 | E8: Numero de estudiantes matriculados en posgrado | F8: 2972 | G8: =$J$62 -> 3055 | H8: =$J$63 -> 3222 | I8: =J64 -> 3274 | J8: =J65 -> 0 | M8: 3 | N8: Aumentar el 65% de estudiantes matriculados en posgrado. | O8: =$I$62 -> 2996 | P8: =$J$62 -> 3055 | Q8: =IF(P8=0,,(P8/O8)) -> 1.019692924 | R8: =$I$63 -> 3191 | S8: =$J$63 -> 3222 | T8: =IF(S8=0,,(S8/R8)) -> 1.009714823 | U8: =$I$64 -> 3417 | V8: =$J$64 -> 3274 | W8: =IF(V8=0,,(V8/U8)) -> 0.9581504243 | Y8: =$I$65 -> 3667
B9: 4 | C9: Aumentar en 28% el número de programas en todos los niveles y modalidades. | D9: Σ Programas con registro calificado | E9: Total de programas con registro calificado vigente | F9: 77 | G9: =$J$96 -> 81 | H9: =$J$97 -> 86 | I9: =J98 -> 88 | J9: =J99 -> 0 | M9: 4 | N9: Aumentar en 28% el número de programas en todos los niveles y modalidades. | O9: =$I$96 -> 80 | P9: =$J$96 -> 81 | Q9: =IF(P9=0,,(P9/O9)) -> 1.0125 | R9: =$I$97 -> 86 | S9: =$J$97 -> 86 | T9: 1 | U9: =$I$98 -> 94 | V9: =$J$98 -> 88 | W9: 0.9361702128 | Y9: =$I$99 -> 101
B10: 5 | C10: Lograr homologación y transferencia del 100% de la oferta académica de la Universidad entre sus diferentes niveles de formación. | D10: (Phom/TP)*100 | E10: Porcentaje de programas que posean algún grado de homologación con otros programas internos o de otras Universidades nacionales o del exterior | F10: 0 | G10: =$J$130 -> 0.950617284 | H10: =$J$131 -> 0.950617284 | I10: =J132 -> 0.9534883721 | J10: =J133 -> 0 | M10: 5 | N10: Lograr homologación y transferencia del 100% de la oferta académica de la Universidad entre sus diferentes niveles de formación. | O10: =$I$130 -> 0 | P10: =$J$130 -> 0.950617284 | Q10: =IF(P10=0,,(P10/O10)) ->  | R10: =$I$131 -> 0.05 | S10: =$J$131 -> 0.950617284 | T10: 19.01234568 | U10: =$I$132 -> 0.15 | V10: =$J$132 -> 0.9534883721 | W10: 6.356589147 | Y10: =$I$133 -> 0.25
B11: 6 | C11: Lograr que los proyectos de extensión respondan a la interacción entre las problemáticas del entorno y los procesos de investigación, y que sus resultados vinculen e impacten comunidades de la ciudad y la región. | D11: (PePs/Pe)∗100 | E11: Porcentaje de Proyectos de Extensión que responden a problemáticas de las comunidades | F11: 33% | G11: =$J$164 -> 0.3623188406 | H11: =$J$165 -> 0.2424242424 | I11: =J166 -> 0.3272727273 | J11: =J167 -> 0 | M11: 6 | N11: Lograr que los proyectos de extensión respondan a la interacción entre las problemáticas del entorno y los procesos de investigación, y que sus resultados vinculen e impacten comunidades de la ciudad y la región. | O11: =$I$164 -> 0.33 | P11: =$J$164 -> 0.3623188406 | Q11: 1.097935881 | R11: =$I$165 -> 0.36 | S11: =$J$165 -> 0.2424242424 | T11: 0.6734006734 | U11: =$I$166 -> 0.39 | V11: =$J$166 -> 0.3272727273 | W11: 0.8391608392 | Y11: =$I$167 -> 0.39
B12: 7 | C12: Aumentar la oferta en 10 programas de formación para el trabajo y desarrollo del talento humano en correspondencia con las necesidades de los sectores productivos y de servicios de la ciudad región. | D12: ∑ Programas de formación | E12: Total de programas de formación para el trabajo y desarrollo del talento humano creados | F12: 0 | G12: =$J$173 -> 0 | H12: =$J$174 -> 0 | I12: =J175 -> 0 | J12: =J176 -> 0 | M12: 7 | N12: Aumentar la oferta en 10 programas de formación para el trabajo y desarrollo del talento humano en correspondencia con las necesidades de los sectores productivos y de servicios de la ciudad región. | O12: =$I$173 -> 0 | P12: =$J$173 -> 0 | Q12: 0 | R12: =$I$174 -> 1 | S12: =$J$174 -> 0 | T12: 0 | U12: =$I$175 -> 2 | V12: =$J$175 -> 0 | W12: 0 | Y12: =$I$176 -> 3
B13: 8 | C13: Lograr que 20% de la oferta académica de pregrado y posgrado permita la doble titulación o cotitulación. | D13: [(Pdt/c)/(TP)]∗100 | E13: Porcentaje de proyectos curriculares con acuerdos de cotitulación y/o doble titulación. | F13: 0.013 | G13: =$J$182 -> 0.01234567901 | H13: =$J$183 -> 0.01162790698 | I13: =J184 -> 0.02325581395 | J13: =J185 -> 0 | M13: 8 | N13: Lograr que 20% de la oferta académica de pregrado y posgrado permita la doble titulación o cotitulación. | O13: =$I$182 -> 0.0125 | P13: =$J$182 -> 0.01234567901 | Q13: 0.987654321 | R13: =$I$183 -> 0.01162790698 | S13: =$J$183 -> 0.01162790698 | T13: 1 | U13: =$I$184 -> 0.04255319149 | V13: =$J$184 -> 0.02325581395 | W13: 0.5465116279 | Y13: =$I$185 -> 0.06930693069
B14: 9 | C14: Aumentar el índice de movilidad internacional anual mínimo al 1,3% de la población estudiantil. | D14: EstM/(T.EST)∗100 | E14: Porcentaje de estudiantes en procesos de movilidad Internacional | F14: 0.0024 | G14: =$J$216 -> 0.005456969091 | H14: =$J$217 -> 0.007066276803 | I14: =J218 -> 0.004308852383 | J14: =J219 -> 0 | M14: 9 | N14: Aumentar el índice de movilidad internacional anual mínimo al 1,3% de la población estudiantil. | O14: =$I$216 -> 0.003 | P14: =$J$216 -> 0.005456969091 | Q14: 1.818989697 | R14: =$I$217 -> 0.0035 | S14: =$J$217 -> 0.007066276803 | T14: 2.018936229 | U14: =$I$217 -> 0.0035 | V14: =$J$218 -> 0.004308852383 | W14: 1.231100681 | Y14: =$I$217 -> 0.0035
B15: 10 | C15: Aumentar el índice de movilidad internacional anual mínimo al 5 % de la planta docente. | D15: (DocM/T.DOC)∗100 | E15: Porcentaje de docentes en procesos de movilidad Internacional | F15: 0.005 | G15: =$J$225 -> 0.007751937984 | H15: =$J$226 -> 0.01107594937 | I15: =J227 -> 0.007668711656 | J15: =J228 -> 0 | M15: 10 | N15: Aumentar el índice de movilidad internacional anual mínimo al 5 % de la planta docente. | O15: =$I$225 -> 0.008 | P15: =$J$225 -> 0.007751937984 | Q15: 1 | R15: =$I$226 -> 0.011 | S15: =$J$226 -> 0.01107594937 | T15: 1 | U15: =$I$227 -> 0.015 | V15: =$J$227 -> 0.007668711656 | W15: 0.5112474438 | Y15: =$I$228 -> 0.019
B16: 11 | C16: Lograr que el 60% de estudiantes tengan un dominio de una segunda lengua en un nivel equivalente a B2. | D16: (Est.B2/T.EST)∗100 | E16: Porcentaje de estudiantes que tienen un dominio intermedio de una segunda lengua según el MCRE | F16: 0.3628 | G16: =$J$234 -> 0.111 | H16: =$J$235 -> 0.0909 | I16: =J236 -> 0.1142 | J16: =J237 -> 0 | M16: 11 | N16: Lograr que el 60% de estudiantes tengan un dominio de una segunda lengua en un nivel equivalente a B2. | O16: =$I$234 -> 0.3628 | P16: =$J$234 -> 0.111 | Q16: 0.3059536935 | R16: =$I$235 -> 0.38 | S16: =$J$235 -> 0.0909 | T16: =IF(S16=0,,(S16/R16)) -> 0.2392105263 | U16: =$I$236 -> 0.4 | V16: =$J$236 -> 0.1142 | W16: =IF(V16=0,,(V16/U16)) -> 0.2855 | Y16: =$I$237 -> 0.42
B17: 12 | C17: Apoyar a estudiantes de los colegios distritales ubicados en el área de influencia de las sedes de la Universidad, con programas de fortalecimiento de competencias básicas en: matemáticas, ciencias naturales, lectura crítica e inglés. | D17: ∑ Estudiantes apoyados en CB | E17: Número acumulado de estudiantes de IED apoyados por la Universidad | F17: 0 | G17: =$J$243 -> 9364 | H17: =$J$244 -> 0 | I17: =J245 -> 1806 | J17: =J246 -> 0 | M17: 12 | N17: Apoyar a estudiantes de los colegios distritales ubicados en el área de influencia de las sedes de la Universidad, con programas de fortalecimiento de competencias básicas en: matemáticas, ciencias naturales, lectura crítica e inglés. | O17: =$I$243 -> 0 | P17: =$J$243 -> 9364 | R17: =$I$244 -> 2000 | S17: =$J$244 -> 0 | T17: 0 | U17: =$I$245 -> 4000 | V17: =$J$245 -> 1806 | W17: =IF(V17=0,,(V17/U17)) -> 0.4515 | Y17: =$I$246 -> 6000
B18: 13 | C18: Disminuir la tasa de deserción anual al 9% | D18: EAE/EA∗100 | E18: Porcentaje de estudiantes que no se han matriculado por dos periodos consecutivos (desertor anual) Fuente: SPADIES | F18: 0.095 | G18: =$J$252 -> 0.0751478797 | H18: =$J$253 -> 0.1103395062 | I18: =J254 -> 0.1115706454 | J18: =J255 -> 0 | M18: 13 | N18: Disminuir la tasa de deserción anual al 9% | O18: =$I$252 -> 0.095 | P18: =$J$252 -> 0.0751478797 | Q18: 0.7910303126 | R18: =$I$253 -> 0.0945 | S18: =$J$253 -> 0.1103395062 | T18: 1.167613822 | U18: =$I$254 -> 0.094 | V18: =$J$254 -> 0.1115706454 | W18: 0.8112 | Y18: =$I$255 -> 0.0935
B19: 14 | C19: Modernizar la organización académica y administrativa de la institución. | D19: Reforma Organizacional Aprobada por Consejo Superior | E19: Reforma Organizacional Aprobada por Consejo Superior | F19: N/A | M19: 14 | N19: Modernizar la organización académica y administrativa de la institución.
M20: Totales | Q20: =AVERAGE(Q7:Q18) ->  | T20: =AVERAGE(T7:T18) -> 2.340683003 | W20: =AVERAGE(W7:W18) -> 1.157165014
B22: REPORTE POR INDICADOR
B24: Meta 2 | C24: =C7 -> Aumentar el 34% en el número de estudiantes de pregrado matriculados. | D24: =D7 -> (M1semPre + M2semPre)/2
H25: ="Cuadro resumen "&B24 -> Cuadro resumen Meta 2
B26: Año | C26: Facultad | D26: Meta Plan Indicativo | E26: Valor reportado | F26: Cumplimiento indicativo | G26: Observaciones/ anotaciones | H26: Año | I26: Meta P. Indicativo | J26: Valor reportado | K26: % Cumplimiento Plan Indicativo | L26: % de avance del Plan Estratégico
B27: 2017 | C27: F. de Artes ASAB | E27: 1588 | H27: 2017 | I27: - | J27: =E32 -> 23862 | K27: - | L27: -
B28: 2017 | C28: F. de Ciencias y Educación | E28: 6241 | H28: 2018 | I28: =D38 -> 23886 | J28: =E38 -> 24006 | K28: =IF(J28=0,0,J28/I28) -> 1.005023863 | L28: =J28/32000 -> 0.7501875
B29: 2017 | C29: F. de Ingeniería | E29: 5041 | H29: 2019 | I29: =D44 -> 25465 | J29: =E44 -> 24624 | K29: 0.9669742784 | L29: =J29/32000 -> 0.7695
B30: 2017 | C30: F. de Medio Ambiente | E30: 4903 | H30: 2020 | I30: =D50 -> 27108 | J30: =E50 -> 25992.5 | K30: 0.958849786 | L30: 0.812265625
B31: 2017 | C31: F. Tecnológica | E31: 6089 | H31: 2021 | I31: =D56 -> 29007 | J31: =E56 -> 0 | K31: 0 | L31: 0
B32: 2017 | C32: Total | E32: =SUM(E27:E31) -> 23862
B33: 2018 | C33: F. de Artes ASAB | D33: 1555 | E33: =(1615+1624)/2 -> 1619.5 | F33: =IF(E33=0,0,E33/D33) -> 1.0414791 | G33: Para el primer semestre se matricularon 1555 estudiantes y para el segundo semestre 1621 estudiantes en pregrado (Arte Danzario, Artes Escénicas, Artes Plásticas y Visuales, Artes Musicales.
B34: 2018 | C34: F. de Ciencias y Educación | D34: 6175 | E34: =(6175+6294)/2 -> 6234.5 | F34: =IF(E34=0,0,E34/D34) -> 1.009635628
B35: 2018 | C35: F. de Ingeniería | D35: 5041 | E35: =(4791+4702)/2 -> 4746.5 | F35: 0.9415790518
B36: 2018 | C36: F. de Medio Ambiente | D36: 5115 | E36: =(4848+4942)/2 -> 4895 | F36: 0.9569892473
B37: 2018 | C37: F. Tecnológica | D37: 6000 | E37: =(6375+6645)/2 -> 6510 | F37: =IF(E37=0,0,E37/D37) -> 1.085 | G37: Para aplicar el indicador se tuvo en cuenta los estudiantes matriculados en el 2018, de los programas académicos de la Facultad Tecnológica.
B38: 2018 | C38: Total | D38: =SUM(D33:D37) -> 23886 | E38: 24006 | F38: 1.005023863
B39: 2019 | C39: F. de Artes ASAB | D39: 1695 | E39: 1535 | F39: 0.9056047198 | G39: Para el primer semestre se matricularon 1613 estudiantes y para el segundo semestre 1457 estudiantes en pregrado (Arte Danzario, Artes Escénicas, Artes Plásticas y Visuales, Artes Musicales (Se viene trabajando en el proyecto de Reconocimiento de saberes para aumentar la cobertura estudiantil).
B40: 2019 | C40: F. de Ciencias y Educación | D40: 6700 | E40: 6242 | F40: 0.931641791
B41: 2019 | C41: F. de Ingeniería | D41: 5141 | E41: 4856 | F41: 0.9445633145
B42: 2019 | C42: F. de Medio Ambiente | D42: 5209 | E42: 5008 | F42: 0.9614129391
B43: 2019 | C43: F. Tecnológica | D43: 6720 | E43: 6932 | F43: 1.031547619 | G43: Para aplicar el indicador se tuvo en cuenta los estudiantes matriculados en el 2018, de los programas académicos de la Facultad Tecnológica.
B44: 2019 | C44: Total | D44: =SUM(D39:D43) -> 25465 | E44: =24624 -> 24624 | F44: 0.9669742784
B45: 2020 | C45: F. de Artes ASAB | D45: 1730 | E45: =(1562+1710)/2 -> 1636 | F45: 0.9456647399
B46: 2020 | C46: F. de Ciencias y Educación | D46: 7300 | E46: =(6717+7301)/2 -> 7009 | F46: 0.9601369863
B47: 2020 | C47: F. de Ingeniería | D47: 5191 | E47: =(4942+5236)/2 -> 5089 | F47: 0.9803506068
B48: 2020 | C48: F. de Medio Ambiente | D48: 5447 | E48: =(5296+5488)/2 -> 5392 | F48: 0.9899026987
B49: 2020 | C49: F. Tecnológica | D49: 7440 | E49: =(6671+7062)/2 -> 6866.5 | F49: 0.9229166667
B50: 2020 | C50: Total | D50: =SUM(D45:D49) -> 27108 | E50: =(25188+26797)/2 -> 25992.5 | F50: 0.958849786 | G50: La fuente de información del indicador es la Oficina Asesora de Sistemas. Cabe aclarar que el indicador varia si se toman los datos del Sistema Spagobi 2020-I: 25.181 y 2020-III: 26.403, lo cual lleva el indicador a 25.792 diferencia de 201 estudiantes.
B51: 2021 | C51: F. de Artes ASAB | D51: 1730 | F51: 0
B52: 2021 | C52: F. de Ciencias y Educación | D52: 7900 | F52: 0
B53: 2021 | C53: F. de Ingeniería | D53: 5241 | F53: 0
B54: 2021 | C54: F. de Medio Ambiente | D54: 5976 | F54: 0
B55: 2021 | C55: F. Tecnológica | D55: 8160 | F55: 0
B56: 2021 | C56: Total | D56: =SUM(D51:D55) -> 29007 | F56: 0
B58: Meta 3 | C58: =C8 -> Aumentar el 65% de estudiantes matriculados en posgrado. | D58: =D8 -> (M1semPos + M2semPos )/2
H59: ="Cuadro resumen "&B58 -> Cuadro resumen Meta 3
B60: Año | C60: Facultad | D60: Meta Plan Indicativo | E60: Valor reportado | F60: Cumplimiento indicativo | G60: Observaciones/ anotaciones | H60: Año | I60: Meta P. Indicativo | J60: Valor reportado | K60: % Cumplimiento Plan Indicativo | L60: % de avance del Plan Estratégico
B61: 2017 | C61: F. de Artes ASAB | E61: 85 | H61: 2017 | J61: =E66 -> 2972 | K61: - | L61: -
B62: 2017 | C62: F. de Ciencias y Educación | E62: 1222 | H62: 2018 | I62: =D72 -> 2996 | J62: =E72 -> 3055 | K62: =IF(J62=0,0,J62/I62) -> 1.019692924 | L62: =J62/4904 -> 0.6229608483
B63: 2017 | C63: F. de Ingeniería | E63: 1396 | H63: 2019 | I63: =D78 -> 3191 | J63: =E78 -> 3222 | K63: 1.009714823 | L63: =J63/4904 -> 0.6570146819
B64: 2017 | C64: F. de Medio Ambiente | E64: 269 | H64: 2020 | I64: =D84 -> 3417 | J64: =E84 -> 3274 | K64: 0.9581504243 | L64: 0.6676182708
B65: 2017 | C65: F. Tecnológica | E65: 0 | H65: 2021 | I65: =D90 -> 3667 | J65: =E90 -> 0 | K65: 0 | L65: 0
B66: 2017 | C66: Total | E66: =SUM(E61:E65) -> 2972
B67: 2018 | C67: F. de Artes ASAB | D67: 67 | E67: 78 | F67: =IF(E67=0,0,E67/D67) -> 1.164179104 | G67: Para el primer semestre se matricularon 68 estudiantes y para el segundo semestre 98 estudiantes en la Maestría de Estudios Artísticos.
B68: 2018 | C68: F. de Ciencias y Educación | D68: 1230 | E68: 1286 | F68: =IF(E68=0,0,E68/D68) -> 1.045528455
B69: 2018 | C69: F. de Ingeniería | D69: 1396 | E69: 1390 | F69: 0.9957020057
B70: 2018 | C70: F. de Medio Ambiente | D70: 278 | E70: 281.5 | F70: 1.012589928
B71: 2018 | C71: F. Tecnológica | D71: 25 | E71: 19.5 | F71: 0.78 | G71: Se reporta 24 estudiantes matriculados programa maestria en ingenieria civil año 2018.
B72: 2018 | C72: Total | D72: =SUM(D67:D71) -> 2996 | E72: =SUM(E67:E71) -> 3055 | F72: 1.019692924
B73: 2019 | C73: F. de Artes ASAB | D73: 102 | E73: 82.5 | F73: 0.8088235294 | G73: Para el primer semestre se matricularon 77 estudiantes en la Maestría en Estudios Artisticos y en el segundo semestre se matricularon 65 estudiantes en la Maestría de Estudios Artístico y 13 estudiantes en el Doctorado en Estudios Artísticos.
B74: 2019 | C74: F. de Ciencias y Educación | D74: 1250 | E74: 1397 | F74: 1.1176
B75: 2019 | C75: F. de Ingeniería | D75: 1456 | E75: 1433.5 | F75: 0.9845467033
B76: 2019 | C76: F. de Medio Ambiente | D76: 308 | E76: 272.5 | F76: 0.8847402597
B77: 2019 | C77: F. Tecnológica | D77: 75 | E77: 36.5 | F77: 0.4866666667 | G77: Se reporta 40 estudiantes matriculados .El valor total incluye estudiantes antiguos que continuaron matriculados del año 2018, estudiantes de 2019-1 que renovaron matricula en 2019-3 y estudiantes nuevos matriculados de 2019-3.
B78: 2019 | C78: Total | D78: =SUM(D73:D77) -> 3191 | E78: 3222 | F78: 1.009714823
B79: 2020 | C79: F. de Artes ASAB | D79: 127 | E79: =(89+95)/2 -> 92 | F79: 0.7244094488
B80: 2020 | C80: F. de Ciencias y Educación | D80: 1300 | E80: =(1503+1497)/2 -> 1500 | F80: 1.153846154
B81: 2020 | C81: F. de Ingeniería | D81: 1516 | E81: =(1331+1383)/2 -> 1357 | F81: 0.8951187335
B82: 2020 | C82: F. de Medio Ambiente | D82: 354 | E82: =(253+266)/2 -> 259.5 | F82: 0.7330508475
B83: 2020 | C83: F. Tecnológica | D83: 120 | E83: =(49+52)/2 -> 50.5 | F83: 0.4208333333
B84: 2020 | C84: Total | D84: =SUM(D79:D83) -> 3417 | E84: =(3255+3293)/2 -> 3274 | F84: =IF(E84=0,0,E84/D84) -> 0.9581504243 | G84: Datos obtenidos de Spagobi (24-02-2021)
B85: 2021 | C85: F. de Artes ASAB | D85: 187 | F85: 0
B86: 2021 | C86: F. de Ciencias y Educación | D86: 1350 | F86: 0
B87: 2021 | C87: F. de Ingeniería | D87: 1516 | F87: 0
B88: 2021 | C88: F. de Medio Ambiente | D88: 454 | F88: 0
B89: 2021 | C89: F. Tecnológica | D89: 160 | F89: 0
B90: 2021 | C90: Total | D90: =SUM(D85:D89) -> 3667 | F90: 0
B92: Meta 4 | C92: =C9 -> Aumentar en 28% el número de programas en todos los niveles y modalidades. | D92: =D9 -> Σ Programas con registro calificado
H93: ="Cuadro resumen "&B92 -> Cuadro resumen Meta 4
B94: Año | C94: Facultad | D94: Meta Plan Indicativo | E94: Valor reportado | F94: Cumplimiento indicativo | G94: Observaciones/ anotaciones | H94: Año | I94: Meta P. Indicativo | J94: Valor reportado | K94: % Cumplimiento Plan Indicativo | L94: % de avance del Plan Estratégico
B95: 2017 | C95: F. de Artes ASAB | E95: 5 | H95: 2017 | J95: =E100 -> 77 | K95: - | L95: -
B96: 2017 | C96: F. de Ciencias y Educación | E96: 25 | H96: 2018 | I96: =D106 -> 80 | J96: =E106 -> 81 | K96: =IF(J96=0,0,J96/I96) -> 1.0125 | L96: =J96/104 -> 0.7788461538
B97: 2017 | C97: F. de Ingeniería | E97: 20 | H97: 2019 | I97: =D112 -> 86 | J97: =E112 -> 86 | K97: 1 | L97: =J97/104 -> 0.8269230769
B98: 2017 | C98: F. de Medio Ambiente | E98: 14 | H98: 2020 | I98: =D118 -> 94 | J98: =E118 -> 88 | K98: 0.9361702128 | L98: 0.8461538462
B99: 2017 | C99: F. Tecnológica | E99: 13 | H99: 2021 | I99: =D124 -> 101 | J99: =E124 -> 0 | K99: 0 | L99: 0
B100: 2017 | C100: Total | E100: =SUM(E95:E99) -> 77
B101: 2018 | C101: F. de Artes ASAB | D101: 5 | E101: 5 | F101: =IF(E101=0,0,E101/D101) -> 1 | G101: Arte Danzario, Artes Escénicas, Artes Plásticas y Visuales, Artes Musicales, Maestría de Estudios Artísticos
B102: 2018 | C102: F. de Ciencias y Educación | D102: 27 | F102: =IF(E102=0,0,E102/D102) -> 0
B103: 2018 | C103: F. de Ingeniería | D103: 20 | E103: 20 | F103: 1 | G103: (5 pregrados, 10 especializaciones, 4 maestrias y 1 Doctorado).
B104: 2018 | C104: F. de Medio Ambiente | D104: 14 | E104: 14 | F104: =IF(E104=0,0,E104/D104) -> 1
B105: 2018 | C105: F. Tecnológica | D105: 14 | E105: 14 | F105: =IF(E105=0,0,E105/D105) -> 1
B106: 2018 | C106: Total | D106: =SUM(D101:D105) -> 80 | E106: 81 | F106: 1.0125
B107: 2019 | C107: F. de Artes ASAB | D107: 6 | F107: 0
B108: 2019 | C108: F. de Ciencias y Educación | D108: 30 | F108: 0
B109: 2019 | C109: F. de Ingeniería | D109: 21 | E109: 20 | F109: =IF(E109=0,0,E109/D109) -> 0.9523809524 | G109: (5 pregrados, 10 especializaciones, 4 maestrias y 1 Doctorado).
B110: 2019 | C110: F. de Medio Ambiente | D110: 15 | E110: 14 | F110: 0.9333333333
B111: 2019 | C111: F. Tecnológica | D111: 14 | F111: 0
B112: 2019 | C112: Total | D112: =SUM(D107:D111) -> 86 | E112: 86 | F112: 1 | G112: Cabe resaltar que la Universidad recibió en el año 2019 registro calificado para los programas de Biología, Física y Química, asociados a la Facultad de Ciencias y Educación. De igual manera, en cuanto a programas de posgrado recibió registro calificado para los programas de Especialización en Gerencia de la Construcción y Especialización en Interventoría y Supervisión de Obras Civiles, asociadas a la Facultad Tecnológica. Estos programas no han entrado en funcionamiento.
B113: 2020 | C113: F. de Artes ASAB | D113: 6 | F113: 0
B114: 2020 | C114: F. de Ciencias y Educación | D114: 33 | F114: 0
B115: 2020 | C115: F. de Ingeniería | D115: 23 | F115: 0
B116: 2020 | C116: F. de Medio Ambiente | D116: 16 | F116: 0
B117: 2020 | C117: F. Tecnológica | D117: 16 | F117: 0
B118: 2020 | C118: Total | D118: 94 | E118: 88 | F118: 0.9361702128
B119: 2021 | C119: F. de Artes ASAB | D119: 8 | F119: =IF(E119=0,0,E119/#REF!) -> 0
B120: 2021 | C120: F. de Ciencias y Educación | D120: 34 | F120: =IF(E120=0,0,E120/D119) -> 0
B121: 2021 | C121: F. de Ingeniería | D121: 24 | F121: =IF(E121=0,0,E121/D120) -> 0
B122: 2021 | C122: F. de Medio Ambiente | D122: 17 | F122: =IF(E122=0,0,E122/D121) -> 0
B123: 2021 | C123: F. Tecnológica | D123: 18 | F123: =IF(E123=0,0,E123/D122) -> 0
B124: 2021 | C124: Total | D124: =SUM(D119:D123) -> 101 | F124: 0
B126: Meta 5 | C126: =C10 -> Lograr homologación y transferencia del 100% de la oferta académica de la Universidad entre sus diferentes niveles de formación. | D126: =D10 -> (Phom/TP)*100
H127: ="Cuadro resumen "&B126 -> Cuadro resumen Meta 5
B128: Año | C128: Facultad | D128: Meta Plan Indicativo | E128: Valor reportado | F128: Cumplimiento indicativo | G128: Observaciones/ anotaciones | H128: Año | I128: Meta P. Indicativo | J128: Valor reportado | K128: % Cumplimiento Plan Indicativo | L128: % de avance del Plan Estratégico
B129: 2017 | C129: F. de Artes ASAB | E129: 0 | H129: 2017 | J129: =E134 -> 0 | K129: - | L129: -
B130: 2017 | C130: F. de Ciencias y Educación | E130: 0 | H130: 2018 | I130: =D140 -> 0 | J130: =E140 -> 0.950617284 | K130: =IF(J130=0,0,J130/I130) ->  | L130: =J130/104 -> 0.009140550807
B131: 2017 | C131: F. de Ingeniería | E131: 0 | H131: 2019 | I131: =D146 -> 0.05 | J131: =E146 -> 0.950617284 | K131: 19.01234568 | L131: =J131/104 -> 0.009140550807
B132: 2017 | C132: F. de Medio Ambiente | E132: 0 | H132: 2020 | I132: =D152 -> 0.15 | J132: =E152 -> 0.9534883721 | K132: 6.356589147 | L132: 0.009168157424
B133: 2017 | C133: F. Tecnológica | E133: 0 | H133: 2021 | I133: =D158 -> 0.25 | J133: =E158 -> 0 | K133: 0 | L133: 0
B134: 2017 | C134: Total | E134: =SUM(E129:E133) -> 0
B135: 2018 | C135: F. de Artes ASAB | D135: 0 | F135: =IF(E135=0,0,E135/D135) -> 0
B136: 2018 | C136: F. de Ciencias y Educación | D136: 0 | F136: =IF(E136=0,0,E136/D136) -> 0
B137: 2018 | C137: F. de Ingeniería | D137: 0 | F137: 0
B138: 2018 | C138: F. de Medio Ambiente | D138: 0 | F138: 0
B139: 2018 | C139: F. Tecnológica | D139: 0 | F139: 0
B140: 2018 | C140: Total | D140: =SUM(D135:D139) -> 0 | E140: =(81-4)/E106 -> 0.950617284 | G140: De acuerdo a la normatividad interna vigente, todos los proyectos curriculares de pregrado, especialización y maestrías desarrollan procesos de homologación.
B141: 2019 | C141: F. de Artes ASAB | D141: 0 | F141: 0
B142: 2019 | C142: F. de Ciencias y Educación | D142: 0 | F142: 0
B143: 2019 | C143: F. de Ingeniería | D143: 0 | F143: 0
B144: 2019 | C144: F. de Medio Ambiente | D144: 0 | F144: 0
B145: 2019 | C145: F. Tecnológica | D145: 0 | F145: 0
B146: 2019 | C146: Total | D146: 0.05 | E146: =(81-4)/81 -> 0.950617284 | F146: 19.01234568 | G146: De acuerdo a la normatividad interna vigente, todos los proyectos curriculares de pregrado, especialización y maestrías desarrollan procesos de homologación.
B147: 2020 | C147: F. de Artes ASAB | D147: 0 | F147: 0
B148: 2020 | C148: F. de Ciencias y Educación | D148: 0 | F148: 0
B149: 2020 | C149: F. de Ingeniería | D149: 0 | F149: 0
B150: 2020 | C150: F. de Medio Ambiente | D150: 0 | F150: 0
B151: 2020 | C151: F. Tecnológica | D151: 0 | F151: 0
B152: 2020 | C152: Total | D152: 0.15 | E152: =82/86 -> 0.9534883721 | F152: 6.356589147
B153: 2021 | C153: F. de Artes ASAB | D153: 0 | F153: 0
B154: 2021 | C154: F. de Ciencias y Educación | D154: 0 | F154: 0
B155: 2021 | C155: F. de Ingeniería | D155: 0 | F155: 0
B156: 2021 | C156: F. de Medio Ambiente | D156: 0 | F156: 0
B157: 2021 | C157: F. Tecnológica | D157: 0 | F157: 0
B158: 2021 | C158: Total | D158: 0.25 | F158: 0
B160: Meta 6 | C160: =C11 -> Lograr que los proyectos de extensión respondan a la interacción entre las problemáticas del entorno y los procesos de investigación, y que sus resultados vinculen e impacten comunidades de la ciudad y la región. | D160: =D11 -> (PePs/Pe)∗100
H161: ="Cuadro resumen "&B160 -> Cuadro resumen Meta 6
B162: Año | C162: Facultad | D162: Meta Plan Indicativo | E162: Valor reportado | F162: Cumplimiento indicativo | G162: Observaciones/ anotaciones | H162: Año | I162: Meta P. Indicativo | J162: Valor reportado | K162: % Cumplimiento Plan Indicativo | L162: % de avance del Plan Estratégico
B163: 2017 | C163: Consolidado | E163: 0.33 | H163: 2017 | J163: =E163 -> 0.33 | K163: - | L163: -
B164: 2018 | C164: Consolidado | D164: 0.33 | E164: =(25)/(69) -> 0.3623188406 | F164: =IF(E164=0,0,E164/D164) -> 1.097935881 | G164: Teniendo en cuenta lo descrito en la hoja de vida del indicador, recogemos las actividades realizadas en el proceso de Extensión y Proyección Social de la Universidad Distrital, a saber, podemos reportar lo siguiente: •69 Proyectos de Extensión • 25 Proyectos de Extensión con Proyección Social PePs • 161 Pasantías reportadas por la Facultad de Medio Ambiente | H164: 2018 | I164: =D164 -> 0.33 | J164: =E164 -> 0.3623188406 | K164: =IF(J164=0,0,J164/I164) -> 1.097935881 | L164: =J164/104 -> 0.003483835006
B165: 2019 | C165: Consolidado | D165: 0.36 | E165: =+ (32)/(132) -> 0.2424242424 | F165: =IF(E165=0,0,E165/D165) -> 0.6734006734 | G165: Teniendo en cuenta lo descrito en la hoja de vida del indicador, recogemos las actividades realizadas en el proceso de Extensión y Proyección Social de la Universidad Distrital, a saber, podemos reportar lo siguiente: • 132 Proyectos de Extensión • 32 Proyectos de Extensión con Proyección Social PePs • 212 Pasantías reportadas por la Facultad de Medio Ambiente | H165: 2019 | I165: =D165 -> 0.36 | J165: =E165 -> 0.2424242424 | K165: 0.6734006734 | L165: =J165/104 -> 0.002331002331
B166: 2020 | C166: Consolidado | D166: 0.39 | E166: =18/55 -> 0.3272727273 | F166: 0.8391608392 | H166: 2020 | I166: 0.39 | J166: 0.3272727273 | K166: 0.8391608392 | L166: 0.003146853147
B167: 2021 | C167: Consolidado | D167: 0.39 | F167: 0 | H167: 2021 | I167: 0.39 | J167: 0 | K167: 0 | L167: 0
B169: Meta 7 | C169: =C12 -> Aumentar la oferta en 10 programas de formación para el trabajo y desarrollo del talento humano en correspondencia con las necesidades de los sectores productivos y de servicios de la ciudad región. | D169: =D12 -> ∑ Programas de formación
H170: ="Cuadro resumen "&B169 -> Cuadro resumen Meta 7
B171: Año | C171: Facultad | D171: Meta Plan Indicativo | E171: Valor reportado | F171: Cumplimiento indicativo | G171: Observaciones/ anotaciones | H171: Año | I171: Meta P. Indicativo | J171: Valor reportado | K171: % Cumplimiento Plan Indicativo | L171: % de avance del Plan Estratégico
B172: 2017 | C172: Consolidado | E172: 0 | H172: 2017 | J172: =E172 -> 0 | K172: - | L172: -
B173: 2018 | C173: Consolidado | D173: 0 | E173: 0 | F173: =IF(E173=0,0,E173/D173) -> 0 | G173: De acuerdo a lo descrito en la Hoja de Vida del Indicador, la Universidad Distrital Francisco José de Caldas, no desarrolla programas de formación de Educación y Formación para el Trabajo y Desarrollo Humano, desarrolla actividades de educación Informal, a saber: Cursos, Talleres, Diplomados y demás actividades de formación y capacitación. En la vigencia 2018, suscribió 25 proyectos de Extensión y proyección Social desarrollando actividades de Educación Informal a saber: Cursos, Talleres, Diplomados, Seminarios, Capacitaciones en Colegio, escuelas de Formación Artística, Deportiva, de Recreación y atención al Adulto mayor. | H173: 2018 | I173: =D173 -> 0 | J173: =E173 -> 0 | K173: =IF(J173=0,0,J173/I173) -> 0 | L173: =J173/10 -> 0
B174: 2019 | C174: Consolidado | D174: 1 | E174: 0 | F174: =IF(E174=0,0,E174/D174) -> 0 | G174: De acuerdo a lo descrito en la Hoja de Vida del Indicador, la Universidad Distrital Francisco José de Caldas, no desarrolla programas de formación de Educación y Formación para el Trabajo y Desarrollo Humano, desarrolla actividades de educación Informal, a saber: Cursos, Talleres, Diplomados y demás actividades de formación y capacitación. En la vigencia 2019, suscribió 51 proyectos de Extensión y proyección Social desarrollando 109 actividades de Educación Informal a saber: Cursos, Talleres, Diplomados, Seminarios, Capacitaciones en Colegio, escuelas de Formación Artística, Deportiva, de Recreación y atención al Adulto mayor. | H174: 2019 | I174: =D174 -> 1 | J174: =E174 -> 0 | K174: 0 | L174: =J174/10 -> 0
B175: 2020 | C175: Consolidado | D175: 2 | E175: 0 | F175: 0 | H175: 2020 | I175: 2 | J175: 0 | K175: 0 | L175: 0
B176: 2021 | C176: Consolidado | D176: 3 | F176: 0 | H176: 2021 | I176: 3 | J176: 0 | K176: 0 | L176: 0
B178: Meta 8 | C178: =C13 -> Lograr que 20% de la oferta académica de pregrado y posgrado permita la doble titulación o cotitulación. | D178: =D13 -> [(Pdt/c)/(TP)]∗100
H179: ="Cuadro resumen "&B178 -> Cuadro resumen Meta 8
B180: Año | C180: Facultad | D180: Meta Plan Indicativo | E180: Valor reportado | F180: Cumplimiento indicativo | G180: Observaciones/ anotaciones | H180: Año | I180: Meta P. Indicativo | J180: Valor reportado | K180: % Cumplimiento Plan Indicativo | L180: % de avance del Plan Estratégico
B181: 2017 | C181: F. de Artes ASAB | H181: 2017 | J181: =E181 -> 0 | K181: - | L181: -
B182: 2017 | C182: F. de Ciencias y Educación | H182: 2018 | I182: =D192 -> 0.0125 | J182: =E192 -> 0.01234567901 | K182: =IF(J182=0,0,J182/I182) -> 0.987654321 | L182: =J182/20% -> 0.06172839506
B183: 2017 | C183: F. de Ingeniería | H183: 2019 | I183: =D198 -> 0.01162790698 | J183: =E198 -> 0.01162790698 | K183: 1 | L183: =J183/20% -> 0.05813953488
B184: 2017 | C184: F. de Medio Ambiente | H184: 2020 | I184: =D204 -> 0.04255319149 | J184: =E204 -> 0.02325581395 | K184: 0.5465116279 | L184: 0.1162790698
B185: 2017 | C185: F. Tecnológica | H185: 2021 | I185: =D210 -> 0.06930693069 | J185: =E210 -> 0 | K185: 0 | L185: 0
B186: 2017 | C186: Total | E186: 0.013
B187: 2018 | C187: F. de Artes ASAB | D187: 0 | F187: =IF(E187=0,0,E187/D187) -> 0
B188: 2018 | C188: F. de Ciencias y Educación | D188: 1 | F188: =IF(E188=0,0,E188/D188) -> 0
B189: 2018 | C189: F. de Ingeniería | D189: 0 | F189: 0
B190: 2018 | C190: F. de Medio Ambiente | D190: 0 | F190: 0
B191: 2018 | C191: F. Tecnológica | D191: 0 | F191: 0
B192: 2018 | C192: Total | D192: =SUM(D187:D191)/D106 -> 0.0125 | E192: =1/E106 -> 0.01234567901 | F192: 0.987654321
B193: 2019 | C193: F. de Artes ASAB | D193: 0 | F193: 0
B194: 2019 | C194: F. de Ciencias y Educación | D194: 1 | F194: 0
B195: 2019 | C195: F. de Ingeniería | D195: 0 | F195: 0
B196: 2019 | C196: F. de Medio Ambiente | D196: 0 | F196: 0
B197: 2019 | C197: F. Tecnológica | D197: 0 | F197: 0
B198: 2019 | C198: Total | D198: =SUM(D193:D197)/D112 -> 0.01162790698 | E198: =1/E112 -> 0.01162790698 | F198: 1
B199: 2020 | C199: F. de Artes ASAB | D199: 0 | F199: 0
B200: 2020 | C200: F. de Ciencias y Educación | D200: 2 | F200: 0
B201: 2020 | C201: F. de Ingeniería | D201: 0 | F201: 0
B202: 2020 | C202: F. de Medio Ambiente | D202: 2 | F202: 0
B203: 2020 | C203: F. Tecnológica | D203: 0 | F203: 0
B204: 2020 | C204: Total | D204: =SUM(D199:D203)/D118 -> 0.04255319149 | E204: =2/86 -> 0.02325581395 | F204: 0.5465116279
B205: 2021 | C205: F. de Artes ASAB | D205: 1 | F205: =IF(E205=0,0,E205/#REF!) -> 0
B206: 2021 | C206: F. de Ciencias y Educación | D206: 2 | F206: =IF(E206=0,0,E206/D205) -> 0
B207: 2021 | C207: F. de Ingeniería | D207: 0 | F207: =IF(E207=0,0,E207/D206) -> 0
B208: 2021 | C208: F. de Medio Ambiente | D208: 3 | F208: =IF(E208=0,0,E208/D207) -> 0
B209: 2021 | C209: F. Tecnológica | D209: 1 | F209: =IF(E209=0,0,E209/D208) -> 0
B210: 2021 | C210: Total | D210: =SUM(D205:D209)/D124 -> 0.06930693069 | F210: =IF(E210=0,0,E210/D210) -> 0
... 40 more rows

Sheet Base L5 (hidden)
B2: L I N E A M I E N T O 5
B4: Información del indicador | G4: Reporte de los indicadores | M4: N° | N4: Meta | O4: Avance PLAN INDICATIVO
B5: N° | C5: Meta | D5: Indicador | E5: Unidad de medida | F5: Linea base (2017) | G5: 2018 | H5: 2019 | I5: 2020 | J5: 2021 | K5: Tendencia | O5: Metas 2018 | P5: Reportado 2018 | Q5: % cumplimiento 2018 | R5: Metas 2019 | S5: Reportado 2019 | T5: % cumplimiento 2019 | U5: Metas 2020 | V5: Reportado 2020 | W5: % cumplimiento 2020 | Y5: 2021
B6: 33 | C6: Implementar los dominios identificados en el marco de referencia IT 4+ establecidos por MinTIC | D6: ∑ Dominios implementados según Marco de referencia IT4+ | E6: Dominios implementados según Marco de referencia IT4+ | F6: 0 | G6: =$J$25 -> 0 | H6: =$J$26 -> 0 | I6: =$J$27 -> 0 | J6: =$J$28 -> 0 | M6: =B6 -> 33 | N6: =C6 -> Implementar los dominios identificados en el marco de referencia IT 4+ establecidos por MinTIC | O6: =$I$25 -> 0 | P6: =$J$25 -> 0 | Q6: =IF(O6=0,O6,P6/O6) -> 0 | R6: =$I$26 -> 3 | S6: =$J$26 -> 0 | T6: =IF(R6=0,R6,S6/R6) -> 0 | U6: =$I$27 -> 4 | V6: =$J$27 -> 0 | W6: =IF(U6=0,U6,V6/U6) -> 0 | Y6: =$I$28 -> 6
B7: 34 | C7: Alcanzar la implementación del cuarto componente de Gobierno en Línea (Seguridad y privacidad de la información). | D7: (A.GEL Imp)/(Total de A.GEL)∗100 | E7: Porcentaje de implementación del componente de Gobierno en Línea. | F7: 0.06 | G7: =$J$34 -> 0 | H7: =$J$35 -> 0 | I7: =$J$36 -> 0 | J7: =$J$37 -> 0 | M7: =B7 -> 34 | N7: =C7 -> Alcanzar la implementación del cuarto componente de Gobierno en Línea (Seguridad y privacidad de la información). | O7: =I$34 -> 0.2 | P7: =$J$34 -> 0 | Q7: =IF(O7=0,O7,P7/O7) -> 0 | R7: =$I$35 -> 0.5 | S7: =$J$35 -> 0 | T7: =IF(R7=0,R7,S7/R7) -> 0 | U7: =$I$36 -> 1 | V7: =$J$36 -> 0 | W7: =IF(U7=0,U7,V7/U7) -> 0 | Y7: =$I$37 -> 1
B8: 35 | C8: Lograr la calidad y disponibilidad del 100% de la información institucional, que no tenga restricción constitucional ni legal. | D8: (Información disponible en la web)/(Total de información de la Universidad)∗100 | E8: Porcentaje de información disponible en la página web | F8: 1 | G8: =$J$43 -> 0.93 | H8: =$J$44 -> 0.95 | I8: =$J$45 -> 0.921 | J8: =$J$46 -> 0 | M8: 35 | N8: Lograr la calidad y disponibilidad del 100% de la información institucional, que no tenga restricción constitucional ni legal. | O8: =$I$43 -> 1 | P8: =$J$43 -> 0.93 | Q8: 0.93 | R8: =$I$44 -> 1 | S8: =$J$44 -> 0.95 | T8: 0.95 | U8: =$I$45 -> 1 | V8: =$J$45 -> 0.921 | W8: 0.921 | Y8: =$I$46 -> 1
B9: 36 | C9: Implementar mecanismos de participación, de los diferentes estamentos, de la comunidad universitaria, en las instancias de planeación, gestión, seguimiento y evaluación de la Universidad. | D9: (Instancias participando efectivamente)/(Total de instancias de la Universidad)∗100 | E9: Porcentaje de instancias de planeación, seguimiento , evaluación y gestión con participación efectiva de los estamentos de la Comunidad Universitaria | F9: Sin medición | G9: =$J$52 -> 1 | H9: =$J$53 -> 1 | I9: =$J$54 -> 0.8829787234 | J9: =$J$55 -> 0 | M9: 36 | N9: Implementar mecanismos de participación, de los diferentes estamentos, de la comunidad universitaria, en las instancias de planeación, gestión, seguimiento y evaluación de la Universidad. | O9: =$I$52 -> 0.6 | P9: =$J$52 -> 1 | Q9: 1.666666667 | R9: =$I$53 -> 0.6 | S9: =$J$53 -> 1 | T9: 1.666666667 | U9: =$I$54 -> 0.7 | V9: =$J$54 -> 0.8829787234 | W9: 1.261398176 | Y9: =$I$55 -> 1
B10: 37 | C10: Lograr un nivel de satisfacción mínimo del 80% por parte de las personas que utilizan los servicios de la Universidad. | D10: (Usuario≥4 y 5)/(T.Usuarios)∗100 | E10: Porcentaje de usuarios que califican con 4 o 5 los servicios ofrecidos por la Universidad | F10: Sin medición | G10: =$J$61 -> 0 | H10: =$J$62 -> 0 | I10: =$J$63 -> 0.9315 | J10: =$J$64 -> 0 | M10: 37 | N10: Lograr un nivel de satisfacción mínimo del 80% por parte de las personas que utilizan los servicios de la Universidad. | O10: =$I$61 -> 0 | P10: =$J$61 -> 0 | Q10: 0 | R10: =$I$62 -> 0 | S10: =$J$62 -> 0 | T10: 0 | U10: =$I$63 -> 0.4 | V10: =$J$63 -> 0.9315 | W10: 2.32875 | Y10: =$I$64 -> 0.6
B11: 38 | C11: Actualizar, compilar, depurar y difundir el 100% de las normas expedidas por las autoridades institucionales. | D11: (Normatividad verificada)/(Total de normatividad expedida por la UD)∗100 | E11: Porcentaje de verificación de la vigencia de la normatividad interna | F11: Sin medición | G11: =$J$70 -> 1 | H11: =$J$71 -> 1 | I11: =$J$72 -> 1 | J11: =$J$73 -> 0 | M11: 38 | N11: Actualizar, compilar, depurar y difundir el 100% de las normas expedidas por las autoridades institucionales. | O11: =$I$70 -> 0.1 | P11: =$J$70 -> 1 | Q11: 10 | R11: =$I$71 -> 0.2 | S11: =$J$71 -> 1 | T11: 5 | U11: =$I$72 -> 0.3 | V11: =$J$72 -> 1 | W11: 3.333333333 | Y11: =$I$73 -> 0.4
B12: 39 | C12: Actualizar, simplificar y flexibilizar anualmente la operación de los procesos institucionales en el cumplimiento de las funciones universitarias. | D12: (Procesos Actualizados)/(Total de procesos)∗100 | E12: Porcentaje de actualización de Procesos SIGUD | F12: 1 | G12: =$J$79 -> 1 | H12: =$J$80 -> 0.8636363636 | I12: =$J$81 -> 0.5909090909 | J12: =$J$82 -> 0 | M12: 39 | N12: Actualizar, simplificar y flexibilizar anualmente la operación de los procesos institucionales en el cumplimiento de las funciones universitarias. | O12: =$I$79 -> 1 | P12: =$J$79 -> 1 | Q12: 1 | R12: =$I$80 -> 1 | S12: =$J$80 -> 0.8636363636 | T12: 0.8636363636 | U12: =$I$81 -> 1 | V12: =$J$81 -> 0.5909090909 | W12: 0.5909090909 | Y12: =$I$82 -> 1
B13: 40 | C13: Establecer la adecuada asignación de funciones, competencias, seguridad jurídica y equilibrio institucional en la organización, gobierno y gestión de la Universidad. | D13: (Normas actualizadas)/(Total de normas estatutarias)∗100 | E13: Porcentaje de normas estatutarias actualizadas. | F13: 0 | G13: =$J$88 -> 0 | H13: =$J$89 -> 0 | I13: =$J$90 -> 0 | J13: =$J$91 -> 0 | M13: =B13 -> 40 | N13: Establecer la adecuada asignación de funciones, competencias, seguridad jurídica y equilibrio institucional en la organización, gobierno y gestión de la Universidad. | O13: =$I$88 -> 0 | P13: =$J$88 -> 0 | Q13: 0 | R13: =$I$89 -> 0.5 | S13: =$J$89 -> 0 | T13: 0 | U13: =$I$90 -> 0.75 | V13: =$J$90 -> 0 | W13: 0 | Y13: =$I$91 -> 1
B14: 41 | C14: Conseguir la publicación oportuna y completa de toda la información relacionada con el principio de transparencia y derecho de acceso a información pública, de acuerdo con la Ley 1712 de 2014. | D14: (Información publicada)/(Información publicable según ley)∗100 | E14: Porcentaje de información publicada según la ley 1712 de 2014 | F14: Sin medición | G14: =$J$97 -> 0.93 | H14: =$J$98 -> 0.95 | I14: =$J$99 -> 0.921 | J14: =$J$100 -> 0 | M14: 41 | N14: Conseguir la publicación oportuna y completa de toda la información relacionada con el principio de transparencia y derecho de acceso a información pública, de acuerdo con la Ley 1712 de 2014. | O14: =$I$97 -> 0.25 | P14: =$J$97 -> 0.93 | Q14: 3.72 | R14: =$I$98 -> 0.35 | S14: =$J$98 -> 0.95 | T14: 2.714285714 | U14: =$I$99 -> 0.45 | V14: =$J$99 -> 0.921 | W14: 2.046666667 | Y14: =$I$100 -> 0.55
B15: 42A | C15: Lograr indicadores de cero corrupción en la gestión institucional. (a) | D15: PAAC de cada Vigencia | E15: PAAC de cada Vigencia | F15: PAAC | G15: =$J$106 -> 1 | H15: =$J$107 -> 1 | I15: =$J$108 -> 1 | J15: =$J$109 -> 0 | M15: 42A | N15: Lograr indicadores de cero corrupción en la gestión institucional. (a) | U15: PAAC | V15: PAAC | W15: 1
B16: 42B | C16: Lograr indicadores de cero corrupción en la gestión institucional. (b) | D16: ∑ Número de canales de atención en las localidades de Bogotá | E16: Número de canales de atención en las localidades de Bogotá | F16: 6 | G16: =$J$115 -> 6 | H16: =$J$116 -> 6 | I16: =$J$117 -> 6 | J16: =$J$118 -> 0 | M16: 42B | O16: =$I$115 -> 6 | P16: =$J$115 -> 6 | Q16: 1 | R16: =$I$116 -> 8 | S16: =$J$116 -> 6 | T16: 0.75 | U16: =$I$117 -> 10 | V16: =$J$117 -> 6 | W16: =IF(U16=0,U16,V16/U16) -> 0.6 | Y16: =$I$118 -> 10
B17: 42C | C17: Lograr indicadores de cero corrupción en la gestión institucional. (c) | D17: ∑ Número de rendiciones de cuentas realizadas a la comunidad anualmente | E17: Número de rendiciones de cuentas realizadas a la comunidad anualmente | F17: 1 | G17: =$J$124 -> 1 | H17: =$J$125 -> 1 | I17: =$J$126 -> 1 | J17: =$J$127 -> 0 | M17: 42C | O17: =$I$124 -> 1 | P17: =$J$124 -> 1 | Q17: 1 | R17: =$I$125 -> 1 | S17: =$J$125 -> 1 | T17: 1 | U17: =$I$126 -> 1 | V17: =$J$126 -> 1 | W17: 1 | Y17: =$I$127 -> 1
N18: Totales | O18: - | P18: - | Q18: =AVERAGE(Q6:Q17) -> 1.756060606 | T18: =AVERAGE(T6:T17) -> 1.176780795 | W18: =AVERAGE(W6:W17) -> 1.090171439
B19: REPORTE POR INDICADOR
B21: Meta 33 | C21: =C6 -> Implementar los dominios identificados en el marco de referencia IT 4+ establecidos por MinTIC | D21: =D6 -> ∑ Dominios implementados según Marco de referencia IT4+
H22: ="Cuadro resumen "&B21 -> Cuadro resumen Meta 33
B23: Año | C23: Facultad | D23: Meta Plan Indicativo | E23: Valor reportado | F23: Cumplimiento indicativo | G23: Observaciones/ anotaciones | H23: Año | I23: Meta P. Indicativo | J23: Valor reportado | K23: % Cumplimiento Plan Indicativo | L23: % de avance del Plan Estratégico
B24: 2017 | C24: Consolidado | E24: 0 | H24: 2017 | J24: =E24 -> 0 | K24: - | L24: -
B25: 2018 | C25: Consolidado | D25: 0 | F25: =IF(E25=0,0,E25/D25) -> 0 | G25: En el año 2018, se tiene de marco de referencia el MRAE, que contempla 6 dominios. De acuerdo con el presupuesto asignado, se presentó como alcance el diagnóstico y análisis del nivel de madurez del estado actual de las áreas de TI de la Universidad Distrital, dando como resultado la necesidad de la implementación de la Arquitectura Empresarial en la Institución. El Marco de referencia no se implementa por dominios sino en su totalidad, por lo que se presenta un porcentaje de avance como indicador | H25: 2018 | I25: =D25 -> 0 | J25: =E25 -> 0 | K25: =IF(J25=0,0,J25/I25) -> 0 | L25: =J25/6 -> 0
B26: 2019 | C26: Consolidado | D26: 3 | F26: =IF(E26=0,0,E26/D26) -> 0 | G26: Sobre el año 2019 cambia el Marco de referencia del MINTIC, ahora denominado MAE, que contempla actualmente 7 dominios. La implementación no se debe hacer por dominio sino para todo el Marco de referencia, debido a esto, se establece un porcentaje de avance de todo el marco. Por otro lado, el alcance propuesto para este año se disminuyó pues se pasó de un tiempo de ejecución de 11 meses a 5 meses por inconvenientes en la aprobación para el inicio del proyecto. | H26: 2019 | I26: =D26 -> 3 | J26: 0 | K26: 0 | L26: =J26/6 -> 0
B27: 2020 | C27: Consolidado | D27: 4 | E27: 0 | F27: 0 | H27: 2020 | I27: 4 | J27: 0 | K27: 0 | L27: 0
B28: 2021 | C28: Consolidado | D28: 6 | F28: 0 | H28: 2021 | I28: 6 | J28: 0 | K28: 0 | L28: 0
B30: Meta 34 | C30: =C7 -> Alcanzar la implementación del cuarto componente de Gobierno en Línea (Seguridad y privacidad de la información). | D30: =D7 -> (A.GEL Imp)/(Total de A.GEL)∗100
H31: ="Cuadro resumen "&B30 -> Cuadro resumen Meta 34
B32: Año | C32: Facultad | D32: Meta Plan Indicativo | E32: Valor reportado | F32: Cumplimiento indicativo | G32: Observaciones/ anotaciones | H32: Año | I32: Meta P. Indicativo | J32: Valor reportado | K32: % Cumplimiento Plan Indicativo | L32: % de avance del Plan Estratégico
B33: 2017 | C33: Consolidado | E33: 0.06 | H33: 2017 | J33: =E33 -> 0.06 | K33: - | L33: -
B34: 2018 | C34: Consolidado | D34: 0.2 | E34: 0 | F34: =IF(E34=0,0,E34/D34) -> 0 | G34: Este componente es institucional y es liderado por la Secretaria General, sin embargo para dar avance al mismo de parte de la OAS se presentó ante la oficina de planeación la ficha de proyecto para lograr esta meta. El proyecto fue aprobado para su ejecución en el año 2019. | H34: 2018 | I34: =D34 -> 0.2 | J34: =E34 -> 0 | K34: =IF(J34=0,0,J34/I34) -> 0 | L34: =J34/100% -> 0
B35: 2019 | C35: Consolidado | D35: 0.5 | E35: 0 | F35: =IF(E35=0,0,E35/D35) -> 0 | G35: Aunque el proyecto se aprobó por el comité de Gestión y Desempeño en el año 2018 para su ejecución en el año 2019, no ha contado con presupuesto para su realización. | H35: 2019 | I35: =D35 -> 0.5 | J35: =E35 -> 0 | K35: 0 | L35: =J35/32000 -> 0
B36: 2020 | C36: Consolidado | D36: 1 | E36: 0 | F36: 0 | H36: 2020 | I36: 1 | J36: 0 | K36: 0 | L36: 0
B37: 2021 | C37: Consolidado | D37: 1 | F37: 0 | H37: 2021 | I37: 1 | J37: 0 | K37: 0 | L37: 0
B39: Meta 35 | C39: =C8 -> Lograr la calidad y disponibilidad del 100% de la información institucional, que no tenga restricción constitucional ni legal. | D39: =D8 -> (Información disponible en la web)/(Total de información de la Universidad)∗100
H40: ="Cuadro resumen "&B39 -> Cuadro resumen Meta 35
B41: Año | C41: Facultad | D41: Meta Plan Indicativo | E41: Valor reportado | F41: Cumplimiento indicativo | G41: Observaciones/ anotaciones | H41: Año | I41: Meta P. Indicativo | J41: Valor reportado | K41: % Cumplimiento Plan Indicativo | L41: % de avance del Plan Estratégico
B42: 2017 | C42: Consolidado | E42: 1 | H42: 2017 | J42: =E42 -> 1 | K42: - | L42: -
B43: 2018 | C43: Consolidado | D43: 1 | E43: 0.93 | F43: =IF(E43=0,0,E43/D43) -> 0.93 | H43: 2018 | I43: =D43 -> 1 | J43: =E43 -> 0.93 | K43: =IF(J43=0,0,J43/I43) -> 0.93 | L43: =J43/100% -> 0.93
B44: 2019 | C44: Consolidado | D44: 1 | E44: 0.95 | F44: =IF(E44=0,0,E44/D44) -> 0.95 | H44: 2019 | I44: =D44 -> 1 | J44: =E44 -> 0.95 | K44: =IF(J44=0,0,J44/I44) -> 0.95 | L44: =J44/100% -> 0.95
B45: 2020 | C45: Consolidado | D45: 1 | E45: 0.921 | F45: 0.921 | H45: 2020 | I45: 1 | J45: 0.921 | K45: 0.921 | L45: 0.921
B46: 2021 | C46: Consolidado | D46: 1 | F46: 0 | H46: 2021 | I46: 1 | J46: 0 | K46: 0 | L46: 0
B48: Meta 36 | C48: =C9 -> Implementar mecanismos de participación, de los diferentes estamentos, de la comunidad universitaria, en las instancias de planeación, gestión, seguimiento y evaluación de la Universidad. | D48: =D9 -> (Instancias participando efectivamente)/(Total de instancias de la Universidad)∗100
H49: ="Cuadro resumen "&B48 -> Cuadro resumen Meta 36
B50: Año | C50: Facultad | D50: Meta Plan Indicativo | E50: Valor reportado | F50: Cumplimiento indicativo | G50: Observaciones/ anotaciones | H50: Año | I50: Meta P. Indicativo | J50: Valor reportado | K50: % Cumplimiento Plan Indicativo | L50: % de avance del Plan Estratégico
B51: 2017 | C51: Consolidado | E51: N/D | H51: 2017 | J51: =E51 -> N/D | K51: - | L51: -
B52: 2018 | C52: Consolidado | D52: 0.6 | E52: 1 | F52: =IF(E52=0,0,E52/D52) -> 1.666666667 | H52: 2018 | I52: =D52 -> 0.6 | J52: =E52 -> 1 | K52: =IF(J52=0,0,J52/I52) -> 1.666666667 | L52: =J52/100% -> 1
B53: 2019 | C53: Consolidado | D53: 0.6 | E53: 1 | F53: =IF(E53=0,0,E53/D53) -> 1.666666667 | H53: 2019 | I53: =D53 -> 0.6 | J53: =E53 -> 1 | K53: 1.666666667 | L53: =J53/100% -> 1
B54: 2020 | C54: Consolidado | D54: 0.7 | E54: =(75+1+1+1+5)/(1+1+1+5+46+40) -> 0.8829787234 | F54: 1.261398176 | H54: 2020 | I54: 0.7 | J54: 0.8829787234 | K54: 1.261398176 | L54: 0.8829787234
B55: 2021 | C55: Consolidado | D55: 1 | F55: 0 | H55: 2021 | I55: 1 | J55: 0 | K55: 0 | L55: 0
B57: Meta 37 | C57: =C10 -> Lograr un nivel de satisfacción mínimo del 80% por parte de las personas que utilizan los servicios de la Universidad. | D57: =D10 -> (Usuario≥4 y 5)/(T.Usuarios)∗100
H58: ="Cuadro resumen "&B57 -> Cuadro resumen Meta 37
B59: Año | C59: Facultad | D59: Meta Plan Indicativo | E59: Valor reportado | F59: Cumplimiento indicativo | G59: Observaciones/ anotaciones | H59: Año | I59: Meta P. Indicativo | J59: Valor reportado | K59: % Cumplimiento Plan Indicativo | L59: % de avance del Plan Estratégico
B60: 2017 | C60: Consolidado | E60: N/D | H60: 2017 | J60: =E60 -> N/D | K60: - | L60: -
B61: 2018 | C61: Consolidado | F61: =IF(E61=0,0,E61/D61) -> 0 | H61: 2018 | I61: =D61 -> 0 | J61: =E61 -> 0 | K61: =IF(J61=0,0,J61/I61) -> 0 | L61: =J61/80% -> 0
B62: 2019 | C62: Consolidado | F62: =IF(E62=0,0,E62/D62) -> 0 | H62: 2019 | I62: =D62 -> 0 | J62: =E62 -> 0 | K62: 0 | L62: =J62/80% -> 0
B63: 2020 | C63: Consolidado | D63: 0.4 | E63: 0.9315 | F63: 2.32875 | H63: 2020 | I63: 0.4 | J63: 0.9315 | K63: 2.32875 | L63: 1.164375
B64: 2021 | C64: Consolidado | D64: 0.6 | F64: 0 | H64: 2021 | I64: 0.6 | J64: 0 | K64: 0 | L64: 0
B66: Meta 38 | C66: =C11 -> Actualizar, compilar, depurar y difundir el 100% de las normas expedidas por las autoridades institucionales. | D66: =D11 -> (Normatividad verificada)/(Total de normatividad expedida por la UD)∗100
H67: ="Cuadro resumen "&B66 -> Cuadro resumen Meta 38
B68: Año | C68: Facultad | D68: Meta Plan Indicativo | E68: Valor reportado | F68: Cumplimiento indicativo | G68: Observaciones/ anotaciones | H68: Año | I68: Meta P. Indicativo | J68: Valor reportado | K68: % Cumplimiento Plan Indicativo | L68: % de avance del Plan Estratégico
B69: 2017 | C69: Consolidado | E69: N/D | H69: 2017 | J69: =E69 -> N/D | K69: - | L69: -
B70: 2018 | C70: Consolidado | D70: 0.1 | E70: =890/890 -> 1 | F70: =IF(E70=0,0,E70/D70) -> 10 | H70: 2018 | I70: =D70 -> 0.1 | J70: =E70 -> 1 | K70: =IF(J70=0,0,J70/I70) -> 10 | L70: =J70/80% -> 1.25
B71: 2019 | C71: Consolidado | D71: 0.2 | E71: =919/919 -> 1 | F71: =IF(E71=0,0,E71/D71) -> 5 | H71: 2019 | I71: =D71 -> 0.2 | J71: =E71 -> 1 | K71: 5 | L71: =J71/80% -> 1.25
B72: 2020 | C72: Consolidado | D72: 0.3 | E72: =570/570 -> 1 | F72: 3.333333333 | H72: 2020 | I72: 0.3 | J72: 1 | K72: 3.333333333 | L72: 1.25
B73: 2021 | C73: Consolidado | D73: 0.4 | F73: 0 | H73: 2021 | I73: 0.4 | J73: 0 | K73: 0 | L73: 0
B75: Meta 39 | C75: =C12 -> Actualizar, simplificar y flexibilizar anualmente la operación de los procesos institucionales en el cumplimiento de las funciones universitarias. | D75: =D12 -> (Procesos Actualizados)/(Total de procesos)∗100
H76: ="Cuadro resumen "&B75 -> Cuadro resumen Meta 39
B77: Año | C77: Facultad | D77: Meta Plan Indicativo | E77: Valor reportado | F77: Cumplimiento indicativo | G77: Observaciones/ anotaciones | H77: Año | I77: Meta P. Indicativo | J77: Valor reportado | K77: % Cumplimiento Plan Indicativo | L77: % de avance del Plan Estratégico
B78: 2017 | C78: Consolidado | E78: 1 | H78: 2017 | J78: =E78 -> 1 | K78: - | L78: -
B79: 2018 | C79: Consolidado | D79: 1 | E79: 1 | F79: =IF(E79=0,0,E79/D79) -> 1 | G79: Para finales de la Vigencia 2017 e inicio de la Vigencia 2018, la Oficina Asesora de Planeación y Control finalizó el ejercicio de actualización documental para todo el Modelo de Operación por Procesos, en éste se incluyó lo conrcerniente a documentación de los Procesos, Mapas Integrales de Riesgos e Indicadores. Finalmente se publica las versiones actualizadas de la Documentación del Proceso. | H79: 2018 | I79: =D79 -> 1 | J79: =E79 -> 1 | K79: =IF(J79=0,0,J79/I79) -> 1 | L79: =J79/100% -> 1
B80: 2019 | C80: Consolidado | D80: 1 | E80: =19/22 -> 0.8636363636 | F80: =IF(E80=0,0,E80/D80) -> 0.8636363636 | G80: Para la vigencia 2019 la Oficina Asesora de Planeación y Control llevó a cabo, el análisis para la implementación del Modelo Integrado de Planeación y Gestión, por medio del diagnóstico del Sistema y el planteamiento de Planes de Acción que permitieran el cierre de brechas identificadas. Para este ejercicio, se contó con el trabajo de 12 de los Proceso del Modelo de Operación. | H80: 2019 | I80: =D80 -> 1 | J80: =E80 -> 0.8636363636 | K80: 0.8636363636 | L80: =J80/100% -> 0.8636363636
B81: 2020 | C81: Consolidado | D81: 1 | E81: =13/22 -> 0.5909090909 | F81: 0.5909090909 | H81: 2020 | I81: 1 | J81: 0.5909090909 | K81: 0.5909090909 | L81: 0.5909090909
B82: 2021 | C82: Consolidado | D82: 1 | F82: 0 | H82: 2021 | I82: 1 | J82: 0 | K82: 0 | L82: 0
B84: Meta 40 | C84: =C13 -> Establecer la adecuada asignación de funciones, competencias, seguridad jurídica y equilibrio institucional en la organización, gobierno y gestión de la Universidad. | D84: =D13 -> (Normas actualizadas)/(Total de normas estatutarias)∗100
H85: ="Cuadro resumen "&B84 -> Cuadro resumen Meta 40
B86: Año | C86: Facultad | D86: Meta Plan Indicativo | E86: Valor reportado | F86: Cumplimiento indicativo | G86: Observaciones/ anotaciones | H86: Año | I86: Meta P. Indicativo | J86: Valor reportado | K86: % Cumplimiento Plan Indicativo | L86: % de avance del Plan Estratégico
B87: 2017 | C87: Consolidado | E87: 0 | H87: 2017 | J87: =E87 -> 0 | K87: - | L87: -
B88: 2018 | C88: Consolidado | D88: 0 | E88: 0 | F88: =IF(E88=0,0,E88/D88) -> 0 | H88: 2018 | I88: =D88 -> 0 | J88: =E88 -> 0 | K88: =IF(J88=0,0,J88/I88) -> 0 | L88: =J88/100% -> 0
B89: 2019 | C89: Consolidado | D89: 0.5 | E89: 0 | F89: =IF(E89=0,0,E89/D89) -> 0 | H89: 2019 | I89: =D89 -> 0.5 | J89: =E89 -> 0 | K89: 0 | L89: =J89/100% -> 0
B90: 2020 | C90: Consolidado | D90: 0.75 | E90: 0 | F90: 0 | H90: 2020 | I90: 0.75 | J90: 0 | K90: 0 | L90: 0
B91: 2021 | C91: Consolidado | D91: 1 | F91: 0 | H91: 2021 | I91: 1 | J91: 0 | K91: 0 | L91: 0
B93: Meta 41 | C93: =C14 -> Conseguir la publicación oportuna y completa de toda la información relacionada con el principio de transparencia y derecho de acceso a información pública, de acuerdo con la Ley 1712 de 2014. | D93: =D14 -> (Información publicada)/(Información publicable según ley)∗100
H94: ="Cuadro resumen "&B93 -> Cuadro resumen Meta 41
B95: Año | C95: Facultad | D95: Meta Plan Indicativo | E95: Valor reportado | F95: Cumplimiento indicativo | G95: Observaciones/ anotaciones | H95: Año | I95: Meta P. Indicativo | J95: Valor reportado | K95: % Cumplimiento Plan Indicativo | L95: % de avance del Plan Estratégico
B96: 2017 | C96: Consolidado | E96: N/D | H96: 2017 | J96: =E96 -> N/D | K96: - | L96: -
B97: 2018 | C97: Consolidado | D97: 0.25 | E97: 0.93 | F97: =IF(E97=0,0,E97/D97) -> 3.72 | G97: A corte del 31 de Diciembre de 2018 se logro alcanzar un 93% de cumplimiento en la publicacion de la informacion Institucional en el Portal de Transparencia y Acceso a la Informacion que como sujetos obligados de la Ley 1712 de 2014, debemos cumplir (ver informe de gestion anual OQRAC 2019). | H97: 2018 | I97: =D97 -> 0.25 | J97: =E97 -> 0.93 | K97: =IF(J97=0,0,J97/I97) -> 3.72 | L97: =J97/100% -> 0.93
B98: 2019 | C98: Consolidado | D98: 0.35 | E98: 0.95 | F98: =IF(E98=0,0,E98/D98) -> 2.714285714 | G98: A corte del 31 de Diciembre de 2019 se logro alcanzar un 95% de cumplimiento en la publicacion de la informacion Institucional en el Portal de Transparencia y Acceso a la Informacion que como sujetos obligados de la Ley 1712 de 2014, debemos cumplir (ver informe de gestion anual OQRAC 2019) | H98: 2019 | I98: =D98 -> 0.35 | J98: =E98 -> 0.95 | K98: 2.714285714 | L98: =J98/100% -> 0.95
B99: 2020 | C99: Consolidado | D99: 0.45 | E99: 0.921 | F99: 2.046666667 | H99: 2020 | I99: 0.45 | J99: 0.921 | K99: 2.046666667 | L99: 0.921
B100: 2021 | C100: Consolidado | D100: 0.55 | F100: 0 | H100: 2021 | I100: 0.55 | J100: 0 | K100: 0 | L100: 0
B102: Meta 42A | C102: =C15 -> Lograr indicadores de cero corrupción en la gestión institucional. (a) | D102: =D15 -> PAAC de cada Vigencia
H103: ="Cuadro resumen "&B102 -> Cuadro resumen Meta 42A
B104: Año | C104: Facultad | D104: Meta Plan Indicativo | E104: Valor reportado | F104: Cumplimiento indicativo | G104: Observaciones/ anotaciones | H104: Año | I104: Meta P. Indicativo | J104: Valor reportado | K104: % Cumplimiento Plan Indicativo | L104: % de avance del Plan Estratégico
B105: 2017 | C105: Consolidado | H105: 2017 | J105: =E105 -> 0 | K105: - | L105: -
B106: 2018 | C106: Consolidado | E106: 1 | F106: =IF(E106=0,0,E106/D106) ->  | G106: 68,3% - De acuerdo a lo identificado en el Informe de Seguimiento al PAAC para la vigencia 2018, realizado por la OACI, se evidencia los siguientes porcentajes de ejecución para los Componentes: 1. Gestión de Riesgos de Corrupción Mapa de Riesgos de Corrupción: 100% 2. Estratégia Antitrámites: 0% 3. Redición de Cuentas: 100% 4. Atención al Ciudadano: 100% 5. Transparencia y Acceso de la Información: 100% 6. Iniciativas Adicionales: 10% Lo anterior puede ser consultado en el enlace que se presenta a continuación http://www1.udistrital.edu.co:8080/documents/27581/0/SEGUNDA (informe seguimiento plan anticurrupción diciembre 2018.pdf) | H106: 2018 | I106: =D106 -> 0 | J106: =E106 -> 1 | K106: =IF(J106=0,0,J106/I106) ->  | L106: =J106/100% -> 1
B107: 2019 | C107: Consolidado | E107: 1 | F107: =IF(E107=0,0,E107/D107) ->  | G107: 82,83% - De acuerdo a lo identificado en el Informe de Seguimiento al PAAC para la vigencia 2019, realizado por la OACI, se evidencia los siguientes porcentajes de ejecución para los Componentes: 1. Gestión de Riesgos de Corrupción Mapa de Riesgos de Corrupción: 100% 2. Racionalización de Trámites: 85,8% 3. Redición de Cuentas: 100% 4. Mecanismos para mejorar la Atención al Ciudadano: 70,4% 5. Mecanismos para mejorar la Transparencia y Acceso a la Información: 74,2% 6. Integridad: 66,6% Lo anterior puede ser consultado en el enlace que se presenta a continuación: http://auditor.udistrital.edu.co:8080/documents/27581/534b9114-feda-4802-ad48-19861e164e57 | H107: 2019 | I107: =D107 -> 0 | J107: =E107 -> 1 | L107: =J107/100% -> 1
B108: 2020 | C108: Consolidado | E108: 1 | H108: 2020 | I108: 0 | J108: 1 | L108: 1
B109: 2021 | C109: Consolidado | F109: 0 | H109: 2021 | I109: 0 | J109: 0 | K109: 0 | L109: 0
B111: Meta 42B | C111: =C15 -> Lograr indicadores de cero corrupción en la gestión institucional. (a) | D111: =D16 -> ∑ Número de canales de atención en las localidades de Bogotá
H112: ="Cuadro resumen "&B111 -> Cuadro resumen Meta 42B
B113: Año | C113: Facultad | D113: Meta Plan Indicativo | E113: Valor reportado | F113: Cumplimiento indicativo | G113: Observaciones/ anotaciones | H113: Año | I113: Meta P. Indicativo | J113: Valor reportado | K113: % Cumplimiento Plan Indicativo | L113: % de avance del Plan Estratégico
B114: 2017 | C114: Consolidado | E114: 6 | H114: 2017 | J114: =E114 -> 6 | K114: - | L114: -
B115: 2018 | C115: Consolidado | D115: 6 | E115: 6 | F115: =IF(E115=0,0,E115/D115) -> 1 | G115: * Sede Bosa Porvenir - Localidad Bosa *Facultad de Ciencias y Educacion - Localidad Santa Fe *Facultad Tecnologica - Localidad Ciudad Bolivar * Sede Administrativa - Localidad Chapinero *SuperCade CAD - Localidad Teusaquillo * SuperCade Candelaria - Localidad San Cristobal | H115: 2018 | I115: =D115 -> 6 | J115: =E115 -> 6 | K115: =IF(J115=0,0,J115/I115) -> 1 | L115: =J115/15 -> 0.4
B116: 2019 | C116: Consolidado | D116: 8 | E116: 6 | F116: =IF(E116=0,0,E116/D116) -> 0.75 | G116: * Sede Bosa Porvenir - Localidad Bosa *Facultad de Ciencias y Educacion - Localidad Santa Fe *Facultad Tecnologica - Localidad Ciudad Bolivar * Sede Administrativa - Localidad Chapinero *SuperCade CAD - Localidad Teusaquillo * SuperCade Suba - Localidad Suba | H116: 2019 | I116: =D116 -> 8 | J116: =E116 -> 6 | K116: 0.75 | L116: =J116/15 -> 0.4
B117: 2020 | C117: Consolidado | D117: 10 | E117: 6 | F117: 0.6 | H117: 2020 | I117: 10 | J117: 6 | K117: 0.6 | L117: 0.4
B118: 2021 | C118: Consolidado | D118: 10 | F118: 0 | H118: 2021 | I118: 10 | J118: 0 | K118: 0 | L118: 0
B120: Meta 42C | C120: =C15 -> Lograr indicadores de cero corrupción en la gestión institucional. (a) | D120: =D17 -> ∑ Número de rendiciones de cuentas realizadas a la comunidad anualmente
H121: ="Cuadro resumen "&B120 -> Cuadro resumen Meta 42C
B122: Año | C122: Facultad | D122: Meta Plan Indicativo | E122: Valor reportado | F122: Cumplimiento indicativo | G122: Observaciones/ anotaciones | H122: Año | I122: Meta P. Indicativo | J122: Valor reportado | K122: % Cumplimiento Plan Indicativo | L122: % de avance del Plan Estratégico
B123: 2017 | C123: Consolidado | E123: 1 | H123: 2017 | J123: =E123 -> 1 | K123: - | L123: -
B124: 2018 | C124: Consolidado | D124: 1 | E124: 1 | F124: =IF(E124=0,0,E124/D124) -> 1 | G124: La Audiencia Pública de Rendición de Cuentas de la vigencia 2017 realizo en la Biblioteca Central de la sede Aduanilla de Paiba (Calle 13 # 31-75, Bogotá), el día viernes 16 de marzo a partir de las 9:00 a.m. y hasta las 12:00 m. , en el marco del Plan Anticorrupción y Atención al Ciudadano “Hacia la Transparencia Institucional”, con la participacion de el señor Rector, Vicerrector Academico, Vicerrector Administrativo y Financiero, Secretario General, Directores del CIDC, IDEXUD, CERI y la Jefe de la Oficina Asesora de Control Interno. | H124: 2018 | I124: =D124 -> 1 | J124: =E124 -> 1 | K124: =IF(J124=0,0,J124/I124) -> 1 | L124: =J124/1 -> 1
B125: 2019 | C125: Consolidado | D125: 1 | E125: 1 | F125: =IF(E125=0,0,E125/D125) -> 1 | G125: En el año 2019 se celebro la Audiencia Pública de Rendición de Cuentas de la vigencia 2018, el martes 30 de abril de 2019 a partir de las 9:00 a.m. a 12:00 pm en el auditorio del edificio Investigadores ubicado en la sede Aduanilla de Paiba en Bogotá, con la participacion de el señor Rector, Vicerrector Academico, Vicerrector Administrativo y Financiero, Secretario General, Directores del CIDC, IDEXUD, CERI y la Jefe de la Oficina Asesora de Control Interno. | H125: 2019 | I125: =D125 -> 1 | J125: =E125 -> 1 | K125: 1 | L125: =J125/1 -> 1
B126: 2020 | C126: Consolidado | D126: 1 | E126: 1 | F126: 1 | G126: Se hicieron 5 ejercicios de rendición de cuentas en cada una de las Facultades y una general, para un total de 6. | H126: 2020 | I126: 1 | J126: 1 | K126: 1 | L126: 1
B127: 2021 | C127: Consolidado | D127: 1 | F127: 0 | H127: 2021 | I127: 1 | J127: 0 | K127: 0 | L127: 0

Sheet Base L2 (hidden)
B2: L I N E A M I E N T O 2
B4: Información del indicador | G4: Reporte de los indicadores | M4: N° | N4: Meta | O4: Avance PLAN INDICATIVO
B5: N° | C5: Meta | D5: Indicador | E5: Unidad de medida | F5: Linea base (2017) | G5: 2018 | H5: 2019 | I5: 2020 | J5: 2021 | K5: Tendencia | O5: Metas 2018 | P5: Reportado 2018 | Q5: % cumplimiento 2018 | R5: Metas 2019 | S5: Reportado 2019 | T5: % cumplimiento 2019 | U5: Metas 2020 | V5: Reportado 2020 | W5: % cumplimiento 2020 | Y5: 2021
B6: 15 | C6: Evaluar, revisar y reformular la oferta curricular de pregrado y posgrado de cada facultad, en el marco de los procesos de autoevaluación continua y los proyectos educativos de las facultades. | D6: ∑ Programas evaluados curricularmente | E6: Número de proyectos curriculares evaluados y actualizados | F6: 81 | G6: =$J$18 -> 81 | H6: =$J$19 -> 81 | I6: =$J$20 -> 81 | J6: =$J$21 -> 0 | M6: =B6 -> 15 | N6: =C6 -> Evaluar, revisar y reformular la oferta curricular de pregrado y posgrado de cada facultad, en el marco de los procesos de autoevaluación continua y los proyectos educativos de las facultades. | O6: =$I$18 -> 80 | P6: =$J$18 -> 81 | Q6: =IF(P6=0,,(P6/O6)) -> 1.0125 | R6: =$I$19 -> 86 | S6: =$J$19 -> 81 | T6: =IF(S6=0,,(S6/R6)) -> 0.9418604651 | U6: =$I$20 -> 94 | V6: =$J$20 -> 81 | W6: =IF(V6=0,,(V6/U6)) -> 0.8617021277 | Y6: =$I$21 -> 101
B7: 16 | C7: Aumentar la tasa de graduación en pregrados al 70% | D7: ETE/EC∗100 | E7: Porcentaje de estudiantes que se han graduado en máximo dos periodos adicionales a los establecidos en el plan de estudios (Tasa de eficiencia en la titulación) | F7: 0.4 | G7: =$J$52 -> 0 | H7: =$J$53 -> 0 | I7: =$J$54 -> 0.8752904725 | J7: =$J$55 -> 0 | M7: =B7 -> 16 | N7: =C7 -> Aumentar la tasa de graduación en pregrados al 70% | O7: =$I$52 -> 0.428 | P7: =$J$52 -> 0 | Q7: =IF(P7=0,,(P7/O7)) -> 0 | R7: =$I$53 -> 0.449 | S7: =$J$53 -> 0 | T7: 0 | U7: =$I$54 -> 0.46 | V7: =$J$54 -> 0.8752904725 | W7: =IF(V7=0,,(V7/U7)) -> 1.902805375 | Y7: =$I$55 -> 0.48
B8: 17 | C8: Alcanzar una cobertura en el 70 % de los docentes en el manejo de tecnologías de la información y comunicación. | D8: (D.TI)/(T.DOC)∗100 | E8: Porcentaje de docentes con manejo de las TI | F8: Sin medición | G8: =$J$61 -> 0 | H8: =$J$62 -> 0 | I8: =$J$63 -> 0.6507614213 | J8: =$J$64 -> 0 | M8: 17 | N8: Alcanzar una cobertura en el 70 % de los docentes en el manejo de tecnologías de la información y comunicación. | O8: =$I$61 -> 0.05 | P8: =$J$61 -> 0 | Q8: 0 | R8: =$I$62 -> 0.07 | S8: =$J$62 -> 0 | T8: 0 | U8: =$I$63 -> 0.1 | V8: =$J$63 -> 0.6507614213 | W8: 6.507614213 | Y8: =$I$64 -> 0.15
B9: 18 | C9: Lograr que el 40 % de los docentes de planta manejen lenguajes que permitan garantizar la atención de comunidades en el marco de la política de inclusión. | D9: (D.LI)/(T.DOC)∗100 | E9: Porcentaje de docentes con manejo de lenguajes Inclusivos | F9: Sin medición | G9: =$J$70 -> 0 | H9: =$J$71 -> 0 | I9: =$J$72 -> 0 | J9: =$J$73 -> 0 | M9: 18 | N9: Lograr que el 40 % de los docentes de planta manejen lenguajes que permitan garantizar la atención de comunidades en el marco de la política de inclusión. | O9: =$I$70 -> 0.03 | P9: =$J$70 -> 0 | Q9: 0 | R9: =$I$71 -> 0.05 | S9: =$J$71 -> 0 | T9: 0 | U9: =$I$72 -> 0.07 | V9: =$J$72 -> 0 | W9: 0 | Y9: =$I$73 -> 0.1
